Directorate,Department,Expenditure Type,Ref.Doc.1,Vendor Name,Expenditure Amount (exc VAT),Payment Date,
Assurance,Assurance,Consultants Fees,80019332,ANTHONY COLLINS SOLICITORS,"1,554.00",31/08/2018,
Assurance,Assurance,Advertising,60108926,GOOD IMPRESSIONS (LONDON) LIMITED,180.00,09/08/2018,
Assurance,Assurance,Rents,60103299,PARKFIELD ACADEMY,40.00,10/08/2018,
Assurance,Assurance,Rents,60111365,SHRED-IT,274.13,15/08/2018,
Assurance,Assurance,Stationery,60103618,SHAW & SONS LIMITED,"3,116.45",02/08/2018,
Assurance,Assurance,Postage,60111416,ROYAL MAIL GROUP LIMITED,54.95,15/08/2018,
Assurance,Assurance,Rents,60111583,AVENUE HOUSE SERVICES LTD,100.00,22/08/2018,
Assurance,Assurance,Printing-Contract,40003012,OFFICE DEPOT UK LTD,11.00,29/08/2018,
Assurance,Assurance,Other Indirect Employee Expens,80019296,LONDON'S MAYORS' ASSOCIATION,46.00,17/08/2018,
Assurance,Assurance,Other Indirect Employee Expens,80019299,THE MAYOR'S CHARITY APPEAL,45.00,17/08/2018,
Assurance,Assurance,Other Indirect Employee Expens,80019304,THE SPEAKER'S CHARITY,40.00,20/08/2018,
Assurance,Assurance,Other Indirect Employee Expens,80019307,LONDON MAYORS' ASSOCIATION,30.00,17/08/2018,
Assurance,Assurance,Other Indirect Employee Expens,80019317,CLLR REUBEN THOMPSTONE,80.18,17/08/2018,
Assurance,Assurance,Professional Services,80019316,S7 CHAUFFEURS LTD,255.00,21/08/2018,
Assurance,Assurance,Training,60111592,MEDIA FIRST LTD,"1,760.00",20/08/2018,
Assurance,Assurance,Venue Hire,60110861,THE GREEK CYPRIOT COMMUNITY TRUST,160.00,07/08/2018,
Assurance,Assurance,Venue Hire,60111617,ARTS DEPOT PRODUCTIONS LTD,"1,841.75",17/08/2018,
Assurance,Assurance,Venue Hire,60110740,HOPE CORNER COMMUNITY CENTRE,380.00,07/08/2018,
Assurance,Assurance,Consultants Fees,60110048,PRICEWATERHOUSE COOPERS,"20,000.00",06/08/2018,
Assurance,Assurance,Consultants Fees,60110094,PRICEWATERHOUSE COOPERS,"20,000.00",23/08/2018,
Assurance,Assurance,Translation Exp / Interpret,60108318,REDACTED - PERSONAL DATA,430.00,13/08/2018,
Central Expenses,Central Expenses,Other Establishments - Third P,EBX0240226,LEE VALLEY REGIONAL PARK AUTH.,"28,597.64",13/08/2018,
Central Expenses,Central Expenses,Other Establishments - Third P,EBX0240163,GREATER LONDON AUTHORITY,"3,396,343.00",10/08/2018,
Central Expenses,Central Expenses,Pensions To Retired Employees,60111243,LONDON PENSIONS FUND AUTHORITY,"2,075.84",15/08/2018,
Central Expenses,Central Expenses,Pensions To Retired Employees,60111245,LONDON PENSIONS FUND AUTHORITY,"2,241.08",14/08/2018,
Central Expenses,Central Expenses,Pensions To Retired Employees,60111251,LONDON PENSIONS FUND AUTHORITY,"2,092.09",14/08/2018,
Central Expenses,Central Expenses,Pensions To Retired Employees,60111261,LONDON PENSIONS FUND AUTHORITY,"2,454.33",15/08/2018,
Central Expenses,Central Expenses,Pensions To Retired Employees,60111264,LONDON PENSIONS FUND AUTHORITY,"2,498.40",14/08/2018,
Central Expenses,Central Expenses,Pensions To Retired Employees,60111287,LONDON PENSIONS FUND AUTHORITY,"2,421.94",15/08/2018,
Central Expenses,Central Expenses,Pensions To Retired Employees,60111288,LONDON PENSIONS FUND AUTHORITY,"2,237.12",14/08/2018,
Central Expenses,Central Expenses,Pensions To Retired Employees,60111289,LONDON PENSIONS FUND AUTHORITY,"2,421.94",14/08/2018,
Central Expenses,Central Expenses,Pensions To Retired Employees,60111291,LONDON PENSIONS FUND AUTHORITY,"2,421.94",14/08/2018,
Central Expenses,Central Expenses,Pensions To Retired Employees,60111293,LONDON PENSIONS FUND AUTHORITY,"2,241.08",14/08/2018,
Central Expenses,Central Expenses,Pensions To Retired Employees,60111299,LONDON PENSIONS FUND AUTHORITY,"2,237.12",14/08/2018,
Central Expenses,Central Expenses,Pensions To Retired Employees,60111316,LONDON PENSIONS FUND AUTHORITY,"2,128.77",14/08/2018,
Central Expenses,Central Expenses,Pensions To Retired Employees,60111323,LONDON PENSIONS FUND AUTHORITY,"2,092.09",14/08/2018,
Central Expenses,Central Expenses,Pensions To Retired Employees,60111332,LONDON PENSIONS FUND AUTHORITY,"2,237.12",14/08/2018,
Central Expenses,Central Expenses,Pensions To Retired Employees,60111338,LONDON PENSIONS FUND AUTHORITY,"2,020.42",14/08/2018,
Central Expenses,Central Expenses,Audit Fee,60105741,BDO LLP,"2,006.00",01/08/2018,
Central Expenses,Central Expenses,Insurance Claims,60111205,WEIGHTMANS LLP,"1,000.00",13/08/2018,
Central Expenses,Central Expenses,Insurance Claims,60111731,WEIGHTMANS LLP,230.00,22/08/2018,
Central Expenses,Central Expenses,Insurance Claims,60111752,WEIGHTMANS LLP,655.50,22/08/2018,
Central Expenses,Central Expenses,Insurance Claims,80019155,ADMIRAL INSURANCE,984.47,10/08/2018,
Central Expenses,Central Expenses,Insurance Claims,60110028,CLYDE & CO LLP,"8,254.25",01/08/2018,
Central Expenses,Central Expenses,Insurance Claims,60110143,CLYDE & CO LLP,"12,795.60",06/08/2018,
Central Expenses,Central Expenses,Insurance Claims,60110361,GLENDALE COUNTRYSIDE LTD,291.00,23/08/2018,
Central Expenses,Central Expenses,Insurance Claims,60110387,GLENDALE COUNTRYSIDE LTD,244.45,23/08/2018,
Central Expenses,Central Expenses,Insurance Claims,60110415,GLENDALE COUNTRYSIDE LTD,101.98,23/08/2018,
Central Expenses,Central Expenses,Insurance Claims,60110433,GLENDALE COUNTRYSIDE LTD,214.20,23/08/2018,
Central Expenses,Central Expenses,Insurance Claims,80019080,DWP COMPENSATION RECOVERY UNIT,866.00,07/08/2018,
Central Expenses,Central Expenses,Insurance Claims,80019292,DWP COMPENSATION RECOVERY UNIT,"1,666.00",20/08/2018,
Central Expenses,Central Expenses,Insurance Claims,80019401,DWP COMPENSATION RECOVERY UNIT,665.00,31/08/2018,
Central Expenses,Central Expenses,Insurance Claims,80019426,DWP COMPENSATION RECOVERY UNIT,678.00,31/08/2018,
Central Expenses,Central Expenses,Insurance Claims,80019204,IMCS (UK) PLC,"1,080.00",22/08/2018,
Central Expenses,Central Expenses,Insurance Claims,80018945,REDACTED - PERSONAL DATA,78.00,06/08/2018,
Central Expenses,Central Expenses,Insurance Claims,80018946,AGEAS INSURANCE LTD,"1,251.37",03/08/2018,
Central Expenses,Central Expenses,Insurance Claims,80018947,REDACTED - PERSONAL DATA,50.00,06/08/2018,
Central Expenses,Central Expenses,Insurance Claims,80018948,REDACTED - PERSONAL DATA,119.99,06/08/2018,
Central Expenses,Central Expenses,Insurance Claims,80019007,KINDERTONS LTD,"1,516.64",06/08/2018,
Central Expenses,Central Expenses,Insurance Claims,80019010,REDACTED - PERSONAL DATA,228.00,06/08/2018,
Central Expenses,Central Expenses,Insurance Claims,80019034,BROADWAY SOLICITORS,"4,016.00",03/08/2018,
Central Expenses,Central Expenses,Insurance Claims,80019041,SIMPSON MILLAR LLP,"5,600.00",06/08/2018,
Central Expenses,Central Expenses,Insurance Claims,80019047,QUOTE ME HAPPY MOTOR,"2,205.58",06/08/2018,
Central Expenses,Central Expenses,Insurance Claims,80019055,ACCIDENTALLY INJURED LLP,"8,018.00",06/08/2018,
Central Expenses,Central Expenses,Insurance Claims,80019058,ADMIRAL LAW,"1,730.51",03/08/2018,
Central Expenses,Central Expenses,Insurance Claims,80019063,KENNEDYS LAW LLP CLIENT ACC,"30,000.00",08/08/2018,
Central Expenses,Central Expenses,Insurance Claims,80019079,BARNES AND PARTNERS SOLICITORS,"9,310.00",07/08/2018,
Central Expenses,Central Expenses,Insurance Claims,80019137,REDACTED - PERSONAL DATA,145.99,09/08/2018,
Central Expenses,Central Expenses,Insurance Claims,80019138,REDACTED - PERSONAL DATA,54.00,09/08/2018,
Central Expenses,Central Expenses,Insurance Claims,80019144,REDACTED - PERSONAL DATA,"2,317.24",10/08/2018,
Central Expenses,Central Expenses,Insurance Claims,80019145,IMS OF SMITHFIELD,210.00,10/08/2018,
Central Expenses,Central Expenses,Insurance Claims,80019160,REDACTED - PERSONAL DATA,500.00,10/08/2018,
Central Expenses,Central Expenses,Insurance Claims,80019162,REDACTED - PERSONAL DATA,523.98,10/08/2018,
Central Expenses,Central Expenses,Insurance Claims,80019163,REDACTED - PERSONAL DATA,329.93,13/08/2018,
Central Expenses,Central Expenses,Insurance Claims,80019165,REDACTED - PERSONAL DATA,147.00,13/08/2018,
Central Expenses,Central Expenses,Insurance Claims,80019166,MSL,447.24,10/08/2018,
Central Expenses,Central Expenses,Insurance Claims,80019168,LYONS DAVIDSONS SOLICITORS,"3,482.48",13/08/2018,
Central Expenses,Central Expenses,Insurance Claims,80019177,REDACTED - PERSONAL DATA,124.99,13/08/2018,
Central Expenses,Central Expenses,Insurance Claims,80019186,REDACTED - PERSONAL DATA,146.50,13/08/2018,
Central Expenses,Central Expenses,Insurance Claims,80019188,REDACTED - PERSONAL DATA,122.45,13/08/2018,
Central Expenses,Central Expenses,Insurance Claims,80019195,REDACTED - PERSONAL DATA,70.80,13/08/2018,
Central Expenses,Central Expenses,Insurance Claims,80019216,REDACTED - PERSONAL DATA,380.00,14/08/2018,
Central Expenses,Central Expenses,Insurance Claims,80019218,REDACTED - PERSONAL DATA,163.20,14/08/2018,
Central Expenses,Central Expenses,Insurance Claims,80019229,LANE END MEDICAL GROUP,30.00,14/08/2018,
Central Expenses,Central Expenses,Insurance Claims,80019251,REDACTED - PERSONAL DATA,177.00,16/08/2018,
Central Expenses,Central Expenses,Insurance Claims,80019290,REDACTED - PERSONAL DATA,198.44,20/08/2018,
Central Expenses,Central Expenses,Insurance Claims,80019291,REDACTED - PERSONAL DATA,"9,000.00",20/08/2018,
Central Expenses,Central Expenses,Insurance Claims,80019294,REDACTED - PERSONAL DATA,192.90,20/08/2018,
Central Expenses,Central Expenses,Insurance Claims,80019297,REDACTED - PERSONAL DATA,348.00,20/08/2018,
Central Expenses,Central Expenses,Insurance Claims,80019300,REDACTED - PERSONAL DATA,212.50,20/08/2018,
Central Expenses,Central Expenses,Insurance Claims,80019301,REDACTED - PERSONAL DATA,96.00,20/08/2018,
Central Expenses,Central Expenses,Insurance Claims,80019303,REDACTED - PERSONAL DATA,48.00,20/08/2018,
Central Expenses,Central Expenses,Insurance Claims,80019315,REDACTED - PERSONAL DATA,85.00,21/08/2018,
Central Expenses,Central Expenses,Insurance Claims,80019329,MIB,800.00,21/08/2018,
Central Expenses,Central Expenses,Insurance Claims,80019358,REDACTED - PERSONAL DATA,220.00,24/08/2018,
Central Expenses,Central Expenses,Insurance Claims,80019359,REDACTED - PERSONAL DATA,140.00,24/08/2018,
Central Expenses,Central Expenses,Insurance Claims,80019362,TRUE SOLICITORS LLP CLIENT ACC,"4,848.37",23/08/2018,
Central Expenses,Central Expenses,Insurance Claims,80019385,REDACTED - PERSONAL DATA,190.00,24/08/2018,
Central Expenses,Central Expenses,Insurance Claims,80019389,EASTHAMS SOLICITORS,"1,000.00",24/08/2018,
Central Expenses,Central Expenses,Insurance Claims,80019415,REDACTED - PERSONAL DATA,99.00,31/08/2018,
Central Expenses,Central Expenses,Insurance Claims,80019420,REDACTED - PERSONAL DATA,104.99,31/08/2018,
Central Expenses,Central Expenses,Insurance Claims,80019423,REDACTED - PERSONAL DATA,138.00,31/08/2018,
Central Expenses,Central Expenses,Insurance Claims,80019435,ACC' GENERAL OF SENIOR COURTS,"13,649.26",31/08/2018,
Central Expenses,Central Expenses,Grant Payments,60112152,LONDON BOROUGH OF EALING,"35,000.00",28/08/2018,
Commercial,Customer Support Group,Building Repairs & Maintenance,60110327,LEE SECURITY LONDON LIMITED,832.00,03/08/2018,
Commercial,Customer Support Group,Building Repairs & Maintenance,60102127,RGE SERVICES,252.51,08/08/2018,
Commercial,Customer Support Group,Building Repairs & Maintenance,60102135,RGE SERVICES,113.73,03/08/2018,
Commercial,Customer Support Group,Building Repairs & Maintenance,60104631,RGE SERVICES,94.05,03/08/2018,
Commercial,Customer Support Group,Building Repairs & Maintenance,60104663,RGE SERVICES,763.88,21/08/2018,
Commercial,Customer Support Group,Building Repairs & Maintenance,60104746,RGE SERVICES,179.57,03/08/2018,
Commercial,Customer Support Group,Building Repairs & Maintenance,60110922,RGE SERVICES,597.24,29/08/2018,
Commercial,Customer Support Group,Building Repairs & Maintenance,60016288,AJS LTD,99.00,01/08/2018,
Commercial,Customer Support Group,Building Repairs & Maintenance,60109220,AJS LTD,29.72,06/08/2018,
Commercial,Customer Support Group,Building Repairs & Maintenance,60109545,THAMES LABORATORIES,250.00,16/08/2018,
Commercial,Customer Support Group,Building Repairs & Maintenance,60109679,THAMES LABORATORIES,550.00,16/08/2018,
Commercial,Customer Support Group,Building Repairs & Maintenance,60109680,THAMES LABORATORIES,400.00,16/08/2018,
Commercial,Customer Support Group,Building Repairs & Maintenance,60098718,HERTEL (UK) LTD,179.55,01/08/2018,
Commercial,Customer Support Group,Building Repairs & Maintenance,60102107,RGE SERVICES,655.26,01/08/2018,
Commercial,Customer Support Group,Building Repairs & Maintenance,60104668,RGE SERVICES,140.29,21/08/2018,
Commercial,Customer Support Group,Building Repairs & Maintenance,60104679,RGE SERVICES,298.43,21/08/2018,
Commercial,Customer Support Group,Building Repairs & Maintenance,60104696,RGE SERVICES,790.89,03/08/2018,
Commercial,Customer Support Group,Building Repairs & Maintenance,60104724,RGE SERVICES,"5,204.12",08/08/2018,
Commercial,Customer Support Group,Building Repairs & Maintenance,60110732,RGE SERVICES,58.14,29/08/2018,
Commercial,Customer Support Group,Building Repairs & Maintenance,60110747,RGE SERVICES,548.96,29/08/2018,
Commercial,Customer Support Group,Building Repairs & Maintenance,60110832,RGE SERVICES,171.01,29/08/2018,
Commercial,Customer Support Group,Building Repairs & Maintenance,60111297,RGE SERVICES,42.76,14/08/2018,
Commercial,Customer Support Group,Building Repairs & Maintenance,60111388,RGE SERVICES,65.00,16/08/2018,
Commercial,Customer Support Group,Building Repairs & Maintenance,60111853,RGE SERVICES,92.57,28/08/2018,
Commercial,Customer Support Group,Building Repairs & Maintenance,60112058,RGE SERVICES,427.60,24/08/2018,
Commercial,Customer Support Group,Building Repairs & Maintenance,10014179,AJS LTD,258.75,08/08/2018,
Commercial,Customer Support Group,Building Repairs & Maintenance,60111341,THAMES LABORATORIES,675.00,29/08/2018,
Commercial,Customer Support Group,Building Repairs & Maintenance,60110998,AJS LTD,32.00,08/08/2018,
Commercial,Customer Support Group,Cleaning and domestic material,60110790,CHURCHILL CONTRACT SERVICES,"1,032.37",31/08/2018,
Commercial,Customer Support Group,Training,60111626,SKILLS TRAINING CENTRE LTD,255.00,17/08/2018,
Commercial,Customer Support Group,Building Repairs & Maintenance,60110683,RGE SERVICES,65.00,07/08/2018,
Commercial,Customer Support Group,Building Repairs & Maintenance,60111367,RGE SERVICES,123.93,16/08/2018,
Commercial,Customer Support Group,Building Repairs & Maintenance,60111410,RGE SERVICES,122.49,16/08/2018,
Commercial,Customer Support Group,Building Repairs & Maintenance,60111926,RGE SERVICES,109.50,28/08/2018,
Commercial,Customer Support Group,Building Repairs & Maintenance,60111953,RGE SERVICES,162.50,24/08/2018,
Commercial,Customer Support Group,Building Repairs & Maintenance,60110023,AJS LTD,64.00,01/08/2018,
Commercial,Customer Support Group,Building Repairs & Maintenance,60110049,AJS LTD,128.00,01/08/2018,
Commercial,Customer Support Group,Building Repairs & Maintenance,60110142,AJS LTD,128.02,01/08/2018,
Commercial,Customer Support Group,Building Repairs & Maintenance,60110514,S W BRUCE & CO LTD,448.63,23/08/2018,
Commercial,Customer Support Group,Building Repairs & Maintenance,60110907,S W BRUCE & CO LTD,25.00,29/08/2018,
Commercial,Customer Support Group,Building Repairs & Maintenance,60111568,LIFT & ENGINEERING SERVICES LTD,145.00,29/08/2018,
Commercial,Customer Support Group,Gas,60108827,KENT COUNTY COUNCIL (KCS),"2,228.55",06/08/2018,
Commercial,Customer Support Group,Electricity,60109271,KENT COUNTY COUNCIL (KCS),"4,726.07",15/08/2018,
Commercial,Customer Support Group,Water Services,10014181,AFFINITY WATER LIMITED,530.99,08/08/2018,
Commercial,Customer Support Group,Water Services,60111285,AFFINITY WATER LIMITED,620.54,21/08/2018,
Commercial,Customer Support Group,Water Services,10014184,ANGEL SPRINGS LTD,390.00,08/08/2018,
Commercial,Customer Support Group,Water Services,60111197,ANGEL SPRINGS LTD,552.00,29/08/2018,
Commercial,Customer Support Group,Water Services,60112081,ANGEL SPRINGS LTD,674.85,29/08/2018,
Commercial,Customer Support Group,Water Services,60111589,CASTLE WATER LTD,987.53,23/08/2018,
Commercial,Customer Support Group,Cleaning and domestic material,60111198,HERTFORDSHIRE COUNTY COUNCIL,"3,259.85",16/08/2018,
Commercial,Customer Support Group,Rubbish Collection,60111305,PREMIER SHREDDING,50.00,14/08/2018,
Commercial,Customer Support Group,Furniture-Purchase-Repair,60110946,C.E.S.,149.17,09/08/2018,
Commercial,Customer Support Group,Furniture-Purchase-Repair,60110538,SCREWFIX DIRECT LTD,69.77,09/08/2018,
Commercial,Customer Support Group,Furniture-Purchase-Repair,60111156,SCREWFIX DIRECT LTD,37.50,14/08/2018,
Commercial,Customer Support Group,Furniture-Purchase-Repair,60110872,WAGSTAFF INTERIORS GROUP,310.00,28/08/2018,
Commercial,Customer Support Group,Other Services,60110961,BLUE 9 SECURITY LIMITED,"25,507.53",09/08/2018,
Commercial,Customer Support Group,Telephones Calls,60112272,BRITISH TELECOM PLC,115.66,31/08/2018,
Commercial,Customer Support Group,Building Repairs & Maintenance,60112369,S W BRUCE & CO LTD,849.09,31/08/2018,
Commercial,Customer Support Group,Water Services,60111167,ANGEL SPRINGS LTD,194.20,29/08/2018,
Commercial,Customer Support Group,Cleaning and domestic material,60110792,CHURCHILL CONTRACT SERVICES,"1,133.45",31/08/2018,
Commercial,Customer Support Group,Equipment and Materials Purcha,60108388,EVAC & CHAIR INTERNATIONAL LTD,90.00,02/08/2018,
Commercial,Customer Support Group,Books-CDs-Audio-Video,60108033,SM ELECTRICAL SERVICES,500.00,08/08/2018,
Commercial,Customer Support Group,Other Services,60110981,BLUE 9 SECURITY LIMITED,"6,371.51",09/08/2018,
Commercial,Customer Support Group,Building Repairs & Maintenance,60111361,OAKRAY LIMITED,168.75,15/08/2018,
Commercial,Customer Support Group,Building Repairs & Maintenance,60112201,RGE SERVICES,130.00,29/08/2018,
Commercial,Customer Support Group,Electricity,60109763,KENT COUNTY COUNCIL (KCS),"1,254.97",07/08/2018,
Commercial,Customer Support Group,Water Services,60111543,CASTLE WATER LTD,58.51,21/08/2018,
Commercial,Customer Support Group,Water Services,60111546,CASTLE WATER LTD,120.21,17/08/2018,
Commercial,Customer Support Group,Training,60108617,EVAC & CHAIR INTERNATIONAL LTD,405.00,02/08/2018,
Commercial,Customer Support Group,Training,60111627,SKILLS TRAINING CENTRE LTD,510.00,17/08/2018,
Commercial,Customer Support Group,Building Repairs & Maintenance,60108717,OAKRAY LIMITED,"3,968.00",07/08/2018,
Commercial,Customer Support Group,Building Repairs & Maintenance,60111404,RGE SERVICES,130.00,15/08/2018,
Commercial,Customer Support Group,Building Repairs & Maintenance,60111412,RGE SERVICES,65.00,15/08/2018,
Commercial,Customer Support Group,Building Repairs & Maintenance,60112168,RGE SERVICES,65.00,29/08/2018,
Commercial,Customer Support Group,Service Charges,60110371,MIDDLESEX UNIVERSITY,"32,394.87",02/08/2018,
Commercial,Customer Support Group,Water Services,60109203,2468 LTD,"2,688.48",06/08/2018,
Commercial,Customer Support Group,Water Services,60111651,2468 LTD,448.08,20/08/2018,
Commercial,Customer Support Group,Cleaning and domestic material,60111159,HERTFORDSHIRE COUNTY COUNCIL,"2,338.82",13/08/2018,
Commercial,Customer Support Group,Rubbish Collection,60105853,PEARCE RECYCLING CO. LTD,119.50,10/08/2018,
Commercial,Customer Support Group,Rubbish Collection,60111343,PREMIER SHREDDING,55.00,14/08/2018,
Commercial,Customer Support Group,Rubbish Collection,60111348,PREMIER SHREDDING,50.00,14/08/2018,
Commercial,Customer Support Group,Equipment and Materials Purcha,60109663,BRITA WATER FILTER SYSTEMS LIMITED,216.85,16/08/2018,
Commercial,Customer Support Group,Furniture-Purchase-Repair,60110539,LYCO DIRECT LTD,66.17,28/08/2018,
Commercial,Customer Support Group,Furniture-Purchase-Repair,60110955,LYCO DIRECT LTD,58.32,31/08/2018,
Commercial,Customer Support Group,Furniture-Purchase-Repair,60110188,SCREWFIX DIRECT LTD,26.59,06/08/2018,
Commercial,Customer Support Group,Publications,10014173,TV LICENSING,150.50,03/08/2018,
Commercial,Customer Support Group,Other Services,60110970,BLUE 9 SECURITY LIMITED,"11,584.08",09/08/2018,
Commercial,Customer Support Group,Building Repairs & Maintenance,60111409,RGE SERVICES,98.08,16/08/2018,
Commercial,Customer Support Group,Cleaning and domestic material,60112054,CHURCHILL CONTRACT SERVICES,500.00,28/08/2018,
Commercial,Customer Support Group,CSG Services Contract Payment,60111385,CAPITA BUSINESS SERVICES LTD,"34,690.00",16/08/2018,
Commercial,Customer Support Group,CSG Services Contract Payment,60111417,CAPITA BUSINESS SERVICES LTD,"81,708.51",16/08/2018,
Commercial,Customer Support Group,CSG Services Contract Payment,60111720,CAPITA BUSINESS SERVICES LTD,"34,436.03",28/08/2018,
Commercial,Customer Support Group,CSG Services Contract Payment,60109190,CAPITA BUSINESS SERVICES LTD,"33,183.17",06/08/2018,
Commercial,Customer Support Group,CSG Services Contract Payment,60109255,CAPITA BUSINESS SERVICES LTD,"14,620.25",06/08/2018,
Commercial,Customer Support Group,CSG Services Contract Payment,60111383,CAPITA BUSINESS SERVICES LTD,"12,273.85",28/08/2018,
Commercial,Customer Support Group,CSG Services Contract Payment,60111413,CAPITA BUSINESS SERVICES LTD,"32,826.57",28/08/2018,
Commercial,Customer Support Group,CSG Services Contract Payment,60111751,CAPITA BUSINESS SERVICES LTD,"23,803.84",28/08/2018,
Commercial,Customer Support Group,Fees and Charges,80019059,REDACTED - PERSONAL DATA,700.00,06/08/2018,
Commercial,Customer Support Group,Building Repairs & Maintenance,60108642,OAKRAY LIMITED,"1,409.00",07/08/2018,
Commercial,Customer Support Group,Building Repairs & Maintenance,60108669,OAKRAY LIMITED,145.59,08/08/2018,
Commercial,Customer Support Group,Building Repairs & Maintenance,60108716,OAKRAY LIMITED,"1,410.00",07/08/2018,
Commercial,Customer Support Group,Building Repairs & Maintenance,60109415,OAKRAY LIMITED,288.00,06/08/2018,
Commercial,Customer Support Group,Building Repairs & Maintenance,60110157,OAKRAY LIMITED,64.00,06/08/2018,
Commercial,Customer Support Group,Building Repairs & Maintenance,60110611,OAKRAY LIMITED,27.00,06/08/2018,
Commercial,Customer Support Group,Building Repairs & Maintenance,60111363,OAKRAY LIMITED,189.00,15/08/2018,
Commercial,Customer Support Group,Building Repairs & Maintenance,60111368,OAKRAY LIMITED,189.00,15/08/2018,
Commercial,Customer Support Group,Building Repairs & Maintenance,60111405,OAKRAY LIMITED,183.60,15/08/2018,
Commercial,Customer Support Group,Building Repairs & Maintenance,60112456,OAKRAY LIMITED,337.50,31/08/2018,
Commercial,Customer Support Group,Building Repairs & Maintenance,60112459,OAKRAY LIMITED,280.13,31/08/2018,
Commercial,Customer Support Group,Building Repairs & Maintenance,60112472,OAKRAY LIMITED,320.63,31/08/2018,
Commercial,Customer Support Group,Building Repairs & Maintenance,60112479,OAKRAY LIMITED,374.63,31/08/2018,
Commercial,Customer Support Group,Building Repairs & Maintenance,60112490,OAKRAY LIMITED,368.55,31/08/2018,
Commercial,Customer Support Group,Building Repairs & Maintenance,60112505,OAKRAY LIMITED,425.25,31/08/2018,
Commercial,Customer Support Group,Building Repairs & Maintenance,60110703,ADAMS ENVIRONMENTAL LTD,500.00,06/08/2018,
Commercial,Customer Support Group,Building Repairs & Maintenance,60111161,ADAMS ENVIRONMENTAL LTD,650.00,29/08/2018,
Commercial,Customer Support Group,Building Repairs & Maintenance,60111699,ADAMS ENVIRONMENTAL LTD,500.00,21/08/2018,
Commercial,Customer Support Group,Building Repairs & Maintenance,60111714,ADAMS ENVIRONMENTAL LTD,500.00,21/08/2018,
Commercial,Customer Support Group,Building Repairs & Maintenance,60111734,ADAMS ENVIRONMENTAL LTD,600.00,21/08/2018,
Commercial,Customer Support Group,Building Repairs & Maintenance,60110090,LEE SECURITY LONDON LIMITED,99.00,01/08/2018,
Commercial,Customer Support Group,Building Repairs & Maintenance,60110354,LEE SECURITY LONDON LIMITED,99.00,03/08/2018,
Commercial,Customer Support Group,Building Repairs & Maintenance,60102697,TANN SYNCHRONOME LTD,"7,816.02",23/08/2018,
Commercial,Customer Support Group,Building Repairs & Maintenance,60110557,T.&.D.BARRS,223.72,07/08/2018,
Commercial,Customer Support Group,Building Repairs & Maintenance,60110576,T.&.D.BARRS,230.48,07/08/2018,
Commercial,Customer Support Group,Building Repairs & Maintenance,60110618,T.&.D.BARRS,137.02,07/08/2018,
Commercial,Customer Support Group,Building Repairs & Maintenance,60110623,T.&.D.BARRS,63.92,07/08/2018,
Commercial,Customer Support Group,Building Repairs & Maintenance,60110873,T.&.D.BARRS,102.00,23/08/2018,
Commercial,Customer Support Group,Building Repairs & Maintenance,60110904,T.&.D.BARRS,280.50,23/08/2018,
Commercial,Customer Support Group,Building Repairs & Maintenance,60110906,T.&.D.BARRS,365.50,23/08/2018,
Commercial,Customer Support Group,Building Repairs & Maintenance,60110911,T.&.D.BARRS,272.00,23/08/2018,
Commercial,Customer Support Group,Building Repairs & Maintenance,60110917,T.&.D.BARRS,187.00,23/08/2018,
Commercial,Customer Support Group,Building Repairs & Maintenance,60110920,T.&.D.BARRS,297.50,23/08/2018,
Commercial,Customer Support Group,Building Repairs & Maintenance,60110924,T.&.D.BARRS,399.50,23/08/2018,
Commercial,Customer Support Group,Building Repairs & Maintenance,60110930,T.&.D.BARRS,274.05,23/08/2018,
Commercial,Customer Support Group,Building Repairs & Maintenance,60110952,T.&.D.BARRS,204.00,23/08/2018,
Commercial,Customer Support Group,Building Repairs & Maintenance,60110995,T.&.D.BARRS,278.80,23/08/2018,
Commercial,Customer Support Group,Building Repairs & Maintenance,60111005,T.&.D.BARRS,85.00,23/08/2018,
Commercial,Customer Support Group,Building Repairs & Maintenance,60111683,BUSH WHEELER SERVICES LIMITED,"3,400.00",21/08/2018,
Commercial,Customer Support Group,Building Repairs & Maintenance,60104733,RGE SERVICES,345.41,08/08/2018,
Commercial,Customer Support Group,Building Repairs & Maintenance,60109081,RGE SERVICES,900.36,09/08/2018,
Commercial,Customer Support Group,Building Repairs & Maintenance,60109151,RGE SERVICES,65.00,09/08/2018,
Commercial,Customer Support Group,Building Repairs & Maintenance,60109607,RGE SERVICES,97.50,09/08/2018,
Commercial,Customer Support Group,Building Repairs & Maintenance,60110547,RGE SERVICES,65.00,07/08/2018,
Commercial,Customer Support Group,Building Repairs & Maintenance,60110605,RGE SERVICES,65.00,07/08/2018,
Commercial,Customer Support Group,Building Repairs & Maintenance,60110677,RGE SERVICES,65.00,07/08/2018,
Commercial,Customer Support Group,Building Repairs & Maintenance,60111271,RGE SERVICES,65.00,14/08/2018,
Commercial,Customer Support Group,Building Repairs & Maintenance,60111339,RGE SERVICES,47.03,14/08/2018,
Commercial,Customer Support Group,Building Repairs & Maintenance,60111351,RGE SERVICES,574.33,14/08/2018,
Commercial,Customer Support Group,Building Repairs & Maintenance,60111354,RGE SERVICES,65.00,14/08/2018,
Commercial,Customer Support Group,Building Repairs & Maintenance,60111360,RGE SERVICES,70.90,14/08/2018,
Commercial,Customer Support Group,Building Repairs & Maintenance,60111371,RGE SERVICES,173.48,15/08/2018,
Commercial,Customer Support Group,Building Repairs & Maintenance,60111390,RGE SERVICES,421.72,21/08/2018,
Commercial,Customer Support Group,Building Repairs & Maintenance,60111396,RGE SERVICES,95.06,15/08/2018,
Commercial,Customer Support Group,Building Repairs & Maintenance,60111407,RGE SERVICES,120.06,16/08/2018,
Commercial,Customer Support Group,Building Repairs & Maintenance,60111419,RGE SERVICES,97.50,16/08/2018,
Commercial,Customer Support Group,Building Repairs & Maintenance,60111900,RGE SERVICES,282.26,24/08/2018,
Commercial,Customer Support Group,Building Repairs & Maintenance,60108124,DOORWAY-MAINTENANCE CO.,160.00,01/08/2018,
Commercial,Customer Support Group,Building Repairs & Maintenance,60110122,WATES LIVING SPACE,267.19,16/08/2018,
Commercial,Customer Support Group,Building Repairs & Maintenance,60104876,S W BRUCE & CO LTD,"4,380.10",20/08/2018,
Commercial,Customer Support Group,Building Repairs & Maintenance,60104940,S W BRUCE & CO LTD,"8,064.88",23/08/2018,
Commercial,Customer Support Group,Building Repairs & Maintenance,60110167,S W BRUCE & CO LTD,162.00,23/08/2018,
Commercial,Customer Support Group,Building Repairs & Maintenance,60110182,S W BRUCE & CO LTD,136.00,23/08/2018,
Commercial,Customer Support Group,Building Repairs & Maintenance,60110226,S W BRUCE & CO LTD,98.00,23/08/2018,
Commercial,Customer Support Group,Building Repairs & Maintenance,60110238,S W BRUCE & CO LTD,25.00,23/08/2018,
Commercial,Customer Support Group,Building Repairs & Maintenance,60110934,S W BRUCE & CO LTD,98.53,29/08/2018,
Commercial,Customer Support Group,Building Repairs & Maintenance,60110963,S W BRUCE & CO LTD,92.58,29/08/2018,
Commercial,Customer Support Group,Building Repairs & Maintenance,60110978,S W BRUCE & CO LTD,101.70,29/08/2018,
Commercial,Customer Support Group,Building Repairs & Maintenance,60111454,PICKERINGS LIFTS LTD,135.00,16/08/2018,
Commercial,Customer Support Group,Building Repairs & Maintenance,60111455,PICKERINGS LIFTS LTD,720.00,29/08/2018,
Commercial,Customer Support Group,Building Repairs & Maintenance,60111460,PICKERINGS LIFTS LTD,379.17,20/08/2018,
Commercial,Customer Support Group,Building Repairs & Maintenance,60111470,PICKERINGS LIFTS LTD,762.00,16/08/2018,
Commercial,Customer Support Group,Building Repairs & Maintenance,60111475,PICKERINGS LIFTS LTD,291.67,15/08/2018,
Commercial,Customer Support Group,Building Repairs & Maintenance,60111518,PICKERINGS LIFTS LTD,81.25,29/08/2018,
Commercial,Customer Support Group,Building Repairs & Maintenance,60111531,PICKERINGS LIFTS LTD,378.00,16/08/2018,
Commercial,Customer Support Group,Gas,60108651,KENT COUNTY COUNCIL (KCS),98.51,15/08/2018,
Commercial,Customer Support Group,Gas,60109200,KENT COUNTY COUNCIL (KCS),117.90,01/08/2018,
Commercial,Customer Support Group,Gas,60109250,KENT COUNTY COUNCIL (KCS),91.06,02/08/2018,
Commercial,Customer Support Group,Gas,60111653,KENT COUNTY COUNCIL (KCS),150.95,31/08/2018,
Commercial,Customer Support Group,Gas,60111657,KENT COUNTY COUNCIL (KCS),104.27,31/08/2018,
Commercial,Customer Support Group,Gas,60111660,KENT COUNTY COUNCIL (KCS),109.35,31/08/2018,
Commercial,Customer Support Group,Gas,60111664,KENT COUNTY COUNCIL (KCS),86.73,31/08/2018,
Commercial,Customer Support Group,Gas,60111669,KENT COUNTY COUNCIL (KCS),297.38,31/08/2018,
Commercial,Customer Support Group,Gas,60111681,KENT COUNTY COUNCIL (KCS),126.11,31/08/2018,
Commercial,Customer Support Group,Gas,60111821,KENT COUNTY COUNCIL (KCS),8.35,31/08/2018,
Commercial,Customer Support Group,Gas,60111993,KENT COUNTY COUNCIL (KCS),222.50,24/08/2018,
Commercial,Customer Support Group,Gas,60112137,KENT COUNTY COUNCIL (KCS),653.59,29/08/2018,
Commercial,Customer Support Group,Gas,60112161,KENT COUNTY COUNCIL (KCS),293.04,29/08/2018,
Commercial,Customer Support Group,Gas,60112246,KENT COUNTY COUNCIL (KCS),263.59,29/08/2018,
Commercial,Customer Support Group,Gas,60112294,KENT COUNTY COUNCIL (KCS),117.42,31/08/2018,
Commercial,Customer Support Group,Gas,60111755,BRITISH GAS BUSINESS,80.43,24/08/2018,
Commercial,Customer Support Group,Gas,60111757,BRITISH GAS BUSINESS,74.93,24/08/2018,
Commercial,Customer Support Group,Gas,60111763,BRITISH GAS BUSINESS,99.91,24/08/2018,
Commercial,Customer Support Group,Gas,60111773,BRITISH GAS BUSINESS,77.60,23/08/2018,
Commercial,Customer Support Group,Gas,60111795,BRITISH GAS BUSINESS,84.35,24/08/2018,
Commercial,Customer Support Group,Gas,60111796,BRITISH GAS BUSINESS,97.60,23/08/2018,
Commercial,Customer Support Group,Gas,60111798,BRITISH GAS BUSINESS,80.43,24/08/2018,
Commercial,Customer Support Group,Gas,60111805,BRITISH GAS BUSINESS,89.39,23/08/2018,
Commercial,Customer Support Group,Gas,60111812,BRITISH GAS BUSINESS,83.66,23/08/2018,
Commercial,Customer Support Group,Gas,60111814,BRITISH GAS BUSINESS,83.57,23/08/2018,
Commercial,Customer Support Group,Gas,60111437,TOTAL GAS & POWER LTD,586.36,15/08/2018,
Commercial,Customer Support Group,Electricity,60108872,KENT COUNTY COUNCIL (KCS),"1,479.16",01/08/2018,
Commercial,Customer Support Group,Electricity,60108941,KENT COUNTY COUNCIL (KCS),216.42,15/08/2018,
Commercial,Customer Support Group,Electricity,60109240,KENT COUNTY COUNCIL (KCS),315.25,02/08/2018,
Commercial,Customer Support Group,Electricity,60109246,KENT COUNTY COUNCIL (KCS),201.87,02/08/2018,
Commercial,Customer Support Group,Electricity,60109253,KENT COUNTY COUNCIL (KCS),45.32,02/08/2018,
Commercial,Customer Support Group,Electricity,60109338,KENT COUNTY COUNCIL (KCS),410.83,03/08/2018,
Commercial,Customer Support Group,Electricity,60109361,KENT COUNTY COUNCIL (KCS),764.15,01/08/2018,
Commercial,Customer Support Group,Electricity,60109444,KENT COUNTY COUNCIL (KCS),71.58,03/08/2018,
Commercial,Customer Support Group,Electricity,60109500,KENT COUNTY COUNCIL (KCS),358.76,06/08/2018,
Commercial,Customer Support Group,Electricity,60109958,KENT COUNTY COUNCIL (KCS),"1,106.81",02/08/2018,
Commercial,Customer Support Group,Electricity,10014210,E-ON ENERGY,109.42,24/08/2018,
Commercial,Customer Support Group,Electricity,10014212,E-ON ENERGY,27.94,23/08/2018,
Commercial,Customer Support Group,Electricity,60111571,E-ON ENERGY,22.40,17/08/2018,
Commercial,Customer Support Group,Electricity,60112107,E-ON ENERGY,26.57,24/08/2018,
Commercial,Customer Support Group,Electricity,60112180,E-ON ENERGY,329.43,29/08/2018,
Commercial,Customer Support Group,Electricity,60112183,E-ON ENERGY,350.30,29/08/2018,
Commercial,Customer Support Group,Electricity,60112292,E-ON ENERGY,228.34,31/08/2018,
Commercial,Customer Support Group,Electricity,60110713,BRITISH GAS BUSINESS(ELEC),82.48,06/08/2018,
Commercial,Customer Support Group,Water Services,60112179,AFFINITY WATER LIMITED,15.60,29/08/2018,
Commercial,Customer Support Group,Water Services,60109507,CASTLE WATER LTD,41.23,06/08/2018,
Commercial,Customer Support Group,Water Services,60109622,CASTLE WATER LTD,40.38,06/08/2018,
Commercial,Customer Support Group,Water Services,60110158,CASTLE WATER LTD,37.19,02/08/2018,
Commercial,Customer Support Group,Water Services,60110194,CASTLE WATER LTD,33.39,02/08/2018,
Commercial,Customer Support Group,Water Services,60110949,CASTLE WATER LTD,28.12,08/08/2018,
Commercial,Customer Support Group,Water Services,60111532,CASTLE WATER LTD,40.55,16/08/2018,
Commercial,Customer Support Group,Water Services,60111562,CASTLE WATER LTD,63.96,23/08/2018,
Commercial,Customer Support Group,Water Services,60111585,CASTLE WATER LTD,49.89,21/08/2018,
Commercial,Customer Support Group,Water Services,60111615,CASTLE WATER LTD,28.93,21/08/2018,
Commercial,Customer Support Group,Water Services,60111726,CASTLE WATER LTD,43.15,21/08/2018,
Commercial,Customer Support Group,Water Services,60111852,CASTLE WATER LTD,39.92,24/08/2018,
Commercial,Customer Support Group,Water Services,60112392,CASTLE WATER LTD,29.21,31/08/2018,
Commercial,Customer Support Group,Cleaning and domestic material,60103811,CHURCHILL CONTRACT SERVICES,658.45,01/08/2018,
Commercial,Customer Support Group,Equipment and Materials Purcha,60108685,OAKRAY LIMITED,"2,721.00",07/08/2018,
Commercial,Customer Support Group,Equipment and Materials Purcha,60111130,INTEGRATED WATER SERVICES LTD,75.00,23/08/2018,
Commercial,Customer Support Group,Consultants Fees,60110987,GVA GRIMLEY LTD,"5,500.00",08/08/2018,
Commercial,Customer Support Group,Consultants Fees,60111501,EPC ASSURE LTD,"1,386.00",15/08/2018,
Commercial,Customer Support Group,Other Services,60111155,BLUE 9 SECURITY LIMITED,120.87,13/08/2018,
Commercial,Customer Support Group,Other Services,60111208,BLUE 9 SECURITY LIMITED,201.45,13/08/2018,
Commercial,Customer Support Group,Other Services,60111229,BLUE 9 SECURITY LIMITED,53.72,13/08/2018,
Commercial,Customer Support Group,Other Services,60111283,BLUE 9 SECURITY LIMITED,62.28,16/08/2018,
Commercial,Customer Support Group,Other Services,60111689,LONDON CARETAKERS,280.00,22/08/2018,
Commercial,Customer Support Group,Other Services,60111747,LONDON CARETAKERS,280.00,22/08/2018,
Commercial,Customer Support Group,Ttl IT & Comms,60112031,VODAFONE LTD (BILLS ONLY),386.58,24/08/2018,
Commercial,Customer Support Group,Ttl IT & Comms,60110984,TELEFONICA UK LTD,74.79,09/08/2018,
Commercial,Customer Support Group,Ttl IT & Comms,60112202,TELEFONICA UK LTD,60.00,29/08/2018,
Commercial,Customer Support Group,Ttl IT & Comms,60112203,TELEFONICA UK LTD,60.00,29/08/2018,
Commercial,Customer Support Group,Ttl IT & Comms,60112208,TELEFONICA UK LTD,60.00,29/08/2018,
Commercial,Customer Support Group,Other Services,20037709,LOOMIS UK LIMITED,942.22,13/08/2018,
Commercial,Customer Support Group,Other Services,20037802,LOOMIS UK LIMITED,100.00,14/08/2018,
Commercial,Customer Support Group,Postage,60109466,OFF THE WALL MARKETING LTD,"1,102.00",02/08/2018,
Commercial,Customer Support Group,Postage,60109874,OFF THE WALL MARKETING LTD,92.76,06/08/2018,
Commercial,Customer Support Group,Postage,60109960,OFF THE WALL MARKETING LTD,95.00,06/08/2018,
Commercial,Customer Support Group,Postage,60112256,PARAGON GROUP UK LIMITED,265.00,31/08/2018,
Commercial,Customer Support Group,Building Repairs & Maintenance,60111290,FRONTIER-PITTS LTD,716.00,14/08/2018,
Commercial,Customer Support Group,Gas,60109318,KENT COUNTY COUNCIL (KCS),310.63,06/08/2018,
Commercial,Customer Support Group,Electricity,60109309,KENT COUNTY COUNCIL (KCS),"1,569.30",15/08/2018,
Commercial,Customer Support Group,Water Services,60111175,ANGEL SPRINGS LTD,124.00,29/08/2018,
Commercial,Customer Support Group,Cleaning and domestic material,60111202,HERTFORDSHIRE COUNTY COUNCIL,345.38,13/08/2018,
Commercial,Customer Support Group,Rubbish Collection,60111327,PEARCE RECYCLING CO. LTD,109.50,29/08/2018,
Commercial,Customer Support Group,Equipment and Materials Purcha,60111182,HERTFORDSHIRE COUNTY COUNCIL,185.08,13/08/2018,
Commercial,Customer Support Group,Furniture-Purchase-Repair,60108505,LYCO DIRECT LTD,43.87,02/08/2018,
Commercial,Customer Support Group,Other Services,60110901,BLUE 9 SECURITY LIMITED,"22,773.84",09/08/2018,
Commercial,Customer Support Group,CSG Services Contract Payment,60109228,CAPITA BUSINESS SERVICES LTD,"14,556.32",06/08/2018,
Commercial,Customer Support Group,Building Repairs & Maintenance,60094075,OAKRAY LIMITED,"1,456.42",31/08/2018,
Commercial,Customer Support Group,Building Repairs & Maintenance,60102106,RGE SERVICES,649.43,03/08/2018,
Commercial,Customer Support Group,Building Repairs & Maintenance,60111391,RGE SERVICES,"2,848.63",15/08/2018,
Commercial,Customer Support Group,Building Repairs & Maintenance,60111989,RGE SERVICES,282.16,24/08/2018,
Commercial,Customer Support Group,Building Repairs & Maintenance,60105739,OAKRAY LIMITED,309.80,31/08/2018,
Commercial,Customer Support Group,Building Repairs & Maintenance,60110191,LEE SECURITY LONDON LIMITED,198.00,02/08/2018,
Commercial,Customer Support Group,Building Repairs & Maintenance,60110259,LEE SECURITY LONDON LIMITED,8.00,02/08/2018,
Commercial,Customer Support Group,Building Repairs & Maintenance,60110339,LEE SECURITY LONDON LIMITED,"1,764.00",08/08/2018,
Commercial,Customer Support Group,Building Repairs & Maintenance,60110390,LEE SECURITY LONDON LIMITED,362.00,03/08/2018,
Commercial,Customer Support Group,Building Repairs & Maintenance,60104702,RGE SERVICES,289.50,21/08/2018,
Commercial,Customer Support Group,Building Repairs & Maintenance,60110986,RGE SERVICES,286.04,08/08/2018,
Commercial,Customer Support Group,Building Repairs & Maintenance,60111951,RGE SERVICES,470.40,28/08/2018,
Commercial,Customer Support Group,Building Repairs & Maintenance,60111959,RGE SERVICES,293.58,24/08/2018,
Commercial,Customer Support Group,Building Repairs & Maintenance,60111975,RGE SERVICES,241.46,24/08/2018,
Commercial,Customer Support Group,Building Repairs & Maintenance,60111997,RGE SERVICES,343.57,24/08/2018,
Commercial,Customer Support Group,Building Repairs & Maintenance,60112012,RGE SERVICES,330.61,24/08/2018,
Commercial,Customer Support Group,Building Repairs & Maintenance,60112065,RGE SERVICES,579.92,28/08/2018,
Commercial,Customer Support Group,Building Repairs & Maintenance,60112080,RGE SERVICES,315.70,24/08/2018,
Commercial,Customer Support Group,Building Repairs & Maintenance,60112087,RGE SERVICES,530.93,28/08/2018,
Commercial,Customer Support Group,Building Repairs & Maintenance,60110781,DOORWAY-MAINTENANCE CO.,241.20,10/08/2018,
Commercial,Customer Support Group,Building Repairs & Maintenance,60111435,DOORWAY-MAINTENANCE CO.,140.00,15/08/2018,
Commercial,Customer Support Group,Building Repairs & Maintenance,60111919,WATES LIVING SPACE,35.63,24/08/2018,
Commercial,Customer Support Group,Building Repairs & Maintenance,60109302,S W BRUCE & CO LTD,62.00,06/08/2018,
Commercial,Customer Support Group,Other Services,60111162,BLUE 9 SECURITY LIMITED,"1,012.00",15/08/2018,
Commercial,Customer Support Group,Other Services,60111219,BLUE 9 SECURITY LIMITED,"11,584.08",15/08/2018,
Commercial,Customer Support Group,Other Services,60111706,BLUE 9 SECURITY LIMITED,"2,184.85",31/08/2018,
Commercial,Housing Needs Resources,Other Services,60110431,THE BARNETGROUP LIMITED,"278,222.92",02/08/2018,
Commercial,Housing Needs Resources,Other Services,60111295,THE BARNETGROUP LIMITED,"278,222.92",13/08/2018,
Commercial,Housing Needs Resources,Private Contractors - Third Pa,60111334,THE BARNETGROUP LIMITED,"2,280,000.00",13/08/2018,
COMMERCIAL,HOUSING NEEDS RESOURCES,Grant Payments,80018582,REDACTED - PERSONAL DATA,"15,300.00",06/08/2018,
COMMERCIAL,HOUSING NEEDS RESOURCES,Grant Payments,80019048,CARBERRY INVESTMENTS LTD,"11,677.31",06/08/2018,
COMMERCIAL,HOUSING NEEDS RESOURCES,Other Agencies - Third Party P,60110999,THE BARNETGROUP LIMITED,"2,000,000.00",13/08/2018,
COMMERCIAL,HOUSING NEEDS RESOURCES,Other Agencies - Third Party P,60111560,THE BARNETGROUP LIMITED,"1,000,000.00",28/08/2018,
COMMERCIAL,HOUSING REVENUE ACCOUNT,Other Agencies - Third Party P,60110313,THE BARNETGROUP LIMITED,"4,665,207.00",13/08/2018,
COMMERCIAL,HOUSING REVENUE ACCOUNT,Other Agencies - Third Party P,60110993,THE BARNETGROUP LIMITED,"1,613,500.00",13/08/2018,
COMMERCIAL,HOUSING REVENUE ACCOUNT,Other Agencies - Third Party P,60111554,THE BARNETGROUP LIMITED,"3,354,717.30",28/08/2018,
Commercial,HRA,Consultants Fees,60111397,P P C R ASSOCIATES LTD,564.02,16/08/2018,
Commercial,HRA,Consultants Fees,60111398,P P C R ASSOCIATES LTD,40.00,16/08/2018,
Commercial,HRA,Consultants Fees,60111370,TROWERS & HAMLINS,225.00,15/08/2018,
Commercial,HRA,Consultants Fees,60108663,PRIORITY ESTATES PROJECT LTD,"2,863.85",09/08/2018,
Commercial,HRA,Building Repairs & Maintenance,60111315,THE BARNETGROUP LIMITED,"629,166.67",13/08/2018,
Commercial,HRA,Other Services,10014189,THAMES WATER UTILITIES LIMITED,"607,979.87",10/08/2018,
Commercial,HRA,Other Services,60110550,AFFINITY WATER LIMITED,"8,425.48",14/08/2018,
Commercial,HRA,Other Services,60110564,AFFINITY WATER LIMITED,"856,618.44",14/08/2018,
Commercial,HRA,Other Services,60110624,AFFINITY WATER LIMITED,"797,807.61",14/08/2018,
Commercial,HRA,Other Services,60110670,AFFINITY WATER LIMITED,114.53,14/08/2018,
Commercial,HRA,Other Services,60110704,AFFINITY WATER LIMITED,249.28,14/08/2018,
Commercial,HRA,Other Services,60111253,THE BARNETGROUP LIMITED,"470,140.42",13/08/2018,
Commercial,HRA,Electricity,60109911,E-ON ENERGY,15.93,06/08/2018,
Commercial,HRA,Electricity,60111292,E-ON ENERGY,905.30,14/08/2018,
Commercial,HRA,Electricity,60111342,E-ON ENERGY,453.07,14/08/2018,
Commercial,HRA,Electricity,60111345,E-ON ENERGY,346.42,14/08/2018,
Commercial,HRA,Electricity,60111355,E-ON ENERGY,448.59,14/08/2018,
Commercial,HRA,Electricity,60111595,E-ON ENERGY,92.10,17/08/2018,
Commercial,HRA,Electricity,60111612,E-ON ENERGY,7.76,17/08/2018,
Commercial,HRA,Consultants Fees,60111508,SAVILLS (UK) LTD,"6,000.00",15/08/2018,
Commercial,HRA,Other Services,60110393,THE BARNETGROUP LIMITED,"953,444.00",02/08/2018,
Commercial,HRA,Other Services,60111303,THE BARNETGROUP LIMITED,"953,444.00",13/08/2018,
Commercial,HRA,Agency/Interim Non Hays,60095760,CHILD'S HILL BAPTIST CHURCH,240.00,10/08/2018,
Commercial,HRA,Consultants Fees,60111346,TROWERS & HAMLINS,881.50,14/08/2018,
Commercial,HRA,Consultants Fees,60108665,MICROFISH COMMUNICATIONS LTD,"1,173.26",02/08/2018,
Commercial,HRA,Private Contractors - Third Pa,80019427,REDACTED - PERSONAL DATA,"3,500.00",31/08/2018,
Commercial,Parking & Infrastructure,Equipment and Materials Purcha,60104583,GREENHAM TRADING LIMITED,20.48,24/08/2018,
Commercial,Parking & Infrastructure,Equipment and Materials Purcha,60108290,GREENHAM TRADING LIMITED,489.00,02/08/2018,
Commercial,Parking & Infrastructure,Equipment and Materials Purcha,60108295,GREENHAM TRADING LIMITED,68.65,02/08/2018,
Commercial,Parking & Infrastructure,Equipment and Materials Purcha,60108950,GREENHAM TRADING LIMITED,244.50,14/08/2018,
Commercial,Parking & Infrastructure,Equipment and Materials Purcha,60109294,W. FAYERS & SONS,507.36,03/08/2018,
Commercial,Parking & Infrastructure,Equipment and Materials Purcha,60110373,W. FAYERS & SONS,218.94,03/08/2018,
Commercial,Parking & Infrastructure,Equipment and Materials Purcha,60111302,W. FAYERS & SONS,255.43,10/08/2018,
Commercial,Parking & Infrastructure,Equipment and Materials Purcha,60111808,W. FAYERS & SONS,507.36,21/08/2018,
Commercial,Parking & Infrastructure,Equipment and Materials Purcha,60111827,W. FAYERS & SONS,169.12,24/08/2018,
Commercial,Parking & Infrastructure,Equipment and Materials Purcha,60111938,W. FAYERS & SONS,36.49,24/08/2018,
Commercial,Parking & Infrastructure,Equipment and Materials Purcha,60104600,LAFARGE TARMAC TRADING LIMITED,127.84,02/08/2018,
Commercial,Parking & Infrastructure,Equipment and Materials Purcha,60108590,LAFARGE TARMAC TRADING LIMITED,86.60,02/08/2018,
Commercial,Parking & Infrastructure,Equipment and Materials Purcha,60108928,LAFARGE TARMAC TRADING LIMITED,294.87,09/08/2018,
Commercial,Parking & Infrastructure,Equipment and Materials Purcha,60108935,LAFARGE TARMAC TRADING LIMITED,90.73,09/08/2018,
Commercial,Parking & Infrastructure,Equipment and Materials Purcha,60109004,LAFARGE TARMAC TRADING LIMITED,142.28,07/08/2018,
Commercial,Parking & Infrastructure,Equipment and Materials Purcha,60109181,LAFARGE TARMAC TRADING LIMITED,86.60,09/08/2018,
Commercial,Parking & Infrastructure,Equipment and Materials Purcha,60109769,LAFARGE TARMAC TRADING LIMITED,94.85,16/08/2018,
Commercial,Parking & Infrastructure,Equipment and Materials Purcha,60110520,LAFARGE TARMAC TRADING LIMITED,72.17,21/08/2018,
Commercial,Parking & Infrastructure,Equipment and Materials Purcha,60110648,LAFARGE TARMAC TRADING LIMITED,144.34,29/08/2018,
Commercial,Parking & Infrastructure,Equipment and Materials Purcha,60111266,LAFARGE TARMAC TRADING LIMITED,107.22,31/08/2018,
Commercial,Parking & Infrastructure,Other Services,60108630,REDCORN LTD,190.00,02/08/2018,
Commercial,Parking & Infrastructure,Other Services,60108678,REDCORN LTD,285.00,01/08/2018,
Commercial,Parking & Infrastructure,Equipment and Materials Purcha,60104376,CONWAY AECOM LTD,"4,153.94",01/08/2018,
Commercial,Parking & Infrastructure,Professional Services,60110957,NSL LTD,"36,809.16",08/08/2018,
Commercial,Parking & Infrastructure,Other Services,60110045,PARKEON LIMITED,810.00,16/08/2018,
Commercial,Parking & Infrastructure,Other Services,60110087,PARKEON LIMITED,"2,036.80",16/08/2018,
Commercial,Parking & Infrastructure,Other Services,60111955,NSL LTD,"4,944.60",29/08/2018,
Commercial,Parking & Infrastructure,Other Services,60112045,NSL LTD,"3,452.85",28/08/2018,
Commercial,Parking & Infrastructure,Software Licences & Support,60111965,NSL LTD,"10,988.62",29/08/2018,
Commercial,Parking & Infrastructure,Software Licences & Support,60111971,NSL LTD,"37,689.61",29/08/2018,
Commercial,Parking & Infrastructure,Software Licences & Support,60112119,NSL LTD,83.61,29/08/2018,
Commercial,Parking & Infrastructure,Electricity,10014153,BARNET LIGHTING SERVICES LTD,"429,595.11",01/08/2018,
Commercial,Parking & Infrastructure,Electricity,60110502,BARNET LIGHTING SERVICES LTD,"423,038.25",20/08/2018,
Commercial,Parking & Infrastructure,Electricity,60112352,BARNET LIGHTING SERVICES LTD,"430,846.43",31/08/2018,
Commercial,Parking & Infrastructure,Electricity,60108788,BARNET LIGHTING SERVICES LTD,822.29,01/08/2018,
Commercial,Public Health,Consultants Fees,60110701,REDACTED - PERSONAL DATA,"3,856.78",29/08/2018,
Commercial,Public Health,Health authorities - Third Par,60110086,LONDON BOROUGH OF HARROW,"293,197.00",02/08/2018,
Commercial,Public Health,Health authorities - Third Par,60110169,THE DERWENT MEDICAL CENTRE,"1,025.00",23/08/2018,
Commercial,Public Health,Health authorities - Third Par,60110291,OAKLODGE MEDICAL CENTRE,275.00,03/08/2018,
Commercial,Public Health,Health authorities - Third Par,60110199,WOODLANDS MEDICAL PRACTICE,100.00,02/08/2018,
Commercial,Public Health,Health authorities - Third Par,60110254,LONGROVE SURGERY,"1,575.00",06/08/2018,
Commercial,Public Health,Health authorities - Third Par,60110228,THE CLINIC,"1,175.00",02/08/2018,
Commercial,Public Health,Health authorities - Third Par,60110163,MILLWAY MEDICAL PRACTICE,825.00,02/08/2018,
Commercial,Public Health,Health authorities - Third Par,60110213,ST ANDREWS MEDICAL PRACTICE,"1,825.00",02/08/2018,
Commercial,Public Health,Health authorities - Third Par,60110152,THE TEMPLE FORTUNE HEALTH CENTRE,950.00,02/08/2018,
Commercial,Public Health,Health authorities - Third Par,60110189,THE PRACTICE @ 188,"1,025.00",02/08/2018,
Commercial,Public Health,Health authorities - Third Par,60110292,EAST BARNET HEALTH CENTRE,225.00,02/08/2018,
Commercial,Public Health,Health authorities - Third Par,60110231,MOUNTFIELD SURGERY,700.00,06/08/2018,
Commercial,Public Health,Health authorities - Third Par,60110220,MULBERRY MEDICAL PRACTICE,175.00,02/08/2018,
Commercial,Public Health,Health authorities - Third Par,60110203,THE OLD COURTHOUSE SURGERY,825.00,02/08/2018,
Commercial,Public Health,Health authorities - Third Par,60110198,PHGH DOCTORS,775.00,02/08/2018,
Commercial,Public Health,Health authorities - Third Par,60110240,THE SPEEDWELL PRACTICE,"1,450.00",02/08/2018,
Commercial,Public Health,Health authorities - Third Par,60110212,SQUIRES LANE MEDICAL PRACTICE,850.00,02/08/2018,
Commercial,Public Health,Health authorities - Third Par,60110172,TORRINGTON PARK GROUP PRACTICE,"2,725.00",02/08/2018,
Commercial,Public Health,Health authorities - Third Par,60110289,VALE DRIVE MEDICAL CENTRE,"2,650.00",03/08/2018,
Commercial,Public Health,Health authorities - Third Par,60110150,WATLING MEDICAL CENTRE,650.00,02/08/2018,
Commercial,Public Health,Health authorities - Third Par,60110227,BRUNSWICK PARK MEDICAL PRACTICE,"1,900.00",06/08/2018,
Commercial,Public Health,Health authorities - Third Par,60112265,BRUNSWICK PARK MEDICAL PRACTICE,"2,150.00",31/08/2018,
Commercial,Public Health,Health authorities - Third Par,60110250,COLNEY HATCH LANE SURGERY,100.00,02/08/2018,
Commercial,Public Health,Health authorities - Third Par,60110246,CORNWALL HOUSE SURGERY,450.00,02/08/2018,
Commercial,Public Health,Health authorities - Third Par,60110275,THE EVERGLADE MEDICAL PRACTICE,"1,175.00",02/08/2018,
Commercial,Public Health,Health authorities - Third Par,60110295,FRIERN BARNET MEDICAL CENTRE,100.00,02/08/2018,
Commercial,Public Health,Health authorities - Third Par,60110268,GREENFIELD MEDICAL CENTRE,350.00,02/08/2018,
Commercial,Public Health,Health authorities - Third Par,60110294,HEATHFIELDE MEDICAL CENTRE,"1,900.00",02/08/2018,
Commercial,Public Health,Health authorities - Third Par,60110284,LANE END MEDICAL GROUP,"1,675.00",03/08/2018,
Commercial,Public Health,Health authorities - Third Par,60111106,LANE END MEDICAL GROUP,"4,275.00",09/08/2018,
Commercial,Public Health,Health authorities - Third Par,60110235,LANGSTONE WAY SURGERY,825.00,02/08/2018,
Commercial,Public Health,Health authorities - Third Par,60110266,PENNINE DRIVE SURGERY,"1,025.00",02/08/2018,
Commercial,Public Health,Health authorities - Third Par,60110185,THE PHOENIX PRACTICE,625.00,02/08/2018,
Commercial,Public Health,Health authorities - Third Par,60110210,MEDICAL CENTRE,225.00,02/08/2018,
Commercial,Public Health,Other Local Authorities - Thir,10014194,LEEDS CITY COUNCIL,134.00,15/08/2018,
Commercial,Public Health,Other Local Authorities - Thir,60105835,LEEDS CITY COUNCIL,373.00,03/08/2018,
Commercial,Public Health,Health authorities - Third Par,60108486,CENTRAL & NORTH WEST LONDON NHS FT,"2,767.09",03/08/2018,
Commercial,Public Health,Health authorities - Third Par,60110769,NORTH LONDON UNIVERSITY HOSPITAL NHS TRU,"1,621.17",08/08/2018,
Commercial,Public Health,Health authorities - Third Par,60110784,NORTH LONDON UNIVERSITY HOSPITAL NHS TRU,"4,215.14",16/08/2018,
Commercial,Public Health,Health authorities - Third Par,60110794,NORTH LONDON UNIVERSITY HOSPITAL NHS TRU,"2,455.75",08/08/2018,
Commercial,Public Health,Health authorities - Third Par,60110829,NORTH LONDON UNIVERSITY HOSPITAL NHS TRU,988.54,08/08/2018,
Commercial,Public Health,Health authorities - Third Par,60110847,NORTH LONDON UNIVERSITY HOSPITAL NHS TRU,"3,407.12",08/08/2018,
Commercial,Public Health,Health authorities - Third Par,60110866,NORTH LONDON UNIVERSITY HOSPITAL NHS TRU,"4,460.34",08/08/2018,
Commercial,Public Health,Health authorities - Third Par,60110307,NOTTINGHAM UNIVERSITY HOSPITALS TRUST,425.38,02/08/2018,
Commercial,Public Health,Health authorities - Third Par,60107768,OXFORD UNIVERSITY HOSPITALS NHS FOUNDATI,234.00,13/08/2018,
Commercial,Public Health,Health authorities - Third Par,60110501,OXFORD UNIVERSITY HOSPITALS NHS FOUNDATI,131.00,07/08/2018,
Commercial,Public Health,Health authorities - Third Par,60110435,YORK TEACHING HOSPITAL NHS TRUST,133.26,02/08/2018,
Commercial,Public Health,Health authorities - Third Par,60110569,KENT COMMUNITY HEALTH NHS FT,284.88,16/08/2018,
Commercial,Public Health,Health authorities - Third Par,60108501,GUY'S AND ST THOMAS' NHS FT,"5,396.64",02/08/2018,
Commercial,Public Health,Health authorities - Third Par,60110300,UNIVERSITY HOSPITALS BRISTOL,139.72,09/08/2018,
Commercial,Public Health,Health authorities - Third Par,60110499,BUCKINGHAMSHIRE HEALTHCARE NHS TRUST,131.00,29/08/2018,
Commercial,Public Health,Health authorities - Third Par,60110522,BARTS HEALTH NHS TRUST,"6,933.58",17/08/2018,
Commercial,Public Health,Health authorities - Third Par,60110296,WESTERN SUSSEX HOSPITALS NHS FT,13.99,08/08/2018,
Commercial,Public Health,Health authorities - Third Par,60110426,WESTERN SUSSEX HOSPITALS NHS FT,30.54,03/08/2018,
Commercial,Public Health,Health authorities - Third Par,60110378,KINGSTON HOSPITAL NHS FOUNDATION TRUST,"1,053.64",03/08/2018,
Commercial,Public Health,Health authorities - Third Par,60110341,SOUTHPORT ORMSKIRK HOSPITAL NHS TRUST,136.00,02/08/2018,
Commercial,Public Health,Health authorities - Third Par,60109952,NORTHAMPTONSHIRE HEALTHCARE NHS,136.00,07/08/2018,
Commercial,Public Health,Health authorities - Third Par,60107773,EAST BARNET HEALTH CENTRE,850.00,06/08/2018,
Commercial,Public Health,Health authorities - Third Par,60107840,EAST BARNET HEALTH CENTRE,250.00,06/08/2018,
Commercial,Public Health,Health authorities - Third Par,60107802,MOUNTFIELD SURGERY,100.00,06/08/2018,
Commercial,Public Health,Health authorities - Third Par,60107872,MULBERRY MEDICAL PRACTICE,200.00,06/08/2018,
Commercial,Public Health,Health authorities - Third Par,60107770,THE OLD COURTHOUSE SURGERY,310.00,06/08/2018,
Commercial,Public Health,Health authorities - Third Par,60107884,PHGH DOCTORS,100.00,06/08/2018,
Commercial,Public Health,Health authorities - Third Par,60107804,SB PHARMA LTD T/A LINKS PHARMACY,285.72,08/08/2018,
Commercial,Public Health,Health authorities - Third Par,60107803,THE SPEEDWELL PRACTICE,660.00,06/08/2018,
Commercial,Public Health,Health authorities - Third Par,60107792,SQUIRES LANE MEDICAL PRACTICE,970.00,06/08/2018,
Commercial,Public Health,Health authorities - Third Par,60107799,SYDNEY BLUM & CO LTD T/A,433.94,08/08/2018,
Commercial,Public Health,Health authorities - Third Par,60107871,TORRINGTON PARK GROUP PRACTICE,330.00,06/08/2018,
Commercial,Public Health,Health authorities - Third Par,60107876,WATLING MEDICAL CENTRE,350.00,06/08/2018,
Commercial,Public Health,Health authorities - Third Par,60107830,ADDINGTON MEDICAL CENTRE,830.00,06/08/2018,
Commercial,Public Health,Health authorities - Third Par,60107889,BRUNSWICK PARK MEDICAL PRACTICE,90.00,06/08/2018,
Commercial,Public Health,Health authorities - Third Par,60107852,COLNEY HATCH LANE SURGERY,440.00,06/08/2018,
Commercial,Public Health,Health authorities - Third Par,60107777,THE EVERGLADE MEDICAL PRACTICE,835.00,06/08/2018,
Commercial,Public Health,Health authorities - Third Par,60107810,FRIERN BARNET MEDICAL CENTRE,100.00,06/08/2018,
Commercial,Public Health,Health authorities - Third Par,60107769,GREENFIELD MEDICAL CENTRE,10.00,06/08/2018,
Commercial,Public Health,Health authorities - Third Par,60107846,HEATHFIELDE MEDICAL CENTRE,820.00,06/08/2018,
Commercial,Public Health,Health authorities - Third Par,60107849,LANGSTONE WAY SURGERY,760.00,06/08/2018,
Commercial,Public Health,Health authorities - Third Par,60107844,PENNINE DRIVE SURGERY,240.00,06/08/2018,
Commercial,Public Health,Health authorities - Third Par,60107835,COLINDALE MEDICAL CENTRE,640.00,06/08/2018,
Commercial,Public Health,Health authorities - Third Par,60107867,THE PHOENIX PRACTICE,105.00,06/08/2018,
Commercial,Public Health,Consultants Fees,60108148,J C DECAUX UK LTD,450.00,06/08/2018,
Commercial,Public Health,Consultants Fees,60110424,J C DECAUX UK LTD,91.50,06/08/2018,
Commercial,Regional Enterprise,Other Services,60109836,CONWAY AECOM LTD,"42,330.48",08/08/2018,
Commercial,Regional Enterprise,Other Services,60112047,CONWAY AECOM LTD,"21,165.24",29/08/2018,
Commercial,Regional Enterprise,Other Services,60112521,J C DECAUX UK LTD,"23,165.60",31/08/2018,
Commercial,Regional Enterprise,Other Services,60111037,AFFINITY WATER LIMITED,38.24,24/08/2018,
Commercial,Regional Enterprise,Other Services,60111054,AFFINITY WATER LIMITED,189.78,28/08/2018,
Commercial,Regional Enterprise,Other Services,60111126,AFFINITY WATER LIMITED,23.15,28/08/2018,
Commercial,Regional Enterprise,Other Services,10014158,CASTLE WATER LTD,106.79,01/08/2018,
Commercial,Regional Enterprise,Other Services,10014159,CASTLE WATER LTD,164.61,01/08/2018,
Commercial,Regional Enterprise,Other Services,10014161,CASTLE WATER LTD,67.67,01/08/2018,
Commercial,Regional Enterprise,Other Services,60111018,CASTLE WATER LTD,132.00,17/08/2018,
Commercial,Regional Enterprise,Other Services,60111029,CASTLE WATER LTD,22.65,17/08/2018,
Commercial,Regional Enterprise,Other Services,60111051,CASTLE WATER LTD,34.38,22/08/2018,
Commercial,Regional Enterprise,Other Services,60111077,CASTLE WATER LTD,31.21,22/08/2018,
Commercial,Regional Enterprise,Other Services,60111087,CASTLE WATER LTD,250.78,20/08/2018,
Commercial,Regional Enterprise,Other Services,60111113,CASTLE WATER LTD,36.09,22/08/2018,
Commercial,Regional Enterprise,Other Services,60111131,CASTLE WATER LTD,42.31,22/08/2018,
Commercial,Regional Enterprise,Other Services,60111142,CASTLE WATER LTD,62.78,22/08/2018,
Commercial,Regional Enterprise,Advertising,60108747,TMP (UK) LTD,170.00,17/08/2018,
Commercial,Regional Enterprise,Advertising,60108762,TMP (UK) LTD,179.00,17/08/2018,
Commercial,Regional Enterprise,Advertising,60108767,TMP (UK) LTD,260.00,16/08/2018,
Commercial,Regional Enterprise,Advertising,60109492,TMP (UK) LTD,99.00,17/08/2018,
Commercial,Regional Enterprise,Advertising,60109536,TMP (UK) LTD,90.00,17/08/2018,
Commercial,Regional Enterprise,Advertising,60109552,TMP (UK) LTD,260.00,16/08/2018,
Commercial,Regional Enterprise,Advertising,60109571,TMP (UK) LTD,161.00,17/08/2018,
Commercial,Regional Enterprise,Advertising,60109593,TMP (UK) LTD,224.00,16/08/2018,
Commercial,Regional Enterprise,Advertising,60109596,TMP (UK) LTD,260.00,16/08/2018,
Commercial,Regional Enterprise,Advertising,60109652,TMP (UK) LTD,260.00,23/08/2018,
Commercial,Regional Enterprise,Advertising,60110193,TMP (UK) LTD,81.00,17/08/2018,
Commercial,Regional Enterprise,Advertising,60111020,TMP (UK) LTD,260.00,23/08/2018,
Commercial,Regional Enterprise,Advertising,60111066,TMP (UK) LTD,260.00,23/08/2018,
Commercial,Regional Enterprise,Advertising,60111115,TMP (UK) LTD,260.00,23/08/2018,
Commercial,Regional Enterprise,Other Services,60111050,CONWAY AECOM LTD,14.33,09/08/2018,
Commercial,Regional Enterprise,Other Services,60111082,CONWAY AECOM LTD,504.60,09/08/2018,
Commercial,Regional Enterprise,Other Services,60111086,CONWAY AECOM LTD,135.78,09/08/2018,
Commercial,Regional Enterprise,Other Services,60111124,CONWAY AECOM LTD,174.81,09/08/2018,
Commercial,Regional Enterprise,Other Services,60111991,CONWAY AECOM LTD,277.20,29/08/2018,
Commercial,Regional Enterprise,Other Services,60106617,GEOPLACE LLP,450.00,17/08/2018,
Commercial,Regional Enterprise,Advertising,60111065,TMP (UK) LTD,458.00,09/08/2018,
Commercial,Regional Enterprise,Other Services,10014183,RM COUNTRYSIDE SERVICES LTD,465.00,08/08/2018,
Commercial,Regional Enterprise,Capital Construction and Works,60111823,RM COUNTRYSIDE SERVICES LTD,"1,789.00",24/08/2018,
Commercial,Regional Enterprise,Other Services,10014177,RM COUNTRYSIDE SERVICES LTD,853.00,06/08/2018,
Commercial,Regional Enterprise,Other Services,10014182,RM COUNTRYSIDE SERVICES LTD,336.00,08/08/2018,
Commercial,Regional Enterprise,Other Services,60112528,RM COUNTRYSIDE SERVICES LTD,950.00,31/08/2018,
Commercial,Regional Enterprise,Other Services,60110777,CONWAY AECOM LTD,756.00,07/08/2018,
Commercial,Regional Enterprise,Other Services,60110827,CONWAY AECOM LTD,579.60,07/08/2018,
Commercial,Regional Enterprise,Other Services,60111846,CONWAY AECOM LTD,340.20,29/08/2018,
Commercial,Regional Enterprise,Other Services,60111870,CONWAY AECOM LTD,"1,209.60",29/08/2018,
Commercial,Regional Enterprise,Other Services,60111924,CONWAY AECOM LTD,705.60,29/08/2018,
Commercial,Regional Enterprise,Other Services,60112037,CONWAY AECOM LTD,289.80,29/08/2018,
Commercial,Regional Enterprise,Other Services,60112070,CONWAY AECOM LTD,554.40,29/08/2018,
Commercial,Regional Enterprise,Other Services,60112073,CONWAY AECOM LTD,982.80,29/08/2018,
Commercial,Regional Enterprise,Other Services,60112095,CONWAY AECOM LTD,456.75,29/08/2018,
Commercial,Regional Enterprise,Other Services,60112125,CONWAY AECOM LTD,226.80,29/08/2018,
Commercial,Regional Enterprise,Professional Services,60111344,WATES LIVING SPACE,"9,181.23",28/08/2018,
Commercial,Regional Enterprise,Other Services,60110762,CONWAY AECOM LTD,11.26,08/08/2018,
Commercial,Regional Enterprise,Other Services,60110819,CONWAY AECOM LTD,27.25,08/08/2018,
Commercial,Regional Enterprise,Other Services,60110842,CONWAY AECOM LTD,93.67,31/08/2018,
Commercial,Regional Enterprise,Other Services,60110886,CONWAY AECOM LTD,18.94,08/08/2018,
Commercial,Regional Enterprise,Other Services,60110915,CONWAY AECOM LTD,19.97,08/08/2018,
Commercial,Regional Enterprise,Other Services,60111002,CONWAY AECOM LTD,12.29,08/08/2018,
Commercial,Regional Enterprise,Other Services,60111033,CONWAY AECOM LTD,11.78,09/08/2018,
Commercial,Regional Enterprise,Other Services,60111038,CONWAY AECOM LTD,40.82,09/08/2018,
Commercial,Regional Enterprise,Other Services,60111039,CONWAY AECOM LTD,16.06,09/08/2018,
Commercial,Regional Enterprise,Other Services,60111047,CONWAY AECOM LTD,40.82,09/08/2018,
Commercial,Regional Enterprise,Other Services,60111058,CONWAY AECOM LTD,17.41,09/08/2018,
Commercial,Regional Enterprise,Other Services,60111102,CONWAY AECOM LTD,39.33,09/08/2018,
Commercial,Regional Enterprise,Other Services,60111104,CONWAY AECOM LTD,13.82,09/08/2018,
Commercial,Regional Enterprise,Other Services,60111125,CONWAY AECOM LTD,38.97,09/08/2018,
Commercial,Regional Enterprise,Other Services,60111145,CONWAY AECOM LTD,15.36,09/08/2018,
Commercial,Regional Enterprise,Other Services,60111154,CONWAY AECOM LTD,36.39,21/08/2018,
Commercial,Regional Enterprise,Other Services,60111165,CONWAY AECOM LTD,40.82,13/08/2018,
Commercial,Regional Enterprise,Other Services,60111166,CONWAY AECOM LTD,40.00,21/08/2018,
Commercial,Regional Enterprise,Other Services,60111179,CONWAY AECOM LTD,14.67,13/08/2018,
Commercial,Regional Enterprise,Other Services,60111181,CONWAY AECOM LTD,38.85,13/08/2018,
Commercial,Regional Enterprise,Other Services,60111187,CONWAY AECOM LTD,38.97,13/08/2018,
Commercial,Regional Enterprise,Other Services,60111189,CONWAY AECOM LTD,57.34,13/08/2018,
Commercial,Regional Enterprise,Other Services,60111193,CONWAY AECOM LTD,13.36,13/08/2018,
Commercial,Regional Enterprise,Other Services,60111206,CONWAY AECOM LTD,36.39,13/08/2018,
Commercial,Regional Enterprise,Other Services,60111216,CONWAY AECOM LTD,40.82,13/08/2018,
Commercial,Regional Enterprise,Other Services,60111220,CONWAY AECOM LTD,40.00,13/08/2018,
Commercial,Regional Enterprise,Other Services,60111222,CONWAY AECOM LTD,13.10,13/08/2018,
Commercial,Regional Enterprise,Other Services,60111225,CONWAY AECOM LTD,38.58,13/08/2018,
Commercial,Regional Enterprise,Other Services,60111233,CONWAY AECOM LTD,39.49,13/08/2018,
Commercial,Regional Enterprise,Other Services,60111234,CONWAY AECOM LTD,29.87,13/08/2018,
Commercial,Regional Enterprise,Other Services,60111236,CONWAY AECOM LTD,21.48,13/08/2018,
Commercial,Regional Enterprise,Other Services,60111237,CONWAY AECOM LTD,2.55,13/08/2018,
Commercial,Regional Enterprise,Other Services,60111240,CONWAY AECOM LTD,12.05,13/08/2018,
Commercial,Regional Enterprise,Other Services,60111241,CONWAY AECOM LTD,35.36,13/08/2018,
Commercial,Regional Enterprise,Other Services,60111788,CONWAY AECOM LTD,2.68,31/08/2018,
Commercial,Regional Enterprise,Capital Construction and Works,60111235,RM COUNTRYSIDE SERVICES LTD,797.00,13/08/2018,
Commercial,Regional Enterprise,Other Services,60111238,RM COUNTRYSIDE SERVICES LTD,346.95,13/08/2018,
Commercial,Regional Enterprise,Other Services,60112487,RM COUNTRYSIDE SERVICES LTD,100.00,31/08/2018,
Commercial,Regional Enterprise,Other Services,60106356,CONWAY AECOM LTD,292.95,29/08/2018,
Commercial,Regional Enterprise,Other Services,60106359,CONWAY AECOM LTD,182.70,29/08/2018,
Commercial,Regional Enterprise,Other Services,60109624,CONWAY AECOM LTD,"4,284.00",29/08/2018,
Commercial,Regional Enterprise,Other Services,60110107,CONWAY AECOM LTD,45.87,01/08/2018,
Commercial,Regional Enterprise,Other Services,60110140,CONWAY AECOM LTD,45.87,01/08/2018,
Commercial,Regional Enterprise,Other Services,60110149,CONWAY AECOM LTD,91.74,02/08/2018,
Commercial,Regional Enterprise,Other Services,60110155,CONWAY AECOM LTD,91.74,02/08/2018,
Commercial,Regional Enterprise,Other Services,60110168,CONWAY AECOM LTD,128.89,02/08/2018,
Commercial,Regional Enterprise,Other Services,60110173,CONWAY AECOM LTD,50.69,02/08/2018,
Commercial,Regional Enterprise,Other Services,60110178,CONWAY AECOM LTD,91.74,02/08/2018,
Commercial,Regional Enterprise,Other Services,60110181,CONWAY AECOM LTD,45.87,02/08/2018,
Commercial,Regional Enterprise,Other Services,60110187,CONWAY AECOM LTD,45.87,02/08/2018,
Commercial,Regional Enterprise,Other Services,60110200,CONWAY AECOM LTD,50.69,02/08/2018,
Commercial,Regional Enterprise,Other Services,60110201,CONWAY AECOM LTD,50.69,02/08/2018,
Commercial,Regional Enterprise,Other Services,60110209,CONWAY AECOM LTD,45.87,02/08/2018,
Commercial,Regional Enterprise,Other Services,60110222,CONWAY AECOM LTD,91.74,02/08/2018,
Commercial,Regional Enterprise,Other Services,60110260,CONWAY AECOM LTD,137.61,02/08/2018,
Commercial,Regional Enterprise,Other Services,60110282,CONWAY AECOM LTD,91.74,02/08/2018,
Commercial,Regional Enterprise,Other Services,60110285,CONWAY AECOM LTD,275.22,02/08/2018,
Commercial,Regional Enterprise,Other Services,60110286,CONWAY AECOM LTD,91.74,02/08/2018,
Commercial,Regional Enterprise,Other Services,60110288,CONWAY AECOM LTD,45.87,02/08/2018,
Commercial,Regional Enterprise,Other Services,60110444,CONWAY AECOM LTD,69.18,06/08/2018,
Commercial,Regional Enterprise,Other Services,60110445,CONWAY AECOM LTD,45.87,07/08/2018,
Commercial,Regional Enterprise,Other Services,60110449,CONWAY AECOM LTD,45.87,06/08/2018,
Commercial,Regional Enterprise,Other Services,60110452,CONWAY AECOM LTD,91.74,06/08/2018,
Commercial,Regional Enterprise,Other Services,60110454,CONWAY AECOM LTD,101.37,06/08/2018,
Commercial,Regional Enterprise,Other Services,60110465,CONWAY AECOM LTD,91.74,06/08/2018,
Commercial,Regional Enterprise,Other Services,60110468,CONWAY AECOM LTD,50.69,06/08/2018,
Commercial,Regional Enterprise,Other Services,60110472,CONWAY AECOM LTD,39.04,06/08/2018,
Commercial,Regional Enterprise,Other Services,60110473,CONWAY AECOM LTD,101.37,06/08/2018,
Commercial,Regional Enterprise,Other Services,60110483,CONWAY AECOM LTD,11.47,06/08/2018,
Commercial,Regional Enterprise,Other Services,60110484,CONWAY AECOM LTD,137.61,07/08/2018,
Commercial,Regional Enterprise,Other Services,60110485,CONWAY AECOM LTD,55.14,06/08/2018,
Commercial,Regional Enterprise,Other Services,60110486,CONWAY AECOM LTD,45.87,06/08/2018,
Commercial,Regional Enterprise,Other Services,60110490,CONWAY AECOM LTD,45.87,06/08/2018,
Commercial,Regional Enterprise,Other Services,60110491,CONWAY AECOM LTD,50.69,06/08/2018,
Commercial,Regional Enterprise,Other Services,60110492,CONWAY AECOM LTD,91.74,06/08/2018,
Commercial,Regional Enterprise,Other Services,60110496,CONWAY AECOM LTD,137.61,06/08/2018,
Commercial,Regional Enterprise,Other Services,60110498,CONWAY AECOM LTD,45.87,06/08/2018,
Commercial,Regional Enterprise,Other Services,60110503,CONWAY AECOM LTD,50.69,06/08/2018,
Commercial,Regional Enterprise,Other Services,60110505,CONWAY AECOM LTD,22.94,06/08/2018,
Commercial,Regional Enterprise,Other Services,60110506,CONWAY AECOM LTD,45.87,06/08/2018,
Commercial,Regional Enterprise,Other Services,60110507,CONWAY AECOM LTD,50.69,06/08/2018,
Commercial,Regional Enterprise,Other Services,60110512,CONWAY AECOM LTD,50.69,06/08/2018,
Commercial,Regional Enterprise,Other Services,60110516,CONWAY AECOM LTD,50.69,06/08/2018,
Commercial,Regional Enterprise,Other Services,60110517,CONWAY AECOM LTD,137.61,06/08/2018,
Commercial,Regional Enterprise,Other Services,60110519,CONWAY AECOM LTD,50.69,06/08/2018,
Commercial,Regional Enterprise,Other Services,60110527,CONWAY AECOM LTD,45.87,06/08/2018,
Commercial,Regional Enterprise,Other Services,60110529,CONWAY AECOM LTD,68.66,06/08/2018,
Commercial,Regional Enterprise,Other Services,60110534,CONWAY AECOM LTD,137.61,06/08/2018,
Commercial,Regional Enterprise,Other Services,60110535,CONWAY AECOM LTD,52.29,06/08/2018,
Commercial,Regional Enterprise,Other Services,60110541,CONWAY AECOM LTD,50.69,06/08/2018,
Commercial,Regional Enterprise,Other Services,60110542,CONWAY AECOM LTD,50.69,06/08/2018,
Commercial,Regional Enterprise,Other Services,60110543,CONWAY AECOM LTD,45.87,06/08/2018,
Commercial,Regional Enterprise,Other Services,60110545,CONWAY AECOM LTD,50.69,06/08/2018,
Commercial,Regional Enterprise,Other Services,60110553,CONWAY AECOM LTD,91.74,06/08/2018,
Commercial,Regional Enterprise,Other Services,60110566,CONWAY AECOM LTD,45.87,06/08/2018,
Commercial,Regional Enterprise,Other Services,60110570,CONWAY AECOM LTD,45.87,06/08/2018,
Commercial,Regional Enterprise,Other Services,60110583,CONWAY AECOM LTD,45.87,06/08/2018,
Commercial,Regional Enterprise,Other Services,60110591,CONWAY AECOM LTD,152.06,06/08/2018,
Commercial,Regional Enterprise,Other Services,60110592,CONWAY AECOM LTD,50.69,06/08/2018,
Commercial,Regional Enterprise,Other Services,60110601,CONWAY AECOM LTD,91.74,06/08/2018,
Commercial,Regional Enterprise,Other Services,60110614,CONWAY AECOM LTD,45.87,06/08/2018,
Commercial,Regional Enterprise,Other Services,60110655,CONWAY AECOM LTD,91.74,06/08/2018,
Commercial,Regional Enterprise,Other Services,60110657,CONWAY AECOM LTD,233.70,16/08/2018,
Commercial,Regional Enterprise,Other Services,60110673,CONWAY AECOM LTD,91.74,06/08/2018,
Commercial,Regional Enterprise,Other Services,60110681,CONWAY AECOM LTD,724.50,06/08/2018,
Commercial,Regional Enterprise,Other Services,60110691,CONWAY AECOM LTD,103.95,06/08/2018,
Commercial,Regional Enterprise,Other Services,60110702,CONWAY AECOM LTD,50.69,06/08/2018,
Commercial,Regional Enterprise,Other Services,60110705,CONWAY AECOM LTD,91.74,06/08/2018,
Commercial,Regional Enterprise,Other Services,60110707,CONWAY AECOM LTD,137.61,06/08/2018,
Commercial,Regional Enterprise,Other Services,60110719,CONWAY AECOM LTD,91.74,06/08/2018,
Commercial,Regional Enterprise,Other Services,60110748,CONWAY AECOM LTD,94.50,07/08/2018,
Commercial,Regional Enterprise,Other Services,60110796,CONWAY AECOM LTD,113.40,07/08/2018,
Commercial,Regional Enterprise,Other Services,60110799,CONWAY AECOM LTD,623.70,07/08/2018,
Commercial,Regional Enterprise,Other Services,60110817,CONWAY AECOM LTD,340.20,07/08/2018,
Commercial,Regional Enterprise,Other Services,60110874,CONWAY AECOM LTD,120.64,08/08/2018,
Commercial,Regional Enterprise,Other Services,60110878,CONWAY AECOM LTD,55.91,16/08/2018,
Commercial,Regional Enterprise,Other Services,60110883,CONWAY AECOM LTD,120.64,08/08/2018,
Commercial,Regional Enterprise,Other Services,60110935,CONWAY AECOM LTD,123.35,08/08/2018,
Commercial,Regional Enterprise,Other Services,60110942,CONWAY AECOM LTD,86.24,08/08/2018,
Commercial,Regional Enterprise,Other Services,60110954,CONWAY AECOM LTD,51.74,17/08/2018,
Commercial,Regional Enterprise,Other Services,60110956,CONWAY AECOM LTD,86.24,08/08/2018,
Commercial,Regional Enterprise,Other Services,60110958,CONWAY AECOM LTD,427.98,17/08/2018,
Commercial,Regional Enterprise,Other Services,60110962,CONWAY AECOM LTD,65.78,08/08/2018,
Commercial,Regional Enterprise,Other Services,60110973,CONWAY AECOM LTD,120.64,08/08/2018,
Commercial,Regional Enterprise,Other Services,60110990,CONWAY AECOM LTD,45.86,08/08/2018,
Commercial,Regional Enterprise,Other Services,60111007,CONWAY AECOM LTD,94.88,08/08/2018,
Commercial,Regional Enterprise,Other Services,60111009,CONWAY AECOM LTD,85.86,09/08/2018,
Commercial,Regional Enterprise,Other Services,60111012,CONWAY AECOM LTD,163.54,09/08/2018,
Commercial,Regional Enterprise,Other Services,60111027,CONWAY AECOM LTD,123.35,09/08/2018,
Commercial,Regional Enterprise,Other Services,60111028,CONWAY AECOM LTD,110.81,09/08/2018,
Commercial,Regional Enterprise,Other Services,60111045,CONWAY AECOM LTD,111.62,09/08/2018,
Commercial,Regional Enterprise,Other Services,60111059,CONWAY AECOM LTD,50.45,09/08/2018,
Commercial,Regional Enterprise,Other Services,60111074,CONWAY AECOM LTD,628.56,09/08/2018,
Commercial,Regional Enterprise,Other Services,60111081,CONWAY AECOM LTD,159.90,09/08/2018,
Commercial,Regional Enterprise,Other Services,60111092,CONWAY AECOM LTD,45.86,09/08/2018,
Commercial,Regional Enterprise,Other Services,60111117,CONWAY AECOM LTD,161.54,09/08/2018,
Commercial,Regional Enterprise,Other Services,60111756,CONWAY AECOM LTD,211.31,23/08/2018,
Commercial,Regional Enterprise,Other Services,60111760,CONWAY AECOM LTD,50.52,31/08/2018,
Commercial,Regional Enterprise,Other Services,60111761,CONWAY AECOM LTD,65.78,23/08/2018,
Commercial,Regional Enterprise,Other Services,60111766,CONWAY AECOM LTD,65.78,23/08/2018,
Commercial,Regional Enterprise,Other Services,60111770,CONWAY AECOM LTD,45.86,23/08/2018,
Commercial,Regional Enterprise,Other Services,60111772,CONWAY AECOM LTD,120.64,23/08/2018,
Commercial,Regional Enterprise,Other Services,60111776,CONWAY AECOM LTD,50.67,23/08/2018,
Commercial,Regional Enterprise,Other Services,60111777,CONWAY AECOM LTD,94.88,23/08/2018,
Commercial,Regional Enterprise,Other Services,60111778,CONWAY AECOM LTD,50.67,23/08/2018,
Commercial,Regional Enterprise,Other Services,60111785,CONWAY AECOM LTD,65.78,23/08/2018,
Commercial,Regional Enterprise,Other Services,60111794,CONWAY AECOM LTD,541.94,23/08/2018,
Commercial,Regional Enterprise,Other Services,60111799,CONWAY AECOM LTD,109.02,23/08/2018,
Commercial,Regional Enterprise,Other Services,60111800,CONWAY AECOM LTD,591.81,23/08/2018,
Commercial,Regional Enterprise,Other Services,60111801,CONWAY AECOM LTD,210.00,23/08/2018,
Commercial,Regional Enterprise,Other Services,60111802,CONWAY AECOM LTD,65.78,23/08/2018,
Commercial,Regional Enterprise,Other Services,60111806,CONWAY AECOM LTD,95.30,23/08/2018,
Commercial,Regional Enterprise,Other Services,60111809,CONWAY AECOM LTD,41.60,23/08/2018,
Commercial,Regional Enterprise,Other Services,60111811,CONWAY AECOM LTD,94.88,23/08/2018,
Commercial,Regional Enterprise,Other Services,60111813,CONWAY AECOM LTD,65.78,23/08/2018,
Commercial,Regional Enterprise,Other Services,60111816,CONWAY AECOM LTD,59.61,23/08/2018,
Commercial,Regional Enterprise,Other Services,60111817,CONWAY AECOM LTD,45.86,23/08/2018,
Commercial,Regional Enterprise,Other Services,60111819,CONWAY AECOM LTD,54.93,23/08/2018,
Commercial,Regional Enterprise,Other Services,60111962,CONWAY AECOM LTD,207.90,29/08/2018,
Commercial,Regional Enterprise,Other Services,60112029,CONWAY AECOM LTD,226.80,24/08/2018,
Commercial,Regional Enterprise,Other Services,60112052,CONWAY AECOM LTD,567.00,24/08/2018,
Commercial,Regional Enterprise,Other Services,60112078,CONWAY AECOM LTD,189.00,24/08/2018,
Commercial,Regional Enterprise,Other Services,60109514,CONWAY AECOM LTD,"2,520.00",22/08/2018,
Commercial,Regional Enterprise,Other Services,60109554,CONWAY AECOM LTD,"1,058.40",22/08/2018,
Commercial,Regional Enterprise,Other Services,60110556,CONWAY AECOM LTD,567.00,06/08/2018,
Commercial,Regional Enterprise,Other Services,60110594,CONWAY AECOM LTD,806.40,06/08/2018,
Commercial,Regional Enterprise,Other Services,60110596,CONWAY AECOM LTD,774.90,06/08/2018,
Commercial,Regional Enterprise,Other Services,60110608,CONWAY AECOM LTD,469.35,06/08/2018,
Commercial,Regional Enterprise,Other Services,60110628,CONWAY AECOM LTD,594.00,06/08/2018,
Commercial,Regional Enterprise,Other Services,60110631,CONWAY AECOM LTD,661.50,06/08/2018,
Commercial,Regional Enterprise,Other Services,60110646,CONWAY AECOM LTD,"1,159.20",06/08/2018,
Commercial,Regional Enterprise,Other Services,60110663,CONWAY AECOM LTD,756.00,06/08/2018,
Commercial,Regional Enterprise,Other Services,60110692,CONWAY AECOM LTD,907.20,06/08/2018,
Commercial,Regional Enterprise,Other Services,60110718,CONWAY AECOM LTD,453.60,06/08/2018,
Commercial,Regional Enterprise,Other Services,60110728,CONWAY AECOM LTD,"1,020.60",07/08/2018,
Commercial,Regional Enterprise,Other Services,60110729,CONWAY AECOM LTD,630.00,07/08/2018,
Commercial,Regional Enterprise,Other Services,60110730,CONWAY AECOM LTD,756.00,07/08/2018,
Commercial,Regional Enterprise,Other Services,60110731,CONWAY AECOM LTD,"2,092.50",07/08/2018,
Commercial,Regional Enterprise,Other Services,60110733,CONWAY AECOM LTD,434.70,07/08/2018,
Commercial,Regional Enterprise,Other Services,60110734,CONWAY AECOM LTD,945.00,07/08/2018,
Commercial,Regional Enterprise,Other Services,60110736,CONWAY AECOM LTD,648.00,07/08/2018,
Commercial,Regional Enterprise,Other Services,60110751,CONWAY AECOM LTD,869.40,07/08/2018,
Commercial,Regional Enterprise,Other Services,60110753,CONWAY AECOM LTD,"1,134.00",07/08/2018,
Commercial,Regional Enterprise,Other Services,60110756,CONWAY AECOM LTD,776.25,07/08/2018,
Commercial,Regional Enterprise,Other Services,60110761,CONWAY AECOM LTD,"2,475.00",07/08/2018,
Commercial,Regional Enterprise,Other Services,60110764,CONWAY AECOM LTD,"1,464.75",07/08/2018,
Commercial,Regional Enterprise,Other Services,60110770,CONWAY AECOM LTD,693.00,07/08/2018,
Commercial,Regional Enterprise,Other Services,60110774,CONWAY AECOM LTD,"1,230.55",07/08/2018,
Commercial,Regional Enterprise,Other Services,60110775,CONWAY AECOM LTD,315.00,07/08/2018,
Commercial,Regional Enterprise,Other Services,60110779,CONWAY AECOM LTD,"1,304.83",07/08/2018,
Commercial,Regional Enterprise,Other Services,60110786,CONWAY AECOM LTD,"1,674.00",07/08/2018,
Commercial,Regional Enterprise,Other Services,60110789,CONWAY AECOM LTD,630.00,07/08/2018,
Commercial,Regional Enterprise,Other Services,60110798,CONWAY AECOM LTD,"1,683.00",07/08/2018,
Commercial,Regional Enterprise,Other Services,60110802,CONWAY AECOM LTD,540.00,07/08/2018,
Commercial,Regional Enterprise,Other Services,60110803,CONWAY AECOM LTD,445.50,07/08/2018,
Commercial,Regional Enterprise,Other Services,60110805,CONWAY AECOM LTD,195.75,07/08/2018,
Commercial,Regional Enterprise,Other Services,60110806,CONWAY AECOM LTD,"1,417.50",07/08/2018,
Commercial,Regional Enterprise,Other Services,60110808,CONWAY AECOM LTD,945.00,07/08/2018,
Commercial,Regional Enterprise,Other Services,60110809,CONWAY AECOM LTD,"1,251.00",07/08/2018,
Commercial,Regional Enterprise,Other Services,60110815,CONWAY AECOM LTD,554.40,07/08/2018,
Commercial,Regional Enterprise,Other Services,60110818,CONWAY AECOM LTD,803.25,07/08/2018,
Commercial,Regional Enterprise,Other Services,60110821,CONWAY AECOM LTD,781.20,07/08/2018,
Commercial,Regional Enterprise,Other Services,60110825,CONWAY AECOM LTD,"1,008.00",07/08/2018,
Commercial,Regional Enterprise,Other Services,60110826,CONWAY AECOM LTD,"1,026.00",07/08/2018,
Commercial,Regional Enterprise,Other Services,60110830,CONWAY AECOM LTD,891.00,07/08/2018,
Commercial,Regional Enterprise,Other Services,60110831,CONWAY AECOM LTD,837.00,07/08/2018,
Commercial,Regional Enterprise,Other Services,60110833,CONWAY AECOM LTD,"2,052.00",07/08/2018,
Commercial,Regional Enterprise,Other Services,60110835,CONWAY AECOM LTD,567.00,07/08/2018,
Commercial,Regional Enterprise,Other Services,60110836,CONWAY AECOM LTD,"1,100.25",07/08/2018,
Commercial,Regional Enterprise,Other Services,60110840,CONWAY AECOM LTD,"1,562.40",07/08/2018,
Commercial,Regional Enterprise,Other Services,60110843,CONWAY AECOM LTD,425.25,07/08/2018,
Commercial,Regional Enterprise,Other Services,60110848,CONWAY AECOM LTD,810.00,07/08/2018,
Commercial,Regional Enterprise,Other Services,60110850,CONWAY AECOM LTD,200.03,07/08/2018,
Commercial,Regional Enterprise,Other Services,60110851,CONWAY AECOM LTD,781.20,07/08/2018,
Commercial,Regional Enterprise,Other Services,60110852,CONWAY AECOM LTD,"1,732.08",07/08/2018,
Commercial,Regional Enterprise,Other Services,60110857,CONWAY AECOM LTD,"1,197.98",07/08/2018,
Commercial,Regional Enterprise,Other Services,60110859,CONWAY AECOM LTD,"1,458.00",07/08/2018,
Commercial,Regional Enterprise,Other Services,60110860,CONWAY AECOM LTD,453.60,07/08/2018,
Commercial,Regional Enterprise,Other Services,60110865,CONWAY AECOM LTD,"1,260.00",07/08/2018,
Commercial,Regional Enterprise,Other Services,60110867,CONWAY AECOM LTD,"1,058.40",07/08/2018,
Commercial,Regional Enterprise,Other Services,60110868,CONWAY AECOM LTD,"1,296.00",07/08/2018,
Commercial,Regional Enterprise,Other Services,60110869,CONWAY AECOM LTD,405.00,07/08/2018,
Commercial,Regional Enterprise,Other Services,60110871,CONWAY AECOM LTD,"1,063.44",29/08/2018,
Commercial,Regional Enterprise,Other Services,60110897,CONWAY AECOM LTD,822.90,08/08/2018,
Commercial,Regional Enterprise,Other Services,60110929,CONWAY AECOM LTD,"1,318.75",08/08/2018,
Commercial,Regional Enterprise,Other Services,60110988,CONWAY AECOM LTD,582.36,29/08/2018,
Commercial,Regional Enterprise,Other Services,60110989,CONWAY AECOM LTD,398.79,08/08/2018,
Commercial,Regional Enterprise,Other Services,60110996,CONWAY AECOM LTD,"1,569.84",08/08/2018,
Commercial,Regional Enterprise,Other Services,60111010,CONWAY AECOM LTD,"1,025.46",09/08/2018,
Commercial,Regional Enterprise,Other Services,60111025,CONWAY AECOM LTD,"1,063.44",09/08/2018,
Commercial,Regional Enterprise,Other Services,60111034,CONWAY AECOM LTD,759.60,09/08/2018,
Commercial,Regional Enterprise,Other Services,60111048,CONWAY AECOM LTD,"1,993.95",09/08/2018,
Commercial,Regional Enterprise,Other Services,60111071,CONWAY AECOM LTD,797.58,09/08/2018,
Commercial,Regional Enterprise,Other Services,60111075,CONWAY AECOM LTD,531.72,09/08/2018,
Commercial,Regional Enterprise,Other Services,60111078,CONWAY AECOM LTD,607.68,20/08/2018,
Commercial,Regional Enterprise,Other Services,60111093,CONWAY AECOM LTD,455.76,09/08/2018,
Commercial,Regional Enterprise,Other Services,60111119,CONWAY AECOM LTD,"2,401.18",09/08/2018,
Commercial,Regional Enterprise,Other Services,60111122,CONWAY AECOM LTD,215.22,09/08/2018,
Commercial,Regional Enterprise,Other Services,60111133,CONWAY AECOM LTD,"2,437.05",09/08/2018,
Commercial,Regional Enterprise,Other Services,60111134,CONWAY AECOM LTD,455.76,09/08/2018,
Commercial,Regional Enterprise,Other Services,60111137,CONWAY AECOM LTD,911.52,09/08/2018,
Commercial,Regional Enterprise,Other Services,60111148,CONWAY AECOM LTD,"1,063.44",09/08/2018,
Commercial,Regional Enterprise,Other Services,60111948,CONWAY AECOM LTD,201.60,29/08/2018,
Commercial,Regional Enterprise,Other Services,60111952,CONWAY AECOM LTD,787.50,24/08/2018,
Commercial,Regional Enterprise,Other Services,60111957,CONWAY AECOM LTD,"1,278.90",29/08/2018,
Commercial,Regional Enterprise,Other Services,60111977,CONWAY AECOM LTD,907.20,24/08/2018,
Commercial,Regional Enterprise,Other Services,60111981,CONWAY AECOM LTD,781.20,24/08/2018,
Commercial,Regional Enterprise,Other Services,60111982,CONWAY AECOM LTD,252.00,29/08/2018,
Commercial,Regional Enterprise,Other Services,60111984,CONWAY AECOM LTD,315.00,24/08/2018,
Commercial,Regional Enterprise,Other Services,60111990,CONWAY AECOM LTD,907.20,24/08/2018,
Commercial,Regional Enterprise,Other Services,60111992,CONWAY AECOM LTD,604.80,24/08/2018,
Commercial,Regional Enterprise,Other Services,60111995,CONWAY AECOM LTD,453.60,24/08/2018,
Commercial,Regional Enterprise,Other Services,60111998,CONWAY AECOM LTD,330.75,24/08/2018,
Commercial,Regional Enterprise,Other Services,60112000,CONWAY AECOM LTD,882.00,24/08/2018,
Commercial,Regional Enterprise,Other Services,60112014,CONWAY AECOM LTD,"1,512.00",24/08/2018,
Commercial,Regional Enterprise,Other Services,60112016,CONWAY AECOM LTD,793.80,24/08/2018,
Commercial,Regional Enterprise,Other Services,60112018,CONWAY AECOM LTD,472.50,24/08/2018,
Commercial,Regional Enterprise,Other Services,60112019,CONWAY AECOM LTD,"1,367.10",24/08/2018,
Commercial,Regional Enterprise,Other Services,60112022,CONWAY AECOM LTD,"1,190.70",24/08/2018,
Commercial,Regional Enterprise,Other Services,60112025,CONWAY AECOM LTD,661.50,24/08/2018,
Commercial,Regional Enterprise,Other Services,60112032,CONWAY AECOM LTD,"1,789.20",31/08/2018,
Commercial,Regional Enterprise,Other Services,60112036,CONWAY AECOM LTD,756.00,24/08/2018,
Commercial,Regional Enterprise,Other Services,60112038,CONWAY AECOM LTD,"1,134.00",29/08/2018,
Commercial,Regional Enterprise,Other Services,60112040,CONWAY AECOM LTD,472.50,29/08/2018,
Commercial,Regional Enterprise,Other Services,60112041,CONWAY AECOM LTD,"1,058.40",24/08/2018,
Commercial,Regional Enterprise,Other Services,60112064,CONWAY AECOM LTD,680.40,24/08/2018,
Commercial,Regional Enterprise,Other Services,60112068,CONWAY AECOM LTD,184.80,24/08/2018,
Commercial,Regional Enterprise,Other Services,60112075,CONWAY AECOM LTD,"3,402.00",29/08/2018,
Commercial,Regional Enterprise,Other Services,60112085,CONWAY AECOM LTD,680.40,24/08/2018,
Commercial,Regional Enterprise,Other Services,60112097,CONWAY AECOM LTD,"1,512.00",24/08/2018,
Commercial,Regional Enterprise,Other Services,60112103,CONWAY AECOM LTD,740.25,29/08/2018,
Commercial,Regional Enterprise,Other Services,60112106,CONWAY AECOM LTD,"1,209.60",24/08/2018,
Commercial,Regional Enterprise,Other Services,60112111,CONWAY AECOM LTD,982.80,29/08/2018,
Commercial,Regional Enterprise,Other Services,60112114,CONWAY AECOM LTD,283.50,24/08/2018,
Commercial,Regional Enterprise,Other Services,60112124,CONWAY AECOM LTD,831.60,24/08/2018,
Commercial,Regional Enterprise,Grant Payments,80018861,SOUTH HERTFORDSHIRE,729.75,01/08/2018,
Commercial,Regional Enterprise,Grant Payments,80019258,DP BUILDERS DISABLED ADAPTATIONS,"2,968.35",23/08/2018,
Commercial,Regional Enterprise,Grant Payments,80018980,ECOLOGIC ENERGY,509.25,01/08/2018,
Commercial,Regional Enterprise,Grant Payments,80018985,WSW PROJECYS LTD,336.00,14/08/2018,
Commercial,Regional Enterprise,Professional Services,60107084,RE (REGIONAL ENTERPRISE) LIMITED,"294,900.00",29/08/2018,
COMMERCIAL,REGIONAL ENTERPRISE,Grant Payments,80019068,REDACTED - PERSONAL DATA,"13,802.00",14/08/2018,
COMMERCIAL,REGIONAL ENTERPRISE,Grant Payments,80019126,REDACTED - PERSONAL DATA,"5,747.00",15/08/2018,
COMMERCIAL,REGIONAL ENTERPRISE,Other Indirect Employee Expens,60112258,THE BARNETGROUP LIMITED,"137,000.00",31/08/2018,
COMMERCIAL,REGIONAL ENTERPRISE,Grant Payments,80019062,STANNAH STAIRLIFTS LTD,"6,052.00",14/08/2018,
COMMERCIAL,REGIONAL ENTERPRISE,Grant Payments,80019085,STANNAH STAIRLIFTS LTD,"2,865.00",14/08/2018,
COMMERCIAL,REGIONAL ENTERPRISE,Grant Payments,80019233,STANNAH STAIRLIFTS LTD,"1,434.00",16/08/2018,
COMMERCIAL,REGIONAL ENTERPRISE,Grant Payments,80019093,DOLPHIN MOBILITY LTD.,"6,865.00",15/08/2018,
COMMERCIAL,REGIONAL ENTERPRISE,Grant Payments,80019412,DOLPHIN MOBILITY LTD.,495.00,29/08/2018,
COMMERCIAL,REGIONAL ENTERPRISE,Grant Payments,80019060,ARTHUR J. FERRYMAN ASSOCIATES,"1,167.60",14/08/2018,
COMMERCIAL,REGIONAL ENTERPRISE,Grant Payments,80019374,ARTHUR J. FERRYMAN ASSOCIATES,"3,525.06",29/08/2018,
COMMERCIAL,REGIONAL ENTERPRISE,Grant Payments,80019096,AMWELL CONSTRUCTION LTD,"7,808.00",15/08/2018,
COMMERCIAL,REGIONAL ENTERPRISE,Grant Payments,80019130,AMWELL CONSTRUCTION LTD,"3,655.20",15/08/2018,
COMMERCIAL,REGIONAL ENTERPRISE,Grant Payments,80019150,AMWELL CONSTRUCTION LTD,"7,003.00",15/08/2018,
COMMERCIAL,REGIONAL ENTERPRISE,Grant Payments,80019372,AMWELL CONSTRUCTION LTD,"5,775.00",29/08/2018,
COMMERCIAL,REGIONAL ENTERPRISE,Grant Payments,80018981,SOUTH HERTFORDSHIRE,"4,861.00",01/08/2018,
COMMERCIAL,REGIONAL ENTERPRISE,Grant Payments,80019091,SOUTH HERTFORDSHIRE,"2,290.00",15/08/2018,
COMMERCIAL,REGIONAL ENTERPRISE,Grant Payments,80019108,SOUTH HERTFORDSHIRE,"4,824.00",15/08/2018,
COMMERCIAL,REGIONAL ENTERPRISE,Grant Payments,80019209,SOUTH HERTFORDSHIRE,"5,091.00",16/08/2018,
COMMERCIAL,REGIONAL ENTERPRISE,Grant Payments,80019326,SOUTH HERTFORDSHIRE,"8,500.00",22/08/2018,
COMMERCIAL,REGIONAL ENTERPRISE,Grant Payments,80019211,EMS STAIRLIFTS,"2,800.00",21/08/2018,
COMMERCIAL,REGIONAL ENTERPRISE,Grant Payments,80018804,DP BUILDERS DISABLED ADAPTATIONS,"4,720.00",01/08/2018,
COMMERCIAL,REGIONAL ENTERPRISE,Grant Payments,80018806,DP BUILDERS DISABLED ADAPTATIONS,"5,030.00",01/08/2018,
COMMERCIAL,REGIONAL ENTERPRISE,Grant Payments,80019046,DP BUILDERS DISABLED ADAPTATIONS,"4,823.00",14/08/2018,
COMMERCIAL,REGIONAL ENTERPRISE,Grant Payments,80019249,DP BUILDERS DISABLED ADAPTATIONS,"6,030.00",23/08/2018,
COMMERCIAL,REGIONAL ENTERPRISE,Grant Payments,80018872,H D PROPERTY SERVICES LTD,"4,969.00",01/08/2018,
COMMERCIAL,REGIONAL ENTERPRISE,Grant Payments,80019086,H D PROPERTY SERVICES LTD,"5,457.00",14/08/2018,
COMMERCIAL,REGIONAL ENTERPRISE,Grant Payments,80019090,H D PROPERTY SERVICES LTD,"6,236.00",15/08/2018,
COMMERCIAL,REGIONAL ENTERPRISE,Grant Payments,80019110,H D PROPERTY SERVICES LTD,"5,295.00",15/08/2018,
COMMERCIAL,REGIONAL ENTERPRISE,Grant Payments,80019230,H D PROPERTY SERVICES LTD,"5,295.00",16/08/2018,
COMMERCIAL,REGIONAL ENTERPRISE,Grant Payments,80018834,REDACTED - PERSONAL DATA,"3,493.57",01/08/2018,
COMMERCIAL,REGIONAL ENTERPRISE,Grant Payments,80018867,EMS LIFTS LTD,"5,650.00",01/08/2018,
COMMERCIAL,REGIONAL ENTERPRISE,Grant Payments,80018870,URBAN ABODE RENOVATIONS LTD,850.00,01/08/2018,
COMMERCIAL,REGIONAL ENTERPRISE,Grant Payments,80019088,DOMESTIC LIFT SERVICES LTD,757.68,14/08/2018,
COMMERCIAL,REGIONAL ENTERPRISE,Grant Payments,80019116,ACCESS RAIL SOLUTIONS,"1,074.00",15/08/2018,
COMMERCIAL,REGIONAL ENTERPRISE,Grant Payments,80019214,REDACTED - PERSONAL DATA,173.00,17/08/2018,
COMMERCIAL,REGIONAL ENTERPRISE,Grant Payments,80019313,REDACTED - PERSONAL DATA,"17,259.80",22/08/2018,
COMMERCIAL,REGIONAL ENTERPRISE,Other Services,60110742,CONWAY AECOM LTD,"8,000.00",23/08/2018,
COMMERCIAL,REGIONAL ENTERPRISE,Other Services,60109858,BARNET LIGHTING SERVICES LTD,"4,345.18",15/08/2018,
COMMERCIAL,REGIONAL ENTERPRISE,Other Services,60110788,CONWAY AECOM LTD,"8,476.94",07/08/2018,
COMMERCIAL,REGIONAL ENTERPRISE,Advertising,60112498,TRAFFIC SURVEY PARTNERS (TSP) LTD,700.00,31/08/2018,
COMMERCIAL,REGIONAL ENTERPRISE,Other Services,60111129,BARNET LIGHTING SERVICES LTD,"7,679.09",09/08/2018,
COMMERCIAL,REGIONAL ENTERPRISE,Other Services,60111211,CONWAY AECOM LTD,"2,545.67",16/08/2018,
COMMERCIAL,REGIONAL ENTERPRISE,Other Services,60112306,CONWAY AECOM LTD,805.32,31/08/2018,
COMMERCIAL,REGIONAL ENTERPRISE,Other Services,60109472,CONWAY AECOM LTD,93.67,07/08/2018,
COMMERCIAL,REGIONAL ENTERPRISE,Other Services,60109481,CONWAY AECOM LTD,82.65,08/08/2018,
COMMERCIAL,REGIONAL ENTERPRISE,Other Services,60109517,CONWAY AECOM LTD,161.58,08/08/2018,
COMMERCIAL,REGIONAL ENTERPRISE,Other Services,60109540,CONWAY AECOM LTD,174.81,02/08/2018,
COMMERCIAL,REGIONAL ENTERPRISE,Other Services,60109564,CONWAY AECOM LTD,82.65,08/08/2018,
COMMERCIAL,REGIONAL ENTERPRISE,Other Services,60109573,CONWAY AECOM LTD,161.58,08/08/2018,
COMMERCIAL,REGIONAL ENTERPRISE,Other Services,60109582,CONWAY AECOM LTD,165.30,08/08/2018,
COMMERCIAL,REGIONAL ENTERPRISE,Other Services,60109597,CONWAY AECOM LTD,82.65,08/08/2018,
COMMERCIAL,REGIONAL ENTERPRISE,Other Services,60109603,CONWAY AECOM LTD,82.65,08/08/2018,
COMMERCIAL,REGIONAL ENTERPRISE,Other Services,60109646,CONWAY AECOM LTD,82.65,08/08/2018,
COMMERCIAL,REGIONAL ENTERPRISE,Other Services,60109662,CONWAY AECOM LTD,82.65,08/08/2018,
COMMERCIAL,REGIONAL ENTERPRISE,Other Services,60109673,CONWAY AECOM LTD,12.12,08/08/2018,
COMMERCIAL,REGIONAL ENTERPRISE,Other Services,60109681,CONWAY AECOM LTD,88.16,08/08/2018,
COMMERCIAL,REGIONAL ENTERPRISE,Other Services,60109690,CONWAY AECOM LTD,12.12,08/08/2018,
COMMERCIAL,REGIONAL ENTERPRISE,Other Services,60110727,CONWAY AECOM LTD,47.94,07/08/2018,
COMMERCIAL,REGIONAL ENTERPRISE,Other Services,60110735,CONWAY AECOM LTD,82.65,07/08/2018,
COMMERCIAL,REGIONAL ENTERPRISE,Other Services,60110738,CONWAY AECOM LTD,174.81,07/08/2018,
COMMERCIAL,REGIONAL ENTERPRISE,Other Services,60110754,CONWAY AECOM LTD,161.58,07/08/2018,
COMMERCIAL,REGIONAL ENTERPRISE,Other Services,60110757,CONWAY AECOM LTD,161.58,07/08/2018,
COMMERCIAL,REGIONAL ENTERPRISE,Other Services,60110765,CONWAY AECOM LTD,161.58,07/08/2018,
COMMERCIAL,REGIONAL ENTERPRISE,Other Services,60110766,CONWAY AECOM LTD,45.73,07/08/2018,
COMMERCIAL,REGIONAL ENTERPRISE,Other Services,60110773,CONWAY AECOM LTD,45.73,07/08/2018,
COMMERCIAL,REGIONAL ENTERPRISE,Other Services,60110776,CONWAY AECOM LTD,82.65,07/08/2018,
COMMERCIAL,REGIONAL ENTERPRISE,Other Services,60110783,CONWAY AECOM LTD,161.58,07/08/2018,
COMMERCIAL,REGIONAL ENTERPRISE,Other Services,60110785,CONWAY AECOM LTD,50.14,07/08/2018,
COMMERCIAL,REGIONAL ENTERPRISE,Other Services,60110787,CONWAY AECOM LTD,161.58,07/08/2018,
COMMERCIAL,REGIONAL ENTERPRISE,Other Services,60110791,CONWAY AECOM LTD,161.58,07/08/2018,
COMMERCIAL,REGIONAL ENTERPRISE,Other Services,60110793,CONWAY AECOM LTD,161.58,07/08/2018,
COMMERCIAL,REGIONAL ENTERPRISE,Other Services,60110795,CONWAY AECOM LTD,82.65,07/08/2018,
COMMERCIAL,REGIONAL ENTERPRISE,Other Services,60110801,CONWAY AECOM LTD,82.65,07/08/2018,
COMMERCIAL,REGIONAL ENTERPRISE,Other Services,60110812,CONWAY AECOM LTD,161.58,07/08/2018,
COMMERCIAL,REGIONAL ENTERPRISE,Other Services,60110814,CONWAY AECOM LTD,93.67,07/08/2018,
COMMERCIAL,REGIONAL ENTERPRISE,Other Services,60110816,CONWAY AECOM LTD,161.58,07/08/2018,
COMMERCIAL,REGIONAL ENTERPRISE,Other Services,60110828,CONWAY AECOM LTD,161.58,07/08/2018,
COMMERCIAL,REGIONAL ENTERPRISE,Other Services,60110839,CONWAY AECOM LTD,45.73,07/08/2018,
COMMERCIAL,REGIONAL ENTERPRISE,Other Services,60110845,CONWAY AECOM LTD,82.65,07/08/2018,
COMMERCIAL,REGIONAL ENTERPRISE,Other Services,60110853,CONWAY AECOM LTD,161.58,07/08/2018,
COMMERCIAL,REGIONAL ENTERPRISE,Other Services,60110854,CONWAY AECOM LTD,82.65,07/08/2018,
COMMERCIAL,REGIONAL ENTERPRISE,Other Services,60110855,CONWAY AECOM LTD,161.58,07/08/2018,
COMMERCIAL,REGIONAL ENTERPRISE,Other Services,60110856,CONWAY AECOM LTD,82.65,07/08/2018,
COMMERCIAL,REGIONAL ENTERPRISE,Other Services,60110875,CONWAY AECOM LTD,39.10,08/08/2018,
COMMERCIAL,REGIONAL ENTERPRISE,Other Services,60110888,CONWAY AECOM LTD,39.97,08/08/2018,
COMMERCIAL,REGIONAL ENTERPRISE,Other Services,60110890,CONWAY AECOM LTD,35.57,08/08/2018,
COMMERCIAL,REGIONAL ENTERPRISE,Other Services,60110900,CONWAY AECOM LTD,39.97,08/08/2018,
COMMERCIAL,REGIONAL ENTERPRISE,Other Services,60110903,CONWAY AECOM LTD,39.97,08/08/2018,
COMMERCIAL,REGIONAL ENTERPRISE,Other Services,60110923,CONWAY AECOM LTD,8.52,08/08/2018,
COMMERCIAL,REGIONAL ENTERPRISE,Other Services,60110938,CONWAY AECOM LTD,38.50,08/08/2018,
COMMERCIAL,REGIONAL ENTERPRISE,Other Services,60110960,CONWAY AECOM LTD,38.78,08/08/2018,
COMMERCIAL,REGIONAL ENTERPRISE,Other Services,60110974,CONWAY AECOM LTD,39.97,16/08/2018,
COMMERCIAL,REGIONAL ENTERPRISE,Other Services,60111006,CONWAY AECOM LTD,39.97,08/08/2018,
COMMERCIAL,REGIONAL ENTERPRISE,Other Services,60111057,CONWAY AECOM LTD,39.97,09/08/2018,
COMMERCIAL,REGIONAL ENTERPRISE,Other Services,60111061,CONWAY AECOM LTD,39.10,09/08/2018,
COMMERCIAL,REGIONAL ENTERPRISE,Other Services,60111067,CONWAY AECOM LTD,1.10,09/08/2018,
COMMERCIAL,REGIONAL ENTERPRISE,Other Services,60111105,CONWAY AECOM LTD,39.10,09/08/2018,
COMMERCIAL,REGIONAL ENTERPRISE,Other Services,60111109,CONWAY AECOM LTD,39.60,09/08/2018,
COMMERCIAL,REGIONAL ENTERPRISE,Other Services,60111151,CONWAY AECOM LTD,38.50,09/08/2018,
COMMERCIAL,REGIONAL ENTERPRISE,Other Services,60111153,CONWAY AECOM LTD,39.97,09/08/2018,
COMMERCIAL,REGIONAL ENTERPRISE,Equipment and Materials Purcha,60111090,CONWAY AECOM LTD,"29,143.60",09/08/2018,
COMMERCIAL,REGIONAL ENTERPRISE,Equipment and Materials Purcha,60111123,CONWAY AECOM LTD,"69,066.82",14/08/2018,
COMMERCIAL,REGIONAL ENTERPRISE,Equipment and Materials Purcha,60111144,CONWAY AECOM LTD,"76,959.98",09/08/2018,
COMMERCIAL,REGIONAL ENTERPRISE,Other Services,60111013,CONWAY AECOM LTD,"283,963.45",16/08/2018,
COMMERCIAL,REGIONAL ENTERPRISE,Other Services,60111068,CONWAY AECOM LTD,"15,733.15",09/08/2018,
COMMERCIAL,REGIONAL ENTERPRISE,Other Services,60110241,CONWAY AECOM LTD,"1,762.68",06/08/2018,
COMMERCIAL,REGIONAL ENTERPRISE,Other Services,60110242,CONWAY AECOM LTD,987.71,06/08/2018,
COMMERCIAL,REGIONAL ENTERPRISE,Other Services,60110546,CONWAY AECOM LTD,"15,968.75",06/08/2018,
COMMERCIAL,REGIONAL ENTERPRISE,Other Services,60110567,CONWAY AECOM LTD,"16,750.81",06/08/2018,
COMMERCIAL,REGIONAL ENTERPRISE,Other Services,60111120,CONWAY AECOM LTD,"35,815.52",09/08/2018,
COMMERCIAL,REGIONAL ENTERPRISE,Other Services,60111767,CONWAY AECOM LTD,"17,718.24",31/08/2018,
COMMERCIAL,REGIONAL ENTERPRISE,Other Services,60111783,CONWAY AECOM LTD,"3,065.05",23/08/2018,
COMMERCIAL,REGIONAL ENTERPRISE,Other Services,60111966,CONWAY AECOM LTD,109.75,31/08/2018,
COMMERCIAL,REGIONAL ENTERPRISE,Other Services,60112089,CONWAY AECOM LTD,"2,761.01",31/08/2018,
COMMERCIAL,REGIONAL ENTERPRISE,Other Services,60112098,CONWAY AECOM LTD,"16,671.47",29/08/2018,
COMMERCIAL,REGIONAL ENTERPRISE,Other Services,60112100,CONWAY AECOM LTD,"46,938.75",31/08/2018,
COMMERCIAL,REGIONAL ENTERPRISE,Other Services,60111044,CONWAY AECOM LTD,"6,127.21",21/08/2018,
COMMERCIAL,REGIONAL ENTERPRISE,Other Services,60111116,CONWAY AECOM LTD,"3,709.30",29/08/2018,
COMMERCIAL,REGIONAL ENTERPRISE,Other Services,60111774,CONWAY AECOM LTD,"20,726.40",23/08/2018,
COMMERCIAL,REGIONAL ENTERPRISE,Other Services,60111775,CONWAY AECOM LTD,"5,632.00",23/08/2018,
COMMERCIAL,REGIONAL ENTERPRISE,Other Services,60111781,CONWAY AECOM LTD,"12,579.04",31/08/2018,
COMMERCIAL,REGIONAL ENTERPRISE,Other Services,60111784,CONWAY AECOM LTD,"26,650.40",23/08/2018,
COMMERCIAL,REGIONAL ENTERPRISE,Other Services,60111797,CONWAY AECOM LTD,"8,728.80",23/08/2018,
COMMERCIAL,REGIONAL ENTERPRISE,Other Services,80019203,CONWAY AECOM LTD,"22,003.20",14/08/2018,
COMMERCIAL,REGIONAL ENTERPRISE,Other Services,80019205,CONWAY AECOM LTD,"29,251.37",14/08/2018,
COMMERCIAL,REGIONAL ENTERPRISE,Other Services,80019206,CONWAY AECOM LTD,"29,337.60",14/08/2018,
COMMERCIAL,REGIONAL ENTERPRISE,Other Services,80019207,CONWAY AECOM LTD,"36,672.00",14/08/2018,
COMMERCIAL,REGIONAL ENTERPRISE,Other Services,80019273,CONWAY AECOM LTD,"16,948.10",21/08/2018,
COMMERCIAL,REGIONAL ENTERPRISE,Other Services,80019276,CONWAY AECOM LTD,"32,130.00",21/08/2018,
COMMERCIAL,REGIONAL ENTERPRISE,Other Services,80019277,CONWAY AECOM LTD,"34,142.20",21/08/2018,
COMMERCIAL,REGIONAL ENTERPRISE,Other Services,80019280,CONWAY AECOM LTD,"14,203.52",21/08/2018,
COMMERCIAL,REGIONAL ENTERPRISE,Other Services,80019282,CONWAY AECOM LTD,"4,558.29",21/08/2018,
COMMERCIAL,REGIONAL ENTERPRISE,Other Services,80019283,CONWAY AECOM LTD,"2,755.01",21/08/2018,
COMMERCIAL,REGIONAL ENTERPRISE,Other Services,60110245,CONWAY AECOM LTD,"29,614.93",06/08/2018,
COMMERCIAL,REGIONAL ENTERPRISE,Other Services,10014169,CONWAY AECOM LTD,62.61,06/08/2018,
COMMERCIAL,REGIONAL ENTERPRISE,Other Services,60108813,CONWAY AECOM LTD,116.83,06/08/2018,
COMMERCIAL,REGIONAL ENTERPRISE,Other Services,60109999,CONWAY AECOM LTD,45.87,01/08/2018,
COMMERCIAL,REGIONAL ENTERPRISE,Other Services,60110003,CONWAY AECOM LTD,50.69,01/08/2018,
COMMERCIAL,REGIONAL ENTERPRISE,Other Services,60110004,CONWAY AECOM LTD,101.37,01/08/2018,
COMMERCIAL,REGIONAL ENTERPRISE,Other Services,60110005,CONWAY AECOM LTD,59.62,01/08/2018,
COMMERCIAL,REGIONAL ENTERPRISE,Other Services,60110009,CONWAY AECOM LTD,101.37,01/08/2018,
COMMERCIAL,REGIONAL ENTERPRISE,Other Services,60110012,CONWAY AECOM LTD,59.62,01/08/2018,
COMMERCIAL,REGIONAL ENTERPRISE,Other Services,60110013,CONWAY AECOM LTD,119.24,01/08/2018,
COMMERCIAL,REGIONAL ENTERPRISE,Other Services,60110017,CONWAY AECOM LTD,59.62,01/08/2018,
COMMERCIAL,REGIONAL ENTERPRISE,Other Services,60110018,CONWAY AECOM LTD,59.62,01/08/2018,
COMMERCIAL,REGIONAL ENTERPRISE,Other Services,60110019,CONWAY AECOM LTD,45.87,01/08/2018,
COMMERCIAL,REGIONAL ENTERPRISE,Other Services,60110025,CONWAY AECOM LTD,50.69,01/08/2018,
COMMERCIAL,REGIONAL ENTERPRISE,Other Services,60110026,CONWAY AECOM LTD,119.26,01/08/2018,
COMMERCIAL,REGIONAL ENTERPRISE,Other Services,60110029,CONWAY AECOM LTD,119.24,01/08/2018,
COMMERCIAL,REGIONAL ENTERPRISE,Other Services,60110030,CONWAY AECOM LTD,119.24,01/08/2018,
COMMERCIAL,REGIONAL ENTERPRISE,Other Services,60110031,CONWAY AECOM LTD,59.62,01/08/2018,
COMMERCIAL,REGIONAL ENTERPRISE,Other Services,60110033,CONWAY AECOM LTD,59.62,01/08/2018,
COMMERCIAL,REGIONAL ENTERPRISE,Other Services,60110036,CONWAY AECOM LTD,45.87,01/08/2018,
COMMERCIAL,REGIONAL ENTERPRISE,Other Services,60110037,CONWAY AECOM LTD,45.87,01/08/2018,
COMMERCIAL,REGIONAL ENTERPRISE,Other Services,60110038,CONWAY AECOM LTD,101.37,01/08/2018,
COMMERCIAL,REGIONAL ENTERPRISE,Other Services,60110039,CONWAY AECOM LTD,59.62,01/08/2018,
COMMERCIAL,REGIONAL ENTERPRISE,Other Services,60110040,CONWAY AECOM LTD,59.62,01/08/2018,
COMMERCIAL,REGIONAL ENTERPRISE,Other Services,60110042,CONWAY AECOM LTD,59.62,01/08/2018,
COMMERCIAL,REGIONAL ENTERPRISE,Other Services,60110043,CONWAY AECOM LTD,59.62,01/08/2018,
COMMERCIAL,REGIONAL ENTERPRISE,Other Services,60110046,CONWAY AECOM LTD,50.69,01/08/2018,
COMMERCIAL,REGIONAL ENTERPRISE,Other Services,60110054,CONWAY AECOM LTD,50.69,01/08/2018,
COMMERCIAL,REGIONAL ENTERPRISE,Other Services,60110055,CONWAY AECOM LTD,59.62,01/08/2018,
COMMERCIAL,REGIONAL ENTERPRISE,Other Services,60110057,CONWAY AECOM LTD,59.62,01/08/2018,
COMMERCIAL,REGIONAL ENTERPRISE,Other Services,60110058,CONWAY AECOM LTD,45.87,01/08/2018,
COMMERCIAL,REGIONAL ENTERPRISE,Other Services,60110059,CONWAY AECOM LTD,59.62,01/08/2018,
COMMERCIAL,REGIONAL ENTERPRISE,Other Services,60110060,CONWAY AECOM LTD,59.62,01/08/2018,
COMMERCIAL,REGIONAL ENTERPRISE,Other Services,60110061,CONWAY AECOM LTD,59.62,01/08/2018,
COMMERCIAL,REGIONAL ENTERPRISE,Other Services,60110062,CONWAY AECOM LTD,59.62,01/08/2018,
COMMERCIAL,REGIONAL ENTERPRISE,Other Services,60110064,CONWAY AECOM LTD,59.62,01/08/2018,
COMMERCIAL,REGIONAL ENTERPRISE,Other Services,60110065,CONWAY AECOM LTD,64.45,01/08/2018,
COMMERCIAL,REGIONAL ENTERPRISE,Other Services,60110069,CONWAY AECOM LTD,59.62,01/08/2018,
COMMERCIAL,REGIONAL ENTERPRISE,Other Services,60110073,CONWAY AECOM LTD,152.06,01/08/2018,
COMMERCIAL,REGIONAL ENTERPRISE,Other Services,60110077,CONWAY AECOM LTD,59.62,01/08/2018,
COMMERCIAL,REGIONAL ENTERPRISE,Other Services,60110079,CONWAY AECOM LTD,59.62,01/08/2018,
COMMERCIAL,REGIONAL ENTERPRISE,Other Services,60110088,CONWAY AECOM LTD,59.62,01/08/2018,
COMMERCIAL,REGIONAL ENTERPRISE,Other Services,60110089,CONWAY AECOM LTD,59.63,01/08/2018,
COMMERCIAL,REGIONAL ENTERPRISE,Other Services,60110091,CONWAY AECOM LTD,59.62,01/08/2018,
COMMERCIAL,REGIONAL ENTERPRISE,Other Services,60110092,CONWAY AECOM LTD,59.62,01/08/2018,
COMMERCIAL,REGIONAL ENTERPRISE,Other Services,60110093,CONWAY AECOM LTD,59.62,01/08/2018,
COMMERCIAL,REGIONAL ENTERPRISE,Other Services,60110097,CONWAY AECOM LTD,59.62,01/08/2018,
COMMERCIAL,REGIONAL ENTERPRISE,Other Services,60110098,CONWAY AECOM LTD,59.63,01/08/2018,
COMMERCIAL,REGIONAL ENTERPRISE,Other Services,60110099,CONWAY AECOM LTD,59.63,01/08/2018,
COMMERCIAL,REGIONAL ENTERPRISE,Other Services,60110101,CONWAY AECOM LTD,45.87,01/08/2018,
COMMERCIAL,REGIONAL ENTERPRISE,Other Services,60110102,CONWAY AECOM LTD,59.63,01/08/2018,
COMMERCIAL,REGIONAL ENTERPRISE,Other Services,60110103,CONWAY AECOM LTD,50.69,01/08/2018,
COMMERCIAL,REGIONAL ENTERPRISE,Other Services,60110104,CONWAY AECOM LTD,101.37,01/08/2018,
COMMERCIAL,REGIONAL ENTERPRISE,Other Services,60110106,CONWAY AECOM LTD,64.45,01/08/2018,
COMMERCIAL,REGIONAL ENTERPRISE,Other Services,60110108,CONWAY AECOM LTD,59.62,01/08/2018,
COMMERCIAL,REGIONAL ENTERPRISE,Other Services,60110109,CONWAY AECOM LTD,59.62,01/08/2018,
COMMERCIAL,REGIONAL ENTERPRISE,Other Services,60110110,CONWAY AECOM LTD,59.62,01/08/2018,
COMMERCIAL,REGIONAL ENTERPRISE,Other Services,60110111,CONWAY AECOM LTD,59.62,01/08/2018,
COMMERCIAL,REGIONAL ENTERPRISE,Other Services,60110115,CONWAY AECOM LTD,119.24,01/08/2018,
COMMERCIAL,REGIONAL ENTERPRISE,Other Services,60110121,CONWAY AECOM LTD,45.87,01/08/2018,
COMMERCIAL,REGIONAL ENTERPRISE,Other Services,60110125,CONWAY AECOM LTD,119.24,01/08/2018,
COMMERCIAL,REGIONAL ENTERPRISE,Other Services,60110126,CONWAY AECOM LTD,91.74,01/08/2018,
COMMERCIAL,REGIONAL ENTERPRISE,Other Services,60110127,CONWAY AECOM LTD,59.62,01/08/2018,
COMMERCIAL,REGIONAL ENTERPRISE,Other Services,60110129,CONWAY AECOM LTD,59.62,01/08/2018,
COMMERCIAL,REGIONAL ENTERPRISE,Other Services,60110134,CONWAY AECOM LTD,59.62,01/08/2018,
COMMERCIAL,REGIONAL ENTERPRISE,Other Services,60110136,CONWAY AECOM LTD,59.62,01/08/2018,
COMMERCIAL,REGIONAL ENTERPRISE,Other Services,60110138,CONWAY AECOM LTD,59.62,01/08/2018,
COMMERCIAL,REGIONAL ENTERPRISE,Other Services,60110139,CONWAY AECOM LTD,45.87,01/08/2018,
COMMERCIAL,REGIONAL ENTERPRISE,Other Services,60110141,CONWAY AECOM LTD,59.62,01/08/2018,
COMMERCIAL,REGIONAL ENTERPRISE,Other Services,60110144,CONWAY AECOM LTD,59.62,01/08/2018,
COMMERCIAL,REGIONAL ENTERPRISE,Other Services,60110145,CONWAY AECOM LTD,59.62,01/08/2018,
COMMERCIAL,REGIONAL ENTERPRISE,Other Services,60110146,CONWAY AECOM LTD,91.74,01/08/2018,
COMMERCIAL,REGIONAL ENTERPRISE,Other Services,60110151,CONWAY AECOM LTD,59.62,02/08/2018,
COMMERCIAL,REGIONAL ENTERPRISE,Other Services,60110159,CONWAY AECOM LTD,"1,343.68",02/08/2018,
COMMERCIAL,REGIONAL ENTERPRISE,Other Services,60110160,CONWAY AECOM LTD,59.62,02/08/2018,
COMMERCIAL,REGIONAL ENTERPRISE,Other Services,60110161,CONWAY AECOM LTD,59.62,02/08/2018,
COMMERCIAL,REGIONAL ENTERPRISE,Other Services,60110190,CONWAY AECOM LTD,59.62,02/08/2018,
COMMERCIAL,REGIONAL ENTERPRISE,Other Services,60110204,CONWAY AECOM LTD,59.62,02/08/2018,
COMMERCIAL,REGIONAL ENTERPRISE,Other Services,60110234,CONWAY AECOM LTD,59.62,02/08/2018,
COMMERCIAL,REGIONAL ENTERPRISE,Other Services,60110236,CONWAY AECOM LTD,50.69,02/08/2018,
COMMERCIAL,REGIONAL ENTERPRISE,Other Services,60110237,CONWAY AECOM LTD,152.06,02/08/2018,
COMMERCIAL,REGIONAL ENTERPRISE,Other Services,60110247,CONWAY AECOM LTD,45.87,02/08/2018,
COMMERCIAL,REGIONAL ENTERPRISE,Other Services,60110249,CONWAY AECOM LTD,59.62,02/08/2018,
COMMERCIAL,REGIONAL ENTERPRISE,Other Services,60110255,CONWAY AECOM LTD,148.65,02/08/2018,
COMMERCIAL,REGIONAL ENTERPRISE,Other Services,60110258,CONWAY AECOM LTD,59.62,02/08/2018,
COMMERCIAL,REGIONAL ENTERPRISE,Other Services,60110262,CONWAY AECOM LTD,59.62,02/08/2018,
COMMERCIAL,REGIONAL ENTERPRISE,Other Services,60110263,CONWAY AECOM LTD,50.69,02/08/2018,
COMMERCIAL,REGIONAL ENTERPRISE,Other Services,60110270,CONWAY AECOM LTD,59.62,02/08/2018,
COMMERCIAL,REGIONAL ENTERPRISE,Other Services,60110271,CONWAY AECOM LTD,50.69,02/08/2018,
COMMERCIAL,REGIONAL ENTERPRISE,Other Services,60110273,CONWAY AECOM LTD,59.62,02/08/2018,
COMMERCIAL,REGIONAL ENTERPRISE,Other Services,60110283,CONWAY AECOM LTD,59.62,02/08/2018,
COMMERCIAL,REGIONAL ENTERPRISE,Other Services,60110287,CONWAY AECOM LTD,59.62,02/08/2018,
COMMERCIAL,REGIONAL ENTERPRISE,Other Services,60110443,CONWAY AECOM LTD,59.62,06/08/2018,
COMMERCIAL,REGIONAL ENTERPRISE,Other Services,60110459,CONWAY AECOM LTD,50.69,06/08/2018,
COMMERCIAL,REGIONAL ENTERPRISE,Other Services,60110461,CONWAY AECOM LTD,59.62,06/08/2018,
COMMERCIAL,REGIONAL ENTERPRISE,Other Services,60110466,CONWAY AECOM LTD,59.62,06/08/2018,
COMMERCIAL,REGIONAL ENTERPRISE,Other Services,60110467,CONWAY AECOM LTD,101.37,06/08/2018,
COMMERCIAL,REGIONAL ENTERPRISE,Other Services,60110475,CONWAY AECOM LTD,59.63,06/08/2018,
COMMERCIAL,REGIONAL ENTERPRISE,Other Services,60110489,CONWAY AECOM LTD,101.37,06/08/2018,
COMMERCIAL,REGIONAL ENTERPRISE,Other Services,60110493,CONWAY AECOM LTD,59.62,06/08/2018,
COMMERCIAL,REGIONAL ENTERPRISE,Other Services,60110510,CONWAY AECOM LTD,119.26,06/08/2018,
COMMERCIAL,REGIONAL ENTERPRISE,Other Services,60110518,CONWAY AECOM LTD,59.62,06/08/2018,
COMMERCIAL,REGIONAL ENTERPRISE,Other Services,60110521,CONWAY AECOM LTD,59.62,06/08/2018,
COMMERCIAL,REGIONAL ENTERPRISE,Other Services,60110528,CONWAY AECOM LTD,116.83,06/08/2018,
COMMERCIAL,REGIONAL ENTERPRISE,Other Services,60110530,CONWAY AECOM LTD,59.62,06/08/2018,
COMMERCIAL,REGIONAL ENTERPRISE,Other Services,60110533,CONWAY AECOM LTD,50.69,20/08/2018,
COMMERCIAL,REGIONAL ENTERPRISE,Other Services,60110555,CONWAY AECOM LTD,59.62,06/08/2018,
COMMERCIAL,REGIONAL ENTERPRISE,Other Services,60110559,CONWAY AECOM LTD,238.73,06/08/2018,
COMMERCIAL,REGIONAL ENTERPRISE,Other Services,60110562,CONWAY AECOM LTD,59.62,06/08/2018,
COMMERCIAL,REGIONAL ENTERPRISE,Other Services,60110565,CONWAY AECOM LTD,59.62,06/08/2018,
COMMERCIAL,REGIONAL ENTERPRISE,Other Services,60110572,CONWAY AECOM LTD,59.62,06/08/2018,
COMMERCIAL,REGIONAL ENTERPRISE,Other Services,60110578,CONWAY AECOM LTD,59.62,06/08/2018,
COMMERCIAL,REGIONAL ENTERPRISE,Other Services,60110584,CONWAY AECOM LTD,59.62,06/08/2018,
COMMERCIAL,REGIONAL ENTERPRISE,Other Services,60110603,CONWAY AECOM LTD,59.62,06/08/2018,
COMMERCIAL,REGIONAL ENTERPRISE,Other Services,60110612,CONWAY AECOM LTD,59.62,06/08/2018,
COMMERCIAL,REGIONAL ENTERPRISE,Other Services,60110621,CONWAY AECOM LTD,59.62,06/08/2018,
COMMERCIAL,REGIONAL ENTERPRISE,Other Services,60110626,CONWAY AECOM LTD,59.62,06/08/2018,
COMMERCIAL,REGIONAL ENTERPRISE,Other Services,60110629,CONWAY AECOM LTD,59.63,06/08/2018,
COMMERCIAL,REGIONAL ENTERPRISE,Other Services,60110630,CONWAY AECOM LTD,59.62,06/08/2018,
COMMERCIAL,REGIONAL ENTERPRISE,Other Services,60110634,CONWAY AECOM LTD,59.62,06/08/2018,
COMMERCIAL,REGIONAL ENTERPRISE,Other Services,60110638,CONWAY AECOM LTD,59.62,06/08/2018,
COMMERCIAL,REGIONAL ENTERPRISE,Other Services,60110650,CONWAY AECOM LTD,59.62,06/08/2018,
COMMERCIAL,REGIONAL ENTERPRISE,Other Services,60110651,CONWAY AECOM LTD,59.62,06/08/2018,
COMMERCIAL,REGIONAL ENTERPRISE,Other Services,60110656,CONWAY AECOM LTD,59.62,06/08/2018,
COMMERCIAL,REGIONAL ENTERPRISE,Other Services,60110708,CONWAY AECOM LTD,59.62,06/08/2018,
COMMERCIAL,REGIONAL ENTERPRISE,Other Services,60110710,CONWAY AECOM LTD,59.62,06/08/2018,
COMMERCIAL,REGIONAL ENTERPRISE,Other Services,60110720,CONWAY AECOM LTD,59.62,06/08/2018,
COMMERCIAL,REGIONAL ENTERPRISE,Other Services,60110722,CONWAY AECOM LTD,185.79,06/08/2018,
COMMERCIAL,REGIONAL ENTERPRISE,Consultants Fees,60110905,CONWAY AECOM LTD,"80,907.27",08/08/2018,
COMMERCIAL,REGIONAL ENTERPRISE,Other Services,60111824,BOUYGUES E&S INFRASTRUCTURE UK LTD,"31,828.93",24/08/2018,
COMMERCIAL,REGIONAL ENTERPRISE,Other Services,60110027,CONWAY AECOM LTD,"33,628.95",02/08/2018,
COMMERCIAL,REGIONAL ENTERPRISE,Other Services,60110724,CONWAY AECOM LTD,"44,800.00",06/08/2018,
COMMERCIAL,REGIONAL ENTERPRISE,Other Services,60111950,CONWAY AECOM LTD,"67,214.60",28/08/2018,
COMMERCIAL,REGIONAL ENTERPRISE,Other Services,60111960,CONWAY AECOM LTD,"26,155.85",29/08/2018,
COMMERCIAL,REGIONAL ENTERPRISE,Other Services,60112005,CONWAY AECOM LTD,"67,214.60",29/08/2018,
COMMERCIAL,REGIONAL ENTERPRISE,Other Services,60112011,CONWAY AECOM LTD,"8,652.14",29/08/2018,
COMMERCIAL,REGIONAL ENTERPRISE,Other Services,60112039,CONWAY AECOM LTD,"51,545.07",29/08/2018,
COMMERCIAL,REGIONAL ENTERPRISE,Other Services,60112076,CONWAY AECOM LTD,"78,101.00",29/08/2018,
COMMERCIAL,REGIONAL ENTERPRISE,Other Services,60112090,CONWAY AECOM LTD,"3,207.42",29/08/2018,
COMMERCIAL,REGIONAL ENTERPRISE,Building Repairs & Maintenance,60110374,S W BRUCE & CO LTD,"1,361.75",23/08/2018,
COMMERCIAL,REGIONAL ENTERPRISE,Building Repairs & Maintenance,60110409,S W BRUCE & CO LTD,"2,186.77",23/08/2018,
COMMERCIAL,REGIONAL ENTERPRISE,Consultants Fees,60112172,APR SERVICES LTD,"3,550.00",29/08/2018,
COMMERCIAL,REGIONAL ENTERPRISE,Advertising,60109623,TMP (UK) LTD,952.50,16/08/2018,
COMMERCIAL,REGIONAL ENTERPRISE,Advertising,60109665,TMP (UK) LTD,"1,596.00",16/08/2018,
Commissioning,Commissioning,Other Local Authorities - Thir,EBX0242646,TRANSPORT TRADING,"3,737,461.00",28/08/2018,
Commissioning,Commissioning,Other Local Authorities - Thir,EBX0242646,NORTH LONDON WASTE AUTHORITY,"1,014,603.00",24/08/2018,
Commissioning,Commissioning,Professional Services,10014174,GENERAL DYNAMICS INFORMATION TECHNOLOGY,"5,199.12",06/08/2018,
Commissioning,Commissioning,Professional Services,10014175,GENERAL DYNAMICS INFORMATION TECHNOLOGY,"4,773.72",06/08/2018,
Commissioning,Commissioning,Professional Services,10014176,GENERAL DYNAMICS INFORMATION TECHNOLOGY,"5,135.96",06/08/2018,
Commissioning,Commissioning,Other Services,60106379,LONDON BOROUGH OF BRENT,"106,000.00",14/08/2018,
Commissioning,Commissioning,Other Services,60108842,LONDON BOROUGH OF BRENT,"26,400.00",08/08/2018,
Commissioning,Commissioning,Fees and Charges,80019098,OISC,575.00,08/08/2018,
Commissioning,Commissioning,Other Services,60110494,BLUE SKY PERFORMANCE IMPROVEMENT,"7,000.00",29/08/2018,
Commissioning,Commissioning,Other Services,60111313,STOR-A FILE LTD,"5,945.28",29/08/2018,
Commissioning,Commissioning,Grant Payments,80018997,BARNET 1471 BATTLEFIELDS SOC,"1,500.00",02/08/2018,
Commissioning,Commissioning,Grant Payments,80019253,THE FLOWER BANK,"2,250.00",17/08/2018,
Commissioning,Commissioning,General Office Expenses,40002932,OFFICE DEPOT UK LTD,0.21,09/08/2018,
Commissioning,Commissioning,Professional Services,10014213,THE SOCIETY OF LONDON TREASURERS,35.00,24/08/2018,
Commissioning,Commissioning,Professional Services,10014185,GRANT THORNTON UK LLP,"4,908.33",09/08/2018,
Commissioning,Commissioning,Professional Services,60111275,GRANT THORNTON UK LLP,"33,886.70",14/08/2018,
Commissioning,Commissioning,Professional Services,60111465,GRANT THORNTON UK LLP,"25,510.20",23/08/2018,
Commissioning,Commissioning,Other Services,60109270,BETTER GROUP LIMITED,"18,520.00",09/08/2018,
Commissioning,Commissioning,Subscriptions,80019197,THE INFORMATION COMMISSIONER,"2,900.00",14/08/2018,
Commissioning,Commissioning,Professional Services,10014207,HBINFO LTD,250.00,21/08/2018,
Commissioning,Commissioning,Other Services,80018513,CARE ANALYTICS LTD,"4,500.00",03/08/2018,
Commissioning,Commissioning,Equipment and Materials Purcha,10014199,OCS GROUP UK LIMITED,"47,269.00",20/08/2018,
Commissioning,Commissioning,Equipment and Materials Purcha,60105079,OCS GROUP UK LIMITED,"1,533.45",13/08/2018,
Commissioning,Commissioning,Other Services,60109794,REDACTED - PERSONAL DATA,155.00,08/08/2018,
Commissioning,Commissioning,Transport Hire Charges,60107855,BARNET COMMUNITY TRANSPORT,280.00,07/08/2018,
Commissioning,Commissioning,Transport Hire Charges,60108695,BARNET COMMUNITY TRANSPORT,"1,430.00",07/08/2018,
Commissioning,Commissioning,Other Services,60109737,GOOD IMPRESSIONS (LONDON) LIMITED,460.00,09/08/2018,
Commissioning,Commissioning,Other Services,60106288,ENGLAND BASKETBALL/LONDON RMC,30.00,10/08/2018,
Commissioning,Commissioning,Other Services,60106549,OLD FINCUNIANS NETBALL CLUB (OFNC),800.00,07/08/2018,
Commissioning,Commissioning,Other Services,60108812,CAN DIGITAL SOLUTIONS LTD,"1,750.00",09/08/2018,
Commissioning,Commissioning,Other Services,60111693,TILLR TECHNOLOGY LIMITED,"2,500.00",28/08/2018,
Commissioning,Commissioning,Equipment and Materials Purcha,60110604,BRITISH TELECOM PLC,"4,416.00",06/08/2018,
Commissioning,Commissioning,Equipment and Materials Purcha,60110600,SOLACE WOMEN'S AID,"17,786.75",07/08/2018,
Commissioning,Commissioning,Equipment and Materials Purcha,60110759,SOLACE WOMEN'S AID,"17,786.75",14/08/2018,
Commissioning,Commissioning,Other Transfer Payments to Soc,10014198,GOOD IMPRESSIONS (LONDON) LIMITED,180.00,15/08/2018,
Commissioning,Commissioning,Other Transfer Payments to Soc,60108887,VICTIM SUPPORT SERVICES,"5,200.00",09/08/2018,
Commissioning,Commissioning,Consultants Fees,60111250,REDACTED - PERSONAL DATA,21.42,15/08/2018,
Commissioning,Commissioning,Private Contractors - Third Pa,60110085,GREENWICH LEISURE LTD,"33,066.58",07/08/2018,
Commissioning,Commissioning,Private Contractors - Third Pa,60111273,GREENWICH LEISURE LTD,"32,505.53",14/08/2018,
Commissioning,Commissioning,Private Contractors - Third Pa,60111506,GREENWICH LEISURE LTD,"32,505.53",15/08/2018,
Commissioning,Commissioning,Other Services,60108000,REDACTED - PERSONAL DATA,150.00,01/08/2018,
Commissioning,Commissioning,Other Services,60111064,REDACTED - PERSONAL DATA,112.50,31/08/2018,
Commissioning,Commissioning,Equipment and Materials Purcha,60100310,FINDEL EDUCATION LIMITED,239.99,02/08/2018,
Commissioning,Commissioning,Equipment and Materials Purcha,60100363,FINDEL EDUCATION LIMITED,519.98,02/08/2018,
Commissioning,Commissioning,Equipment and Materials Purcha,60100375,FINDEL EDUCATION LIMITED,99.98,02/08/2018,
Commissioning,Commissioning,Equipment and Materials Purcha,60110943,FINDEL EDUCATION LIMITED,2.99,09/08/2018,
Commissioning,Commissioning,Other Services,60104916,COLINDALE COMMUNITIES TRUST,"1,211.25",01/08/2018,
Commissioning,Commissioning,Other Services,60109724,COLINDALE COMMUNITIES TRUST,"1,211.25",01/08/2018,
Commissioning,Commissioning,Other Services,60109879,LONDON REIGN SPORTS,712.50,21/08/2018,
Commissioning,Commissioning,Professional Services,60110133,LONDON BOROUGH OF EALING,"18,000.00",01/08/2018,
Commissioning,Commissioning,Professional Services,60110453,FLUID DESIGN LTD,"6,638.75",16/08/2018,
Commissioning,Commissioning,Publications,60110366,BUFFALO7 LTD,375.00,02/08/2018,
Commissioning,Commissioning,Consultants Fees,60111912,CAPITA BUSINESS SERVICES LTD,67.50,31/08/2018,
Commissioning,Commissioning,Consultants Fees,60103860,ARIANA BANQUETING HALL,800.00,10/08/2018,
Commissioning,Commissioning,Advertising,60100788,TMP (UK) LTD,"1,231.00",09/08/2018,
Commissioning,Commissioning,Training,60109803,ACAS,865.00,21/08/2018,
Commissioning,Commissioning,Training,60111680,SHA'ARE TSEDEK NORTH LONDON REFORM SYNAG,450.00,28/08/2018,
Commissioning,Commissioning,Training,60109876,RESOLVEX PEOPLE SOLUTIONS LIMITED,547.10,22/08/2018,
Commissioning,Commissioning,Training,60108814,JUDELINE NICOLAS,642.60,09/08/2018,
Commissioning,Commissioning,Training,60110464,JUDELINE NICOLAS,642.60,28/08/2018,
Commissioning,Commissioning,Consultants Fees,60107477,GATENBY SANDERSON,"23,116.56",15/08/2018,
Commissioning,Commissioning,Consultants Fees,60108549,GATENBY SANDERSON,"6,063.36",15/08/2018,
Commissioning,Commissioning,Consultants Fees,60108577,GATENBY SANDERSON,"6,756.24",15/08/2018,
Commissioning,Commissioning,Consultants Fees,60110396,GATENBY SANDERSON,"3,378.12",23/08/2018,
Commissioning,Commissioning,Miscellaneous Expenses,80018910,REDACTED - PERSONAL DATA,"1,000.00",14/08/2018,
Commissioning,Commissioning,Other Services,60110348,SERVELEC SYNERGY LTD,525.00,23/08/2018,
COMMISSIONING,COMMISSIONING GROUP,Equipment and Materials Purcha,60109499,DEMCO EUROPE LIMITED,"5,925.41",15/08/2018,
COMMISSIONING,COMMISSIONING GROUP,Equipment and Materials Purcha,60111382,JOHN GRAHAM CONSTRUCTION LTD,"1,185,411.08",14/08/2018,
COMMISSIONING,COMMISSIONING GROUP,Equipment and Materials Purcha,60111573,JOHN GRAHAM CONSTRUCTION LTD,"975,400.78",21/08/2018,
COMMISSIONING,COMMISSIONING GROUP,Building Repairs & Maintenance,60110377,S W BRUCE & CO LTD,"6,144.45",23/08/2018,
COMMISSIONING,COMMISSIONING GROUP,Building Repairs & Maintenance,60110388,S W BRUCE & CO LTD,"13,713.89",23/08/2018,
COMMISSIONING,COMMISSIONING GROUP,Ttl IT & Comms,60111335,WRITTLE FOREST LTD,"1,245.00",22/08/2018,
COMMISSIONING,COMMISSIONING GROUP,Building Repairs & Maintenance,60110695,S W BRUCE & CO LTD,"2,011.28",23/08/2018,
COMMISSIONING,COMMISSIONING GROUP,Building Repairs & Maintenance,60111279,SURFACING STANDARDS LTD,"5,575.00",14/08/2018,
COMMISSIONING,COMMISSIONING GROUP,Building Repairs & Maintenance,60110128,S W BRUCE & CO LTD,"5,685.57",23/08/2018,
COMMISSIONING,COMMISSIONING GROUP,Rents,60112221,ROYAL AIR FORCE MUSEUM,"2,500.00",29/08/2018,
COMMISSIONING,COMMISSIONING GROUP,Training,60108689,STAIRWAY CONSULTING LTD,"1,338.60",07/08/2018,
COMMISSIONING,COMMISSIONING GROUP,Training,60108761,STAIRWAY CONSULTING LTD,"3,669.30",01/08/2018,
COMMISSIONING,COMMISSIONING GROUP,Training,60110223,STAIRWAY CONSULTING LTD,"1,338.60",16/08/2018,
COMMISSIONING,COMMISSIONING GROUP,Training,60110252,STAIRWAY CONSULTING LTD,"2,607.90",14/08/2018,
COMMISSIONING,COMMISSIONING GROUP,Building Repairs & Maintenance,10014166,SMS CONNECTIONS LTD,"3,475.46",02/08/2018,
COMMISSIONING,COMMISSIONING GROUP,Consultants Fees,60111697,E-CAR CLUB,"2,566.43",22/08/2018,
COMMISSIONING,COMMISSIONING GROUP,Consultants Fees,10014208,GALLIFORD TRY,"1,526,720.57",23/08/2018,
COMMISSIONING,COMMISSIONING GROUP,Equipment and Materials Purcha,60109883,MEMS LTD T/A MEMS POWER GENERATION,"1,609.72",21/08/2018,
COMMISSIONING,COMMISSIONING GROUP,Equipment and Materials Purcha,60111239,MEMS LTD T/A MEMS POWER GENERATION,"5,495.18",10/08/2018,
COMMISSIONING,COMMISSIONING GROUP,Equipment and Materials Purcha,60110394,JOHN GRAHAM CONSTRUCTION LTD,"1,268,303.04",02/08/2018,
COMMISSIONING,COMMISSIONING GROUP,Equipment and Materials Purcha,60111635,JOHN GRAHAM CONSTRUCTION LTD,"1,359,032.25",23/08/2018,
COMMISSIONING,COMMISSIONING GROUP,Equipment and Materials Purcha,60111036,AKS WARD LTD,"1,000.00",09/08/2018,
COMMISSIONING,COMMISSIONING GROUP,Other Services,60112320,TRAFFIC SURVEY PARTNERS (TSP) LTD,360.00,31/08/2018,
COMMISSIONING,COMMISSIONING GROUP,Equipment and Materials Purcha,60111201,BOUYGUES E&S INFRASTRUCTURE UK LTD,"6,803.35",15/08/2018,
COMMISSIONING,COMMISSIONING GROUP,Other Services,60110771,CONWAY AECOM LTD,595.15,07/08/2018,
COMMISSIONING,COMMISSIONING GROUP,Advertising,60111103,TMP (UK) LTD,287.00,23/08/2018,
COMMISSIONING,COMMISSIONING GROUP,Other Services,60111932,BOUYGUES E&S INFRASTRUCTURE UK LTD,287.50,24/08/2018,
COMMISSIONING,COMMISSIONING GROUP,Equipment and Materials Purcha,60111158,CONWAY AECOM LTD,165.93,13/08/2018,
COMMISSIONING,COMMISSIONING GROUP,Equipment and Materials Purcha,60109598,HAGS PLAY LTD,"20,000.00",29/08/2018,
COMMISSIONING,COMMISSIONING GROUP,Equipment and Materials Purcha,60112063,HAGS PLAY LTD,"21,508.27",24/08/2018,
COMMISSIONING,COMMISSIONING GROUP,Other Services,60111439,CYCLE CONFIDENT LTD,"29,203.26",31/08/2018,
COMMISSIONING,COMMISSIONING GROUP,Other Services,60108831,SELECTAMARK SECURITY SYSTEMS PLC,65.95,09/08/2018,
COMMISSIONING,COMMISSIONING GROUP,Other Services,60111227,CONWAY AECOM LTD,"125,000.00",16/08/2018,
COMMISSIONING,COMMISSIONING GROUP,Other Services,60111843,BOUYGUES E&S INFRASTRUCTURE UK LTD,"1,000.50",24/08/2018,
COMMISSIONING,COMMISSIONING GROUP,Capital Construction and Works,60112092,CONWAY AECOM LTD,108.21,24/08/2018,
COMMISSIONING,COMMISSIONING GROUP,Other Services,60111844,BOUYGUES E&S INFRASTRUCTURE UK LTD,90.82,24/08/2018,
COMMISSIONING,COMMISSIONING GROUP,Other Services,60112315,CONWAY AECOM LTD,"3,321.14",31/08/2018,
COMMISSIONING,COMMISSIONING GROUP,Capital Construction and Works,60109557,CHRIST'S COLLEGE FINCHLEY ACADEMY,"208,146.44",24/08/2018,
COMMISSIONING,COMMISSIONING GROUP,Other Services,60111060,CONWAY AECOM LTD,"58,758.34",21/08/2018,
COMMISSIONING,COMMISSIONING GROUP,Other Services,60111157,CONWAY AECOM LTD,"1,858.74",13/08/2018,
COMMISSIONING,COMMISSIONING GROUP,Other Services,60111160,CONWAY AECOM LTD,"13,815.28",13/08/2018,
COMMISSIONING,COMMISSIONING GROUP,Other Services,60111223,CONWAY AECOM LTD,"33,782.49",13/08/2018,
COMMISSIONING,COMMISSIONING GROUP,Other Services,60111790,CONWAY AECOM LTD,"8,185.38",23/08/2018,
Corporate Accounting,Corporate Accounting,Other Local Authorities - Thir,EBX0242146,GREATER LONDON AUTHORITY,"236,146.00",22.8.18,
Corporate Accounting,Corporate Accounting,Government departments - Third,80018871,DEPARTMENT FOR COMMUNITIES & LOCAL GOV.,"438,083.80",01/08/2018,
Corporate Accounting,Corporate Accounting,Grant Payments,80018978,WILD ABOUT OUR WOODS CIO,"4,800.00",02/08/2018,
Corporate Accounting,Corporate Accounting,Grant Payments,80018999,BARNET COMMUNITY PROJECTS,"2,715.00",02/08/2018,
Corporate Accounting,Corporate Accounting,Miscellaneous Expenses,80019353,FRITH MANOR EQUESTRIAN CENTRE,238.00,23/08/2018,
Corporate Accounting,Corporate Accounting,Other Transfer Payments to Soc,80019378,WIRECARD (FS INSTANT 2040880892973),"14,836.18",24/08/2018,
Corporate Accounting,Corporate Accounting,Other Transfer Payments to Soc,80019379,WIRECARD (FS ONGOING 2040881670310,"18,000.71",24/08/2018,
Corporate Accounting,Corporate Accounting,Refunds,80018781,LONDON BOROUGH OF BRENT,265.00,01/08/2018,
Corporate Accounting,Corporate Accounting,Refunds,80019123,REDACTED - PERSONAL DATA,657.60,09/08/2018,
Delivery Units,Adults and Communities,Other Services,60108696,JENNY ROGERS COACHING LTD,"2,100.00",01/08/2018,
Delivery Units,Adults and Communities,Voluntary Associations - Third,20037806,ELEANOR PALMER TRUST NO 2 A/C.,486.50,15/08/2018,
Delivery Units,Adults and Communities,Voluntary Associations - Third,20037805,CHRISTIAN ACTION (ENFIELD),365.80,15/08/2018,
Delivery Units,Adults and Communities,Voluntary Associations - Third,20037804,ASRA GREATER LONDON HOUSING ASSOC,379.30,15/08/2018,
Delivery Units,Adults and Communities,Voluntary Associations - Third,20037813,LINEN & WOOLLEN DRAPERS COTTAGE,730.11,15/08/2018,
Delivery Units,Adults and Communities,Voluntary Associations - Third,20037808,HABINTEG HOUSING ASSOCIATION,446.37,15/08/2018,
Delivery Units,Adults and Communities,Voluntary Associations - Third,20037811,ORCHARD HOUSING ASSOCIATION,196.62,14/08/2018,
Delivery Units,Adults and Communities,Voluntary Associations - Third,20037812,ST PANCRAS & HUMANIST H.A.,661.55,15/08/2018,
Delivery Units,Adults and Communities,Voluntary Associations - Third,20037815,WILLOW HOUSING & CARE LTD.,711.38,15/08/2018,
Delivery Units,Adults and Communities,Voluntary Associations - Third,20037809,JEWISH COMMUNITY HOUSING ASSOCIATIO,568.17,15/08/2018,
Delivery Units,Adults and Communities,Voluntary Associations - Third,20037807,GENESIS HOUSING ASSOCIATION LIMITED,"35,676.00",15/08/2018,
Delivery Units,Adults and Communities,Voluntary Associations - Third,20037814,SCOTSCARE,361.52,15/08/2018,
Delivery Units,Adults and Communities,Other Services,80019114,OT SPECIALISTS,450.00,21/08/2018,
Delivery Units,Adults and Communities,Other Services,60111168,M1 EXPRESS CAR SERVICES,106.00,13/08/2018,
Delivery Units,Adults and Communities,Other Transfer Payments to Soc,60104909,BACK CARE SOLUTIONS LIMITED,68.50,20/08/2018,
Delivery Units,Adults and Communities,Ttl IT & Comms,60109296,P A CONSULTING SERVICES LTD,"7,680.00",01/08/2018,
Delivery Units,Adults and Communities,Equipment and Materials Purcha,60108977,MILLBROOK HEALTHCARE LTD,"37,766.12",15/08/2018,
Delivery Units,Adults and Communities,Other Services,60108644,KORU MEDICAL LTD,174.96,10/08/2018,
Delivery Units,Adults and Communities,Other Services,80018830,NATIONAL DEVELOPMENT TEAM FOR INCLUSION,"1,150.00",08/08/2018,
Delivery Units,Adults and Communities,Travelling Expenses,80019261,REDACTED - PERSONAL DATA,161.00,17/08/2018,
Delivery Units,Adults and Communities,Building Repairs & Maintenance,60111380,OAKRAY LIMITED,165.38,15/08/2018,
Delivery Units,Adults and Communities,Building Repairs & Maintenance,60112166,OAKRAY LIMITED,192.58,29/08/2018,
Delivery Units,Adults and Communities,Building Repairs & Maintenance,60112481,OAKRAY LIMITED,310.50,31/08/2018,
Delivery Units,Adults and Communities,Building Repairs & Maintenance,60102120,RGE SERVICES,129.59,01/08/2018,
Delivery Units,Adults and Communities,Building Repairs & Maintenance,60110021,AJS LTD,42.74,01/08/2018,
Delivery Units,Adults and Communities,Building Repairs & Maintenance,60110966,S W BRUCE & CO LTD,181.95,29/08/2018,
Delivery Units,Adults and Communities,Gas,60110105,KENT COUNTY COUNCIL (KCS),98.00,01/08/2018,
Delivery Units,Adults and Communities,Gas,60112480,KENT COUNTY COUNCIL (KCS),90.20,31/08/2018,
Delivery Units,Adults and Communities,Gas,60112518,BRITISH GAS BUSINESS,374.21,31/08/2018,
Delivery Units,Adults and Communities,Electricity,60110051,KENT COUNTY COUNCIL (KCS),176.77,03/08/2018,
Delivery Units,Adults and Communities,Water Services,60110050,CASTLE WATER LTD,28.81,01/08/2018,
Delivery Units,Adults and Communities,Cleaning and domestic material,60110822,CHURCHILL CONTRACT SERVICES,391.37,31/08/2018,
Delivery Units,Adults and Communities,Food Costs,60110123,MULLER MILK & INGREDIENTS,1.52,10/08/2018,
Delivery Units,Adults and Communities,Food Costs,60111170,MULLER MILK & INGREDIENTS,1.52,24/08/2018,
Delivery Units,Adults and Communities,Stationery,40002912,OFFICE DEPOT UK LTD,214.30,02/08/2018,
Delivery Units,Adults and Communities,Stationery,60112494,HERTFORDSHIRE COUNTY COUNCIL,270.79,31/08/2018,
Delivery Units,Adults and Communities,General Office Expenses,40002918,OFFICE DEPOT UK LTD,45.00,02/08/2018,
Delivery Units,Adults and Communities,Translation Exp / Interpret,60107989,D.A. LANGUAGES LTD,213.00,01/08/2018,
Delivery Units,Adults and Communities,Translation Exp / Interpret,60111096,D.A. LANGUAGES LTD,181.00,31/08/2018,
Delivery Units,Adults and Communities,Rubbish Collection,60111230,BPR GROUP EUROPE LTD,169.00,21/08/2018,
Delivery Units,Adults and Communities,Rubbish Collection,60112502,BPR GROUP EUROPE LTD,21.60,31/08/2018,
Delivery Units,Adults and Communities,Other Services,60111164,THE KEYHOLDING CO LTD,426.00,13/08/2018,
Delivery Units,Adults and Communities,Voluntary Associations - Third,20037810,MIDDLESEX ASSOCIATION  FOR THE BLIN,"2,394.00",15/08/2018,
Delivery Units,Adults and Communities,Voluntary Associations - Third,20037803,AGE CONCERN,"58,333.00",15/08/2018,
Delivery Units,Adults and Communities,Voluntary Associations - Third,20037816,GENESIS HOUSING ASSOCIATION LIMITED,"33,577.00",15/08/2018,
Delivery Units,Adults and Communities,Other Transfer Payments to Soc,60108888,AGE CONCERN,"3,150.00",09/08/2018,
Delivery Units,Adults and Communities,Other Services,80019226,POHWER,"3,840.00",15/08/2018,
Delivery Units,Adults and Communities,Training,60108565,MICHAEL MANDELSTAM LTD,825.00,02/08/2018,
Delivery Units,Adults and Communities,Training,60108879,MEDUCATE TRAINING LTD,400.00,09/08/2018,
Delivery Units,Adults and Communities,Training,60109843,MEDUCATE TRAINING LTD,400.00,16/08/2018,
Delivery Units,Adults and Communities,Other Services,60108732,REDACTED - PERSONAL DATA,500.00,09/08/2018,
Delivery Units,Adults and Communities,Other Services,80019074,CARE MONITORING 2000 LTD,"11,602.32",06/08/2018,
Delivery Units,Adults and Communities,Other Transfer Payments to Soc,80019410,HILL HOUSE RESIDENTS FUND,320.60,24/08/2018,
Delivery Units,Adults and Communities,Other Transfer Payments to Soc,80018964,OAK TREE,151.67,01/08/2018,
Delivery Units,Adults and Communities,Other Transfer Payments to Soc,80019406,CLOVERLEY PROPERTIES LTD,136.00,29/08/2018,
Delivery Units,Adults and Communities,Other Transfer Payments to Soc,80019403,REDACTED - PERSONAL DATA,99.60,29/08/2018,
Delivery Units,Adults and Communities,Other Transfer Payments to Soc,80019244,REDACTED - PERSONAL DATA,460.00,15/08/2018,
Delivery Units,Adults and Communities,Other Transfer Payments to Soc,80019241,REDACTED - PERSONAL DATA,99.60,15/08/2018,
Delivery Units,Adults and Communities,Other Transfer Payments to Soc,80018969,REDACTED - PERSONAL DATA,146.80,01/08/2018,
Delivery Units,Adults and Communities,Other Transfer Payments to Soc,80018963,REDACTED - PERSONAL DATA,186.80,01/08/2018,
Delivery Units,Adults and Communities,Other Transfer Payments to Soc,80019224,REDACTED - PERSONAL DATA,419.52,15/08/2018,
Delivery Units,Adults and Communities,Other Transfer Payments to Soc,80019239,REDACTED - PERSONAL DATA,80.00,15/08/2018,
Delivery Units,Adults and Communities,Other Transfer Payments to Soc,80018953,REDACTED - PERSONAL DATA,99.60,01/08/2018,
Delivery Units,Adults and Communities,Other Transfer Payments to Soc,80018949,REDACTED - PERSONAL DATA,155.00,01/08/2018,
Delivery Units,Adults and Communities,Other Transfer Payments to Soc,80018951,REDACTED - PERSONAL DATA,160.00,01/08/2018,
Delivery Units,Adults and Communities,Other Transfer Payments to Soc,80019411,REDACTED - PERSONAL DATA,160.00,29/08/2018,
Delivery Units,Adults and Communities,Other Transfer Payments to Soc,80018967,REDACTED - PERSONAL DATA,80.00,01/08/2018,
Delivery Units,Adults and Communities,Other Transfer Payments to Soc,80018956,REDACTED - PERSONAL DATA,99.60,01/08/2018,
Delivery Units,Adults and Communities,Other Transfer Payments to Soc,80018955,REDACTED - PERSONAL DATA,183.80,01/08/2018,
Delivery Units,Adults and Communities,Other Transfer Payments to Soc,80018993,REDACTED - PERSONAL DATA,26.99,01/08/2018,
Delivery Units,Adults and Communities,Other Transfer Payments to Soc,80019399,REDACTED - PERSONAL DATA,558.49,28/08/2018,
Delivery Units,Adults and Communities,Other Transfer Payments to Soc,80019408,REDACTED - PERSONAL DATA,200.00,29/08/2018,
Delivery Units,Adults and Communities,Other Transfer Payments to Soc,80019246,REDACTED - PERSONAL DATA,300.00,15/08/2018,
Delivery Units,Adults and Communities,Other Transfer Payments to Soc,80018959,REDACTED - PERSONAL DATA,200.00,01/08/2018,
Delivery Units,Adults and Communities,Other Transfer Payments to Soc,80018965,REDACTED - PERSONAL DATA,99.60,01/08/2018,
Delivery Units,Adults and Communities,Other Transfer Payments to Soc,80018952,REDACTED - PERSONAL DATA,99.60,01/08/2018,
Delivery Units,Adults and Communities,Other Transfer Payments to Soc,80018954,REDACTED - PERSONAL DATA,200.00,01/08/2018,
Delivery Units,Adults and Communities,Other Transfer Payments to Soc,80019082,REDACTED - PERSONAL DATA,150.00,07/08/2018,
Delivery Units,Adults and Communities,Other Transfer Payments to Soc,80018961,REDACTED - PERSONAL DATA,93.40,01/08/2018,
Delivery Units,Adults and Communities,Other Transfer Payments to Soc,80018992,REDACTED - PERSONAL DATA,80.00,01/08/2018,
Delivery Units,Adults and Communities,Other Transfer Payments to Soc,80019409,REDACTED - PERSONAL DATA,99.60,29/08/2018,
Delivery Units,Adults and Communities,Other Transfer Payments to Soc,80019242,REDACTED - PERSONAL DATA,186.80,15/08/2018,
Delivery Units,Adults and Communities,Other Transfer Payments to Soc,80018968,REDACTED - PERSONAL DATA,160.00,01/08/2018,
Delivery Units,Adults and Communities,Other Transfer Payments to Soc,80019245,REDACTED - PERSONAL DATA,139.60,15/08/2018,
Delivery Units,Adults and Communities,Other Transfer Payments to Soc,80019400,REDACTED - PERSONAL DATA,99.60,29/08/2018,
Delivery Units,Adults and Communities,Other Transfer Payments to Soc,80019402,REDACTED - PERSONAL DATA,99.60,29/08/2018,
Delivery Units,Adults and Communities,Other Transfer Payments to Soc,80018958,REDACTED - PERSONAL DATA,69.80,01/08/2018,
Delivery Units,Adults and Communities,Other Transfer Payments to Soc,80019240,REDACTED - PERSONAL DATA,99.60,15/08/2018,
Delivery Units,Adults and Communities,Translation Exp / Interpret,60108079,D.A. LANGUAGES LTD,22.00,01/08/2018,
Delivery Units,Adults and Communities,Consultants Fees,80019129,REDACTED - PERSONAL DATA,"3,025.00",09/08/2018,
Delivery Units,Adults and Communities,Other Services,80019133,REDACTED - PERSONAL DATA,140.00,09/08/2018,
Delivery Units,Adults and Communities,Other Services,80019134,REDACTED - PERSONAL DATA,140.00,09/08/2018,
Delivery Units,Adults and Communities,Training,80019131,HUNTERSJOY LTD,"6,820.00",09/08/2018,
Delivery Units,Adults and Communities,Pool Transport Charges,60109583,MOTT MACDONALD LTD/CAMBRIDGE EDUCATION,135.00,01/08/2018,
Delivery Units,Adults and Communities,Translation Exp / Interpret,60108031,D.A. LANGUAGES LTD,33.00,03/08/2018,
Delivery Units,Adults and Communities,Translation Exp / Interpret,60108082,D.A. LANGUAGES LTD,23.59,01/08/2018,
Delivery Units,Adults and Communities,Translation Exp / Interpret,60111101,D.A. LANGUAGES LTD,33.00,31/08/2018,
Delivery Units,Adults and Communities,Other Transfer Payments to Soc,60109983,KORU MEDICAL LTD,178.67,10/08/2018,
Delivery Units,Adults and Communities,Other Services,60098182,HANDS FREE COMPUTING LTD,375.00,07/08/2018,
Delivery Units,Adults and Communities,Other Services,60110941,HANDS FREE COMPUTING LTD,375.00,08/08/2018,
Delivery Units,Adults and Communities,Water Services,60081680,ANGEL SPRINGS LTD,24.00,31/08/2018,
Delivery Units,Adults and Communities,Translation Exp / Interpret,60108065,D.A. LANGUAGES LTD,131.00,01/08/2018,
Delivery Units,Adults and Communities,Translation Exp / Interpret,60111089,D.A. LANGUAGES LTD,93.00,31/08/2018,
Delivery Units,Adults and Communities,Translation Exp / Interpret,60111107,D.A. LANGUAGES LTD,33.75,31/08/2018,
Delivery Units,Adults and Communities,Other Services,80019139,REDACTED - PERSONAL DATA,81.30,13/08/2018,
Delivery Units,Adults and Communities,Other Services,80019151,REDACTED - PERSONAL DATA,233.50,13/08/2018,
Delivery Units,Adults and Communities,Other Transfer Payments to Soc,60109692,MOTT MACDONALD LTD/CAMBRIDGE EDUCATION,270.00,01/08/2018,
Delivery Units,Adults and Communities,Equipment and Materials Purcha,60103382,HANDS FREE COMPUTING LTD,258.00,09/08/2018,
Delivery Units,Adults and Communities,Other Services,60106392,BACK CARE SOLUTIONS LIMITED,68.50,03/08/2018,
Delivery Units,Adults and Communities,Translation Exp / Interpret,60111091,D.A. LANGUAGES LTD,49.50,31/08/2018,
Delivery Units,Adults and Communities,Other Services,80018876,FELICITY ELVIDGE,322.50,02/08/2018,
Delivery Units,Adults and Communities,Other Services,80018878,ONE NORTH MEDICAL LIMITED,202.84,02/08/2018,
Delivery Units,Adults and Communities,Other Services,80018937,SHIRAZ AKOO LTD,199.80,02/08/2018,
Delivery Units,Adults and Communities,Other Services,80018938,SHIRAZ AKOO LTD,228.60,02/08/2018,
Delivery Units,Adults and Communities,Other Services,80018939,KEATON LINGARD BEST INTEREST,309.00,02/08/2018,
Delivery Units,Adults and Communities,Other Services,80018943,SHIRAZ AKOO LTD,207.90,02/08/2018,
Delivery Units,Adults and Communities,Other Services,80019135,SHIRAZ AKOO LTD,207.90,09/08/2018,
Delivery Units,Adults and Communities,Other Services,80019136,REDACTED - PERSONAL DATA,178.06,09/08/2018,
Delivery Units,Adults and Communities,Other Services,80019208,REDACTED - PERSONAL DATA,323.40,14/08/2018,
Delivery Units,Adults and Communities,Other Services,80019210,REDACTED - PERSONAL DATA,360.00,14/08/2018,
Delivery Units,Adults and Communities,Other Transfer Payments to Soc,60108741,AISA MEDICAL LTD,347.27,06/08/2018,
Delivery Units,Adults and Communities,Other Transfer Payments to Soc,60108757,AISA MEDICAL LTD,177.76,06/08/2018,
Delivery Units,Adults and Communities,Other Transfer Payments to Soc,60108780,AISA MEDICAL LTD,351.29,06/08/2018,
Delivery Units,Adults and Communities,Other Transfer Payments to Soc,60108790,AISA MEDICAL LTD,346.74,06/08/2018,
Delivery Units,Adults and Communities,Other Transfer Payments to Soc,60111934,AISA MEDICAL LTD,351.98,28/08/2018,
Delivery Units,Adults and Communities,Other Transfer Payments to Soc,60097615,HCL SOCIAL CARE LTD,335.00,13/08/2018,
Delivery Units,Adults and Communities,Other Transfer Payments to Soc,60100436,HCL SOCIAL CARE LTD,335.00,14/08/2018,
Delivery Units,Adults and Communities,Other Transfer Payments to Soc,60108473,PEACEABLE HABITATION LTD,300.00,02/08/2018,
Delivery Units,Adults and Communities,Other Transfer Payments to Soc,10014170,AKRAS SOLUTIONS LIMITED,"1,273.52",16/08/2018,
Delivery Units,Adults and Communities,Other Transfer Payments to Soc,10014171,AKRAS SOLUTIONS LIMITED,"4,071.76",16/08/2018,
Delivery Units,Adults and Communities,Other Transfer Payments to Soc,60091071,EMPOWERING SOCIAL WORK LTD,350.00,09/08/2018,
Delivery Units,Adults and Communities,Other Transfer Payments to Soc,60108311,EDUHEZ LTD,"2,380.00",02/08/2018,
Delivery Units,Adults and Communities,Other Transfer Payments to Soc,60108968,EDUHEZ LTD,"2,800.00",15/08/2018,
Delivery Units,Adults and Communities,General Office Expenses,40002940,OFFICE DEPOT UK LTD,45.82,02/08/2018,
Delivery Units,Adults and Communities,Other Agencies - Third Party P,90102745,NIGHTINGALE HOUSE,"2,900.71",31/08/2018,
Delivery Units,Adults and Communities,Other Agencies - Third Party P,90095835,JEWISH CARE,331.35,06/08/2018,
Delivery Units,Adults and Communities,Other Agencies - Third Party P,90095852,JEWISH CARE,948.86,06/08/2018,
Delivery Units,Adults and Communities,Other Agencies - Third Party P,90095860,JEWISH CARE,"2,261.88",06/08/2018,
Delivery Units,Adults and Communities,Other Agencies - Third Party P,90095861,JEWISH CARE,"3,600.00",06/08/2018,
Delivery Units,Adults and Communities,Other Agencies - Third Party P,90095862,JEWISH CARE,"8,328.84",06/08/2018,
Delivery Units,Adults and Communities,Other Agencies - Third Party P,90095863,JEWISH CARE,"9,072.21",06/08/2018,
Delivery Units,Adults and Communities,Other Agencies - Third Party P,90095864,JEWISH CARE,"-2,520.00",06/08/2018,
Delivery Units,Adults and Communities,Other Agencies - Third Party P,90096757,JEWISH CARE,"2,018.37",08/08/2018,
Delivery Units,Adults and Communities,Other Agencies - Third Party P,90096758,JEWISH CARE,"2,568.84",08/08/2018,
Delivery Units,Adults and Communities,Other Agencies - Third Party P,90096759,JEWISH CARE,"2,319.44",08/08/2018,
Delivery Units,Adults and Communities,Other Agencies - Third Party P,90096760,JEWISH CARE,"2,319.44",08/08/2018,
Delivery Units,Adults and Communities,Other Agencies - Third Party P,90096761,JEWISH CARE,"2,568.84",08/08/2018,
Delivery Units,Adults and Communities,Other Agencies - Third Party P,90096762,JEWISH CARE,"2,319.44",08/08/2018,
Delivery Units,Adults and Communities,Other Agencies - Third Party P,90096763,JEWISH CARE,"2,568.84",08/08/2018,
Delivery Units,Adults and Communities,Other Agencies - Third Party P,90096764,JEWISH CARE,"2,568.84",08/08/2018,
Delivery Units,Adults and Communities,Other Agencies - Third Party P,90097110,JEWISH CARE,"2,319.44",08/08/2018,
Delivery Units,Adults and Communities,Other Agencies - Third Party P,90097111,JEWISH CARE,"2,319.44",08/08/2018,
Delivery Units,Adults and Communities,Other Agencies - Third Party P,90097112,JEWISH CARE,"2,568.84",08/08/2018,
Delivery Units,Adults and Communities,Other Agencies - Third Party P,90097113,JEWISH CARE,"2,319.44",08/08/2018,
Delivery Units,Adults and Communities,Other Agencies - Third Party P,90097114,JEWISH CARE,"2,568.84",08/08/2018,
Delivery Units,Adults and Communities,Other Agencies - Third Party P,90097116,JEWISH CARE,"2,568.84",08/08/2018,
Delivery Units,Adults and Communities,Other Agencies - Third Party P,90097117,JEWISH CARE,"2,568.84",08/08/2018,
Delivery Units,Adults and Communities,Other Agencies - Third Party P,90097118,JEWISH CARE,"2,319.44",08/08/2018,
Delivery Units,Adults and Communities,Other Agencies - Third Party P,90097119,JEWISH CARE,"2,568.84",08/08/2018,
Delivery Units,Adults and Communities,Other Agencies - Third Party P,90097120,JEWISH CARE,"2,568.84",08/08/2018,
Delivery Units,Adults and Communities,Other Agencies - Third Party P,90097121,JEWISH CARE,"2,568.84",08/08/2018,
Delivery Units,Adults and Communities,Other Agencies - Third Party P,90097122,JEWISH CARE,"1,325.41",08/08/2018,
Delivery Units,Adults and Communities,Other Agencies - Third Party P,90097123,JEWISH CARE,"1,076.88",08/08/2018,
Delivery Units,Adults and Communities,Other Agencies - Third Party P,90097124,JEWISH CARE,"2,319.44",08/08/2018,
Delivery Units,Adults and Communities,Other Agencies - Third Party P,90097125,JEWISH CARE,"2,319.44",08/08/2018,
Delivery Units,Adults and Communities,Other Agencies - Third Party P,90097152,JEWISH CARE,"2,319.44",08/08/2018,
Delivery Units,Adults and Communities,Other Agencies - Third Party P,90101911,JEWISH CARE,"1,988.09",29/08/2018,
Delivery Units,Adults and Communities,Other Agencies - Third Party P,90097630,FERNBANK NURSING HOME.,"2,397.54",10/08/2018,
Delivery Units,Adults and Communities,Other Agencies - Third Party P,90097631,FERNBANK NURSING HOME.,"2,397.54",10/08/2018,
Delivery Units,Adults and Communities,Other Agencies - Third Party P,90097632,FERNBANK NURSING HOME.,"2,397.54",10/08/2018,
Delivery Units,Adults and Communities,Other Agencies - Third Party P,90097633,FERNBANK NURSING HOME.,"2,397.54",10/08/2018,
Delivery Units,Adults and Communities,Other Agencies - Third Party P,90097634,FERNBANK NURSING HOME.,"2,413.35",10/08/2018,
Delivery Units,Adults and Communities,Other Agencies - Third Party P,90097635,FERNBANK NURSING HOME.,"2,397.54",10/08/2018,
Delivery Units,Adults and Communities,Other Agencies - Third Party P,90097637,FERNBANK NURSING HOME.,"4,362.01",10/08/2018,
Delivery Units,Adults and Communities,Other Agencies - Third Party P,90098179,FERNBANK NURSING HOME.,"2,657.01",15/08/2018,
Delivery Units,Adults and Communities,Other Agencies - Third Party P,90101660,BUPA NURSING HOMES LTD - ARKLEY,"2,571.43",24/08/2018,
Delivery Units,Adults and Communities,Other Agencies - Third Party P,90101886,BUPA NURSING HOMES LTD - ARKLEY,"2,227.52",29/08/2018,
Delivery Units,Adults and Communities,Other Agencies - Third Party P,90101887,BUPA NURSING HOMES LTD - ARKLEY,"2,227.24",29/08/2018,
Delivery Units,Adults and Communities,Other Agencies - Third Party P,90101888,BUPA NURSING HOMES LTD - ARKLEY,"2,227.24",29/08/2018,
Delivery Units,Adults and Communities,Other Agencies - Third Party P,90101924,BUPA NURSING HOMES LTD - ARKLEY,"2,227.40",29/08/2018,
Delivery Units,Adults and Communities,Other Agencies - Third Party P,90097054,AGUDAS ISRAEL HOUSING ASSCTN LTD,"2,736.86",14/08/2018,
Delivery Units,Adults and Communities,Other Agencies - Third Party P,90099056,WESTMINSTER HEALTH CARE LTD,"2,310.48",17/08/2018,
Delivery Units,Adults and Communities,Other Agencies - Third Party P,90099057,WESTMINSTER HEALTH CARE LTD,"2,293.60",17/08/2018,
Delivery Units,Adults and Communities,Other Agencies - Third Party P,90099058,WESTMINSTER HEALTH CARE LTD,"2,310.48",17/08/2018,
Delivery Units,Adults and Communities,Other Agencies - Third Party P,90097398,WESTMINSTER HEALTH CARE LTD,"2,318.93",09/08/2018,
Delivery Units,Adults and Communities,Other Agencies - Third Party P,90102747,WESTMINSTER HEALTH CARE LTD,"2,318.93",31/08/2018,
Delivery Units,Adults and Communities,Other Agencies - Third Party P,90097068,THE LEONARD CHESHIRE FOUNDATION,"6,532.14",23/08/2018,
Delivery Units,Adults and Communities,Other Agencies - Third Party P,90101096,CARETECH COMMUNITY SERVICES LTD,"4,926.34",31/08/2018,
Delivery Units,Adults and Communities,Other Agencies - Third Party P,90098623,MEERA NURSING HOME LIMITED,"2,708.65",15/08/2018,
Delivery Units,Adults and Communities,Other Agencies - Third Party P,90098624,MEERA NURSING HOME LIMITED,"2,445.68",15/08/2018,
Delivery Units,Adults and Communities,Other Agencies - Third Party P,90098625,MEERA NURSING HOME LIMITED,"2,445.68",15/08/2018,
Delivery Units,Adults and Communities,Other Agencies - Third Party P,90098442,NEWCENTURY CARE LTD,"4,198.29",15/08/2018,
Delivery Units,Adults and Communities,Other Agencies - Third Party P,90098443,NEWCENTURY CARE LTD,"4,340.00",15/08/2018,
Delivery Units,Adults and Communities,Other Agencies - Third Party P,90098444,NEWCENTURY CARE LTD,"3,985.71",15/08/2018,
Delivery Units,Adults and Communities,Other Agencies - Third Party P,90098445,NEWCENTURY CARE LTD,"3,985.71",15/08/2018,
Delivery Units,Adults and Communities,Other Agencies - Third Party P,90098447,NEWCENTURY CARE LTD,"3,321.43",15/08/2018,
Delivery Units,Adults and Communities,Other Agencies - Third Party P,90098449,NEWCENTURY CARE LTD,"3,321.43",15/08/2018,
Delivery Units,Adults and Communities,Other Agencies - Third Party P,90098450,NEWCENTURY CARE LTD,"2,398.56",15/08/2018,
Delivery Units,Adults and Communities,Other Agencies - Third Party P,90098451,NEWCENTURY CARE LTD,"3,764.29",15/08/2018,
Delivery Units,Adults and Communities,Other Agencies - Third Party P,90094887,BUPA CARE HOMES,"2,466.76",01/08/2018,
Delivery Units,Adults and Communities,Other Agencies - Third Party P,90097278,BUPA CARE HOMES,"2,466.76",09/08/2018,
Delivery Units,Adults and Communities,Other Agencies - Third Party P,90097853,BUPA CARE HOMES,"3,400.00",15/08/2018,
Delivery Units,Adults and Communities,Other Agencies - Third Party P,90097855,BUPA CARE HOMES,"2,165.68",15/08/2018,
Delivery Units,Adults and Communities,Other Agencies - Third Party P,90097850,BUPA CARE HOMES,"1,931.31",10/08/2018,
Delivery Units,Adults and Communities,Other Agencies - Third Party P,90097858,BUPA CARE HOMES,696.65,10/08/2018,
Delivery Units,Adults and Communities,Other Agencies - Third Party P,90098459,BUPA CARE HOMES,"2,549.32",15/08/2018,
Delivery Units,Adults and Communities,Other Agencies - Third Party P,90098460,BUPA CARE HOMES,"2,321.92",15/08/2018,
Delivery Units,Adults and Communities,Other Agencies - Third Party P,90098461,BUPA CARE HOMES,"2,094.52",15/08/2018,
Delivery Units,Adults and Communities,Other Agencies - Third Party P,90098626,BUPA CARE HOMES,"2,549.32",15/08/2018,
Delivery Units,Adults and Communities,Other Agencies - Third Party P,90098627,BUPA CARE HOMES,"2,321.92",15/08/2018,
Delivery Units,Adults and Communities,Other Agencies - Third Party P,90098628,BUPA CARE HOMES,"2,094.52",15/08/2018,
Delivery Units,Adults and Communities,Other Agencies - Third Party P,90098309,FOUR SEASONS HEALTH CARE,"2,291.36",15/08/2018,
Delivery Units,Adults and Communities,Other Agencies - Third Party P,90098310,FOUR SEASONS HEALTH CARE,"2,550.72",15/08/2018,
Delivery Units,Adults and Communities,Other Agencies - Third Party P,90098312,FOUR SEASONS HEALTH CARE,"2,550.72",15/08/2018,
Delivery Units,Adults and Communities,Other Agencies - Third Party P,90098313,FOUR SEASONS HEALTH CARE,"2,291.36",15/08/2018,
Delivery Units,Adults and Communities,Other Agencies - Third Party P,90098314,FOUR SEASONS HEALTH CARE,"2,551.52",15/08/2018,
Delivery Units,Adults and Communities,Other Agencies - Third Party P,90098315,FOUR SEASONS HEALTH CARE,"2,291.36",15/08/2018,
Delivery Units,Adults and Communities,Other Agencies - Third Party P,90098316,FOUR SEASONS HEALTH CARE,"2,291.37",15/08/2018,
Delivery Units,Adults and Communities,Other Agencies - Third Party P,90098318,FOUR SEASONS HEALTH CARE,"2,400.00",15/08/2018,
Delivery Units,Adults and Communities,Other Agencies - Third Party P,90102750,FOUR SEASONS HEALTH CARE,"2,291.36",31/08/2018,
Delivery Units,Adults and Communities,Other Agencies - Third Party P,90102751,FOUR SEASONS HEALTH CARE,"2,551.52",31/08/2018,
Delivery Units,Adults and Communities,Other Agencies - Third Party P,90102752,FOUR SEASONS HEALTH CARE,"2,291.36",31/08/2018,
Delivery Units,Adults and Communities,Other Agencies - Third Party P,90102753,FOUR SEASONS HEALTH CARE,"2,400.00",31/08/2018,
Delivery Units,Adults and Communities,Other Agencies - Third Party P,90102754,FOUR SEASONS HEALTH CARE,327.34,31/08/2018,
Delivery Units,Adults and Communities,Other Agencies - Third Party P,90102756,FOUR SEASONS HEALTH CARE,"2,291.36",31/08/2018,
Delivery Units,Adults and Communities,Other Agencies - Third Party P,90102758,FOUR SEASONS HEALTH CARE,"2,550.72",31/08/2018,
Delivery Units,Adults and Communities,Other Agencies - Third Party P,90102759,FOUR SEASONS HEALTH CARE,"2,291.36",31/08/2018,
Delivery Units,Adults and Communities,Other Agencies - Third Party P,90098455,SANCTUARY CARE LTD,"2,573.84",15/08/2018,
Delivery Units,Adults and Communities,Other Agencies - Third Party P,90101420,BUPA CARE HOMES,"3,416.11",21/08/2018,
Delivery Units,Adults and Communities,Other Agencies - Third Party P,90101421,BUPA CARE HOMES,"3,343.57",21/08/2018,
Delivery Units,Adults and Communities,Other Agencies - Third Party P,90101422,BUPA CARE HOMES,"2,466.05",21/08/2018,
Delivery Units,Adults and Communities,Other Agencies - Third Party P,90101423,BUPA CARE HOMES,"3,007.40",21/08/2018,
Delivery Units,Adults and Communities,Other Agencies - Third Party P,90097037,SAGE NURSING HOME,"4,207.01",09/08/2018,
Delivery Units,Adults and Communities,Other Agencies - Third Party P,90097055,SAGE NURSING HOME,"5,314.29",09/08/2018,
Delivery Units,Adults and Communities,Other Agencies - Third Party P,90097057,SAGE NURSING HOME,"2,397.72",09/08/2018,
Delivery Units,Adults and Communities,Other Agencies - Third Party P,90097059,SAGE NURSING HOME,"2,788.32",09/08/2018,
Delivery Units,Adults and Communities,Other Agencies - Third Party P,90097060,SAGE NURSING HOME,642.86,09/08/2018,
Delivery Units,Adults and Communities,Other Agencies - Third Party P,90097061,SAGE NURSING HOME,"2,517.60",09/08/2018,
Delivery Units,Adults and Communities,Other Agencies - Third Party P,90097062,SAGE NURSING HOME,"2,517.60",10/08/2018,
Delivery Units,Adults and Communities,Other Agencies - Third Party P,90098629,SAGE NURSING HOME,407.13,15/08/2018,
Delivery Units,Adults and Communities,Other Agencies - Third Party P,90102921,M D HOMES,"3,072.32",31/08/2018,
Delivery Units,Adults and Communities,Other Agencies - Third Party P,90101896,APPLE TREE COURT CARE HOME,414.63,29/08/2018,
Delivery Units,Adults and Communities,Other Agencies - Third Party P,90101897,APPLE TREE COURT CARE HOME,25.71,29/08/2018,
Delivery Units,Adults and Communities,Other Agencies - Third Party P,90101901,APPLE TREE COURT CARE HOME,"4,871.43",29/08/2018,
Delivery Units,Adults and Communities,Other Agencies - Third Party P,90101902,APPLE TREE COURT CARE HOME,"2,406.90",29/08/2018,
Delivery Units,Adults and Communities,Other Agencies - Third Party P,90101903,APPLE TREE COURT CARE HOME,"2,657.14",29/08/2018,
Delivery Units,Adults and Communities,Other Agencies - Third Party P,90097336,AUTUMN GARDENS,"4,800.00",09/08/2018,
Delivery Units,Adults and Communities,Other Agencies - Third Party P,90097337,AUTUMN GARDENS,"4,800.00",09/08/2018,
Delivery Units,Adults and Communities,Other Agencies - Third Party P,90097357,CARE UK COMMUNITY PARTNERSHIPS,"3,426.61",09/08/2018,
Delivery Units,Adults and Communities,Other Agencies - Third Party P,90097849,SUNRISE SENIOR LIVING,"6,382.28",10/08/2018,
Delivery Units,Adults and Communities,Other Agencies - Third Party P,30181397,ABBEY RAVENSCROFT PARK NURSING HOME,200.00,23/08/2018,
Delivery Units,Adults and Communities,Other Agencies - Third Party P,90097283,ABBEY RAVENSCROFT PARK NURSING HOME,"3,801.88",09/08/2018,
Delivery Units,Adults and Communities,Other Agencies - Third Party P,90097285,ABBEY RAVENSCROFT PARK NURSING HOME,"2,788.32",09/08/2018,
Delivery Units,Adults and Communities,Other Agencies - Third Party P,90097286,ABBEY RAVENSCROFT PARK NURSING HOME,"2,788.32",09/08/2018,
Delivery Units,Adults and Communities,Other Agencies - Third Party P,90097289,ABBEY RAVENSCROFT PARK NURSING HOME,"2,788.32",09/08/2018,
Delivery Units,Adults and Communities,Other Agencies - Third Party P,90097290,ABBEY RAVENSCROFT PARK NURSING HOME,"2,788.32",09/08/2018,
Delivery Units,Adults and Communities,Other Agencies - Third Party P,90097291,ABBEY RAVENSCROFT PARK NURSING HOME,"2,788.32",09/08/2018,
Delivery Units,Adults and Communities,Other Agencies - Third Party P,90097292,ABBEY RAVENSCROFT PARK NURSING HOME,"3,321.43",09/08/2018,
Delivery Units,Adults and Communities,Other Agencies - Third Party P,90097294,ABBEY RAVENSCROFT PARK NURSING HOME,"3,321.43",09/08/2018,
Delivery Units,Adults and Communities,Other Agencies - Third Party P,90097295,ABBEY RAVENSCROFT PARK NURSING HOME,"3,321.43",09/08/2018,
Delivery Units,Adults and Communities,Other Agencies - Third Party P,90097296,ABBEY RAVENSCROFT PARK NURSING HOME,"3,321.43",09/08/2018,
Delivery Units,Adults and Communities,Other Agencies - Third Party P,90097299,ABBEY RAVENSCROFT PARK NURSING HOME,"3,321.43",09/08/2018,
Delivery Units,Adults and Communities,Other Agencies - Third Party P,90095348,CARLTON COURT (TLC GROUP),-856.63,09/08/2018,
Delivery Units,Adults and Communities,Other Agencies - Third Party P,90097258,CARLTON COURT (TLC GROUP),"2,655.55",09/08/2018,
Delivery Units,Adults and Communities,Other Agencies - Third Party P,90097260,CARLTON COURT (TLC GROUP),"4,428.57",09/08/2018,
Delivery Units,Adults and Communities,Other Agencies - Third Party P,90097262,CARLTON COURT (TLC GROUP),"3,736.61",09/08/2018,
Delivery Units,Adults and Communities,Other Agencies - Third Party P,90097264,CARLTON COURT (TLC GROUP),"2,448.78",09/08/2018,
Delivery Units,Adults and Communities,Other Agencies - Third Party P,90097267,CARLTON COURT (TLC GROUP),"3,100.00",09/08/2018,
Delivery Units,Adults and Communities,Other Agencies - Third Party P,90097348,CARLTON COURT (TLC GROUP),"-2,655.55",09/08/2018,
Delivery Units,Adults and Communities,Other Agencies - Third Party P,90098621,CARLTON COURT (TLC GROUP),"15,771.43",15/08/2018,
Delivery Units,Adults and Communities,Other Agencies - Third Party P,90097277,HUSKARDS NEW CARE LTD,"2,397.72",09/08/2018,
Delivery Units,Adults and Communities,Other Agencies - Third Party P,90099268,ASHTON LODGE CARE CENTRE,"-2,374.35",31/08/2018,
Delivery Units,Adults and Communities,Other Agencies - Third Party P,90102936,ASHTON LODGE CARE CENTRE,"3,299.06",31/08/2018,
Delivery Units,Adults and Communities,Other Agencies - Third Party P,90102937,ASHTON LODGE CARE CENTRE,"3,293.75",31/08/2018,
Delivery Units,Adults and Communities,Other Agencies - Third Party P,90102938,ASHTON LODGE CARE CENTRE,"3,764.29",31/08/2018,
Delivery Units,Adults and Communities,Other Agencies - Third Party P,90102939,ASHTON LODGE CARE CENTRE,"3,542.86",31/08/2018,
Delivery Units,Adults and Communities,Other Agencies - Third Party P,90102940,ASHTON LODGE CARE CENTRE,"2,936.14",31/08/2018,
Delivery Units,Adults and Communities,Other Agencies - Third Party P,90102941,ASHTON LODGE CARE CENTRE,"3,741.92",31/08/2018,
Delivery Units,Adults and Communities,Other Agencies - Third Party P,90102942,ASHTON LODGE CARE CENTRE,"3,520.49",31/08/2018,
Delivery Units,Adults and Communities,Other Agencies - Third Party P,90102943,ASHTON LODGE CARE CENTRE,"3,077.64",31/08/2018,
Delivery Units,Adults and Communities,Other Agencies - Third Party P,90102944,ASHTON LODGE CARE CENTRE,"3,506.72",31/08/2018,
Delivery Units,Adults and Communities,Other Agencies - Third Party P,90102945,ASHTON LODGE CARE CENTRE,"2,567.95",31/08/2018,
Delivery Units,Adults and Communities,Other Agencies - Third Party P,90102946,ASHTON LODGE CARE CENTRE,"3,299.06",31/08/2018,
Delivery Units,Adults and Communities,Other Agencies - Third Party P,90102947,ASHTON LODGE CARE CENTRE,"3,077.64",31/08/2018,
Delivery Units,Adults and Communities,Other Agencies - Third Party P,90102948,ASHTON LODGE CARE CENTRE,"3,504.99",31/08/2018,
Delivery Units,Adults and Communities,Other Agencies - Third Party P,90102949,ASHTON LODGE CARE CENTRE,"3,077.64",31/08/2018,
Delivery Units,Adults and Communities,Other Agencies - Third Party P,90102953,ASHTON LODGE CARE CENTRE,"2,844.07",31/08/2018,
Delivery Units,Adults and Communities,Other Agencies - Third Party P,90102955,ASHTON LODGE CARE CENTRE,"3,520.49",31/08/2018,
Delivery Units,Adults and Communities,Other Agencies - Third Party P,90102956,ASHTON LODGE CARE CENTRE,"2,844.07",31/08/2018,
Delivery Units,Adults and Communities,Other Agencies - Third Party P,90102957,ASHTON LODGE CARE CENTRE,"3,321.43",31/08/2018,
Delivery Units,Adults and Communities,Other Agencies - Third Party P,90102958,ASHTON LODGE CARE CENTRE,"3,133.79",31/08/2018,
Delivery Units,Adults and Communities,Other Agencies - Third Party P,90102959,ASHTON LODGE CARE CENTRE,"2,844.07",31/08/2018,
Delivery Units,Adults and Communities,Other Agencies - Third Party P,90102960,ASHTON LODGE CARE CENTRE,"3,520.49",31/08/2018,
Delivery Units,Adults and Communities,Other Agencies - Third Party P,90102961,ASHTON LODGE CARE CENTRE,"3,741.92",31/08/2018,
Delivery Units,Adults and Communities,Other Agencies - Third Party P,90102963,ASHTON LODGE CARE CENTRE,"3,073.43",31/08/2018,
Delivery Units,Adults and Communities,Other Agencies - Third Party P,90098458,WESTGATE HOUSE CARE CENTRE,"3,725.76",14/08/2018,
Delivery Units,Adults and Communities,Other Agencies - Third Party P,90102764,FOUR SEASONS HEALTH CARE (NO.4) LTD,"2,004.00",31/08/2018,
Delivery Units,Adults and Communities,Other Agencies - Third Party P,90097346,KARUNA MANOR,"4,207.14",09/08/2018,
Delivery Units,Adults and Communities,Other Agencies - Third Party P,90097051,ST ANNS HOME-LITTLE SISTERS OF THE POOR,"2,397.73",08/08/2018,
Delivery Units,Adults and Communities,Other Agencies - Third Party P,90097032,ADARA HEALTHCARE LTD,"3,400.00",08/08/2018,
Delivery Units,Adults and Communities,Other Agencies - Third Party P,90097012,GCH (HERTFORDSHIRE) LTD T/A,"2,358.76",08/08/2018,
Delivery Units,Adults and Communities,Other Agencies - Third Party P,90097359,AARANDALE MANOR CARE HOME,"4,428.57",09/08/2018,
Delivery Units,Adults and Communities,Other Agencies - Third Party P,90097360,AARANDALE MANOR CARE HOME,"2,570.56",09/08/2018,
Delivery Units,Adults and Communities,Other Agencies - Third Party P,90101670,FRISTON HOUSE,"2,967.36",24/08/2018,
Delivery Units,Adults and Communities,Other Agencies - Third Party P,90099266,BUPA CARE HOMES LTD (SUTTON LODGE),"2,420.00",17/08/2018,
Delivery Units,Adults and Communities,Other Agencies - Third Party P,90102922,ST JOHNS WOOD CARE CENTRE,"2,856.21",31/08/2018,
Delivery Units,Adults and Communities,Other Agencies - Third Party P,90097274,ACACIA CARE LTD,"3,400.00",23/08/2018,
Delivery Units,Adults and Communities,Other Agencies - Third Party P,90100577,CEDARS NURSING HOME,"1,800.00",20/08/2018,
Delivery Units,Adults and Communities,Other Agencies - Third Party P,90100578,CEDARS NURSING HOME,"2,400.00",20/08/2018,
Delivery Units,Adults and Communities,Other Agencies - Third Party P,90100579,CEDARS NURSING HOME,"2,657.14",20/08/2018,
Delivery Units,Adults and Communities,Other Agencies - Third Party P,90100580,CEDARS NURSING HOME,"2,571.43",20/08/2018,
Delivery Units,Adults and Communities,Other Agencies - Third Party P,90100581,CEDARS NURSING HOME,"2,657.14",20/08/2018,
Delivery Units,Adults and Communities,Other Agencies - Third Party P,90100582,CEDARS NURSING HOME,"2,571.43",20/08/2018,
Delivery Units,Adults and Communities,Other Agencies - Third Party P,90100583,CEDARS NURSING HOME,"2,657.14",20/08/2018,
Delivery Units,Adults and Communities,Other Agencies - Third Party P,90100584,CEDARS NURSING HOME,"2,657.14",20/08/2018,
Delivery Units,Adults and Communities,Other Agencies - Third Party P,90100585,CEDARS NURSING HOME,"4,207.14",20/08/2018,
Delivery Units,Adults and Communities,Other Agencies - Third Party P,90100586,CEDARS NURSING HOME,"3,800.00",20/08/2018,
Delivery Units,Adults and Communities,Other Agencies - Third Party P,90100587,CEDARS NURSING HOME,"4,207.14",20/08/2018,
Delivery Units,Adults and Communities,Other Agencies - Third Party P,90100588,CEDARS NURSING HOME,"4,071.43",20/08/2018,
Delivery Units,Adults and Communities,Other Agencies - Third Party P,90100589,CEDARS NURSING HOME,"4,207.14",20/08/2018,
Delivery Units,Adults and Communities,Other Agencies - Third Party P,90100590,CEDARS NURSING HOME,"4,207.14",20/08/2018,
Delivery Units,Adults and Communities,Other Agencies - Third Party P,90100591,CEDARS NURSING HOME,"2,397.72",20/08/2018,
Delivery Units,Adults and Communities,Other Agencies - Third Party P,90100592,CEDARS NURSING HOME,"2,165.68",20/08/2018,
Delivery Units,Adults and Communities,Other Agencies - Third Party P,90100593,CEDARS NURSING HOME,"2,397.72",20/08/2018,
Delivery Units,Adults and Communities,Other Agencies - Third Party P,90100594,CEDARS NURSING HOME,"2,397.72",20/08/2018,
Delivery Units,Adults and Communities,Other Agencies - Third Party P,90100595,CEDARS NURSING HOME,"2,397.72",20/08/2018,
Delivery Units,Adults and Communities,Other Agencies - Third Party P,90100596,CEDARS NURSING HOME,"2,964.93",20/08/2018,
Delivery Units,Adults and Communities,Other Agencies - Third Party P,90100597,CEDARS NURSING HOME,"2,678.00",20/08/2018,
Delivery Units,Adults and Communities,Other Agencies - Third Party P,90100598,CEDARS NURSING HOME,"2,964.93",20/08/2018,
Delivery Units,Adults and Communities,Other Agencies - Third Party P,90100599,CEDARS NURSING HOME,"2,964.93",20/08/2018,
Delivery Units,Adults and Communities,Other Agencies - Third Party P,90100600,CEDARS NURSING HOME,"2,964.93",20/08/2018,
Delivery Units,Adults and Communities,Other Agencies - Third Party P,90100601,CEDARS NURSING HOME,"2,655.55",20/08/2018,
Delivery Units,Adults and Communities,Other Agencies - Third Party P,90100602,CEDARS NURSING HOME,"2,398.56",20/08/2018,
Delivery Units,Adults and Communities,Other Agencies - Third Party P,90100603,CEDARS NURSING HOME,"2,655.55",20/08/2018,
Delivery Units,Adults and Communities,Other Agencies - Third Party P,90100604,CEDARS NURSING HOME,"2,655.55",20/08/2018,
Delivery Units,Adults and Communities,Other Agencies - Third Party P,90100605,CEDARS NURSING HOME,"2,655.55",20/08/2018,
Delivery Units,Adults and Communities,Other Agencies - Third Party P,90100606,CEDARS NURSING HOME,"4,207.14",20/08/2018,
Delivery Units,Adults and Communities,Other Agencies - Third Party P,90100607,CEDARS NURSING HOME,"4,207.14",20/08/2018,
Delivery Units,Adults and Communities,Other Agencies - Third Party P,90085799,LIFESTYLE CARE PLC,"-8,309.30",06/08/2018,
Delivery Units,Adults and Communities,Other Agencies - Third Party P,90087839,LIFESTYLE CARE PLC,275.07,06/08/2018,
Delivery Units,Adults and Communities,Other Agencies - Third Party P,90087840,LIFESTYLE CARE PLC,"2,185.71",06/08/2018,
Delivery Units,Adults and Communities,Other Agencies - Third Party P,90095858,LIFESTYLE CARE PLC,"14,541.00",06/08/2018,
Delivery Units,Adults and Communities,Other Agencies - Third Party P,90097041,LIFESTYLE CARE PLC,155.71,08/08/2018,
Delivery Units,Adults and Communities,Other Agencies - Third Party P,90098618,LIFESTYLE CARE PLC,"2,397.72",15/08/2018,
Delivery Units,Adults and Communities,Other Agencies - Third Party P,90098619,LIFESTYLE CARE PLC,"1,314.88",15/08/2018,
Delivery Units,Adults and Communities,Other Agencies - Third Party P,90098620,LIFESTYLE CARE PLC,"1,005.49",15/08/2018,
Delivery Units,Adults and Communities,Other Agencies - Third Party P,90099297,ASPEN VILLAGES LTD,"2,643.37",17/08/2018,
Delivery Units,Adults and Communities,Other Agencies - Third Party P,90099298,ASPEN VILLAGES LTD,"2,643.37",17/08/2018,
Delivery Units,Adults and Communities,Other Agencies - Third Party P,90097049,MURRAYFIELD CARE HOME,"2,211.80",08/08/2018,
Delivery Units,Adults and Communities,Other Agencies - Third Party P,90101417,MURRAYFIELD CARE HOME,"2,211.80",21/08/2018,
Delivery Units,Adults and Communities,Other Agencies - Third Party P,90102761,MURRAYFIELD CARE HOME,"2,211.80",31/08/2018,
Delivery Units,Adults and Communities,Other Agencies - Third Party P,90092254,PINELODGE CARE HOME,"2,655.55",06/08/2018,
Delivery Units,Adults and Communities,Other Agencies - Third Party P,90097408,LADY OF THE VALE NURSING HOME,"3,764.29",09/08/2018,
Delivery Units,Adults and Communities,Other Agencies - Third Party P,90097409,LADY OF THE VALE NURSING HOME,"3,764.29",09/08/2018,
Delivery Units,Adults and Communities,Other Agencies - Third Party P,30181395,ELEANOR PALMER TRUST NO 2 A/C.,725.63,23/08/2018,
Delivery Units,Adults and Communities,Other Agencies - Third Party P,30181396,ELEANOR PALMER TRUST NO 2 A/C.,"1,890.42",23/08/2018,
Delivery Units,Adults and Communities,Other Agencies - Third Party P,90098182,ELEANOR PALMER TRUST NO 2 A/C.,"3,321.43",15/08/2018,
Delivery Units,Adults and Communities,Other Agencies - Third Party P,90099260,ELEANOR PALMER TRUST NO 2 A/C.,89.99,17/08/2018,
Delivery Units,Adults and Communities,Other Agencies - Third Party P,90099271,ELEANOR PALMER TRUST NO 2 A/C.,"3,321.43",17/08/2018,
Delivery Units,Adults and Communities,Other Agencies - Third Party P,90099273,ELEANOR PALMER TRUST NO 2 A/C.,81.28,17/08/2018,
Delivery Units,Adults and Communities,Other Agencies - Third Party P,90100555,ELEANOR PALMER TRUST NO 2 A/C.,"2,604.31",20/08/2018,
Delivery Units,Adults and Communities,Other Agencies - Third Party P,90100556,ELEANOR PALMER TRUST NO 2 A/C.,"2,604.31",20/08/2018,
Delivery Units,Adults and Communities,Other Agencies - Third Party P,90100557,ELEANOR PALMER TRUST NO 2 A/C.,"2,604.31",20/08/2018,
Delivery Units,Adults and Communities,Other Agencies - Third Party P,90100558,ELEANOR PALMER TRUST NO 2 A/C.,"3,396.49",20/08/2018,
Delivery Units,Adults and Communities,Other Agencies - Third Party P,90100559,ELEANOR PALMER TRUST NO 2 A/C.,"2,604.31",20/08/2018,
Delivery Units,Adults and Communities,Other Agencies - Third Party P,90100560,ELEANOR PALMER TRUST NO 2 A/C.,"3,396.49",20/08/2018,
Delivery Units,Adults and Communities,Other Agencies - Third Party P,90100561,ELEANOR PALMER TRUST NO 2 A/C.,"2,550.86",20/08/2018,
Delivery Units,Adults and Communities,Other Agencies - Third Party P,90100562,ELEANOR PALMER TRUST NO 2 A/C.,"2,392.31",20/08/2018,
Delivery Units,Adults and Communities,Other Agencies - Third Party P,90100563,ELEANOR PALMER TRUST NO 2 A/C.,"3,396.49",20/08/2018,
Delivery Units,Adults and Communities,Other Agencies - Third Party P,90100564,ELEANOR PALMER TRUST NO 2 A/C.,"3,396.49",20/08/2018,
Delivery Units,Adults and Communities,Other Agencies - Third Party P,90100565,ELEANOR PALMER TRUST NO 2 A/C.,"3,396.49",20/08/2018,
Delivery Units,Adults and Communities,Other Agencies - Third Party P,90100566,ELEANOR PALMER TRUST NO 2 A/C.,"2,392.31",20/08/2018,
Delivery Units,Adults and Communities,Other Agencies - Third Party P,90100567,ELEANOR PALMER TRUST NO 2 A/C.,"3,321.43",20/08/2018,
Delivery Units,Adults and Communities,Other Agencies - Third Party P,90100568,ELEANOR PALMER TRUST NO 2 A/C.,"2,604.31",20/08/2018,
Delivery Units,Adults and Communities,Other Agencies - Third Party P,90100569,ELEANOR PALMER TRUST NO 2 A/C.,"3,396.49",20/08/2018,
Delivery Units,Adults and Communities,Other Agencies - Third Party P,90100570,ELEANOR PALMER TRUST NO 2 A/C.,"3,396.49",20/08/2018,
Delivery Units,Adults and Communities,Other Agencies - Third Party P,90100571,ELEANOR PALMER TRUST NO 2 A/C.,"3,396.49",20/08/2018,
Delivery Units,Adults and Communities,Other Agencies - Third Party P,90098291,ELM PARK LODGE,"1,507.89",15/08/2018,
Delivery Units,Adults and Communities,Other Agencies - Third Party P,90098293,ELM PARK LODGE,"3,170.86",15/08/2018,
Delivery Units,Adults and Communities,Other Agencies - Third Party P,90095846,SPANISH AND PORTUGUESE JEWISH,"2,674.86",13/08/2018,
Delivery Units,Adults and Communities,Other Agencies - Third Party P,90095337,TORRINGTON HOMES,"-1,184.89",01/08/2018,
Delivery Units,Adults and Communities,Other Agencies - Third Party P,90095338,TORRINGTON HOMES,"2,448.78",01/08/2018,
Delivery Units,Adults and Communities,Other Agencies - Third Party P,90095339,TORRINGTON HOMES,"2,448.78",01/08/2018,
Delivery Units,Adults and Communities,Other Agencies - Third Party P,90095340,TORRINGTON HOMES,"2,448.78",01/08/2018,
Delivery Units,Adults and Communities,Other Agencies - Third Party P,90095341,TORRINGTON HOMES,"2,448.78",01/08/2018,
Delivery Units,Adults and Communities,Other Agencies - Third Party P,90095342,TORRINGTON HOMES,"2,249.45",01/08/2018,
Delivery Units,Adults and Communities,Other Agencies - Third Party P,90097352,TORRINGTON HOMES,"2,448.78",09/08/2018,
Delivery Units,Adults and Communities,Other Agencies - Third Party P,90097353,TORRINGTON HOMES,"2,249.45",09/08/2018,
Delivery Units,Adults and Communities,Other Agencies - Third Party P,90097355,TORRINGTON HOMES,"2,448.78",09/08/2018,
Delivery Units,Adults and Communities,Other Agencies - Third Party P,90097356,TORRINGTON HOMES,"2,448.78",09/08/2018,
Delivery Units,Adults and Communities,Other Agencies - Third Party P,90097315,THE GRANGE,"2,300.28",09/08/2018,
Delivery Units,Adults and Communities,Other Agencies - Third Party P,90097316,THE GRANGE,"2,600.00",09/08/2018,
Delivery Units,Adults and Communities,Other Agencies - Third Party P,30181398,JEWISH CARE,345.89,23/08/2018,
Delivery Units,Adults and Communities,Other Agencies - Third Party P,30181399,JEWISH CARE,"1,161.20",23/08/2018,
Delivery Units,Adults and Communities,Other Agencies - Third Party P,90095824,JEWISH CARE,"2,218.68",06/08/2018,
Delivery Units,Adults and Communities,Other Agencies - Third Party P,90095825,JEWISH CARE,316.91,06/08/2018,
Delivery Units,Adults and Communities,Other Agencies - Third Party P,90095826,JEWISH CARE,316.91,06/08/2018,
Delivery Units,Adults and Communities,Other Agencies - Third Party P,90095828,JEWISH CARE,344.98,06/08/2018,
Delivery Units,Adults and Communities,Other Agencies - Third Party P,90095829,JEWISH CARE,344.98,06/08/2018,
Delivery Units,Adults and Communities,Other Agencies - Third Party P,90095830,JEWISH CARE,"2,568.84",06/08/2018,
Delivery Units,Adults and Communities,Other Agencies - Third Party P,90095831,JEWISH CARE,"2,415.28",06/08/2018,
Delivery Units,Adults and Communities,Other Agencies - Third Party P,90095832,JEWISH CARE,825.04,06/08/2018,
Delivery Units,Adults and Communities,Other Agencies - Third Party P,90095833,JEWISH CARE,"2,218.68",06/08/2018,
Delivery Units,Adults and Communities,Other Agencies - Third Party P,90095834,JEWISH CARE,792.39,06/08/2018,
Delivery Units,Adults and Communities,Other Agencies - Third Party P,90095836,JEWISH CARE,414.19,06/08/2018,
Delivery Units,Adults and Communities,Other Agencies - Third Party P,90095851,JEWISH CARE,"2,415.28",06/08/2018,
Delivery Units,Adults and Communities,Other Agencies - Third Party P,90095867,JEWISH CARE,"1,380.16",06/08/2018,
Delivery Units,Adults and Communities,Other Agencies - Third Party P,90095868,JEWISH CARE,"2,415.28",06/08/2018,
Delivery Units,Adults and Communities,Other Agencies - Third Party P,90095869,JEWISH CARE,"4,830.56",06/08/2018,
Delivery Units,Adults and Communities,Other Agencies - Third Party P,90095870,JEWISH CARE,"2,415.28",06/08/2018,
Delivery Units,Adults and Communities,Other Agencies - Third Party P,90095871,JEWISH CARE,"2,415.28",06/08/2018,
Delivery Units,Adults and Communities,Other Agencies - Third Party P,90095872,JEWISH CARE,"2,415.28",06/08/2018,
Delivery Units,Adults and Communities,Other Agencies - Third Party P,90095873,JEWISH CARE,"2,415.28",06/08/2018,
Delivery Units,Adults and Communities,Other Agencies - Third Party P,90095874,JEWISH CARE,"2,415.28",06/08/2018,
Delivery Units,Adults and Communities,Other Agencies - Third Party P,90095875,JEWISH CARE,"2,415.28",06/08/2018,
Delivery Units,Adults and Communities,Other Agencies - Third Party P,90095876,JEWISH CARE,"2,415.28",06/08/2018,
Delivery Units,Adults and Communities,Other Agencies - Third Party P,90095878,JEWISH CARE,"1,638.94",06/08/2018,
Delivery Units,Adults and Communities,Other Agencies - Third Party P,90095879,JEWISH CARE,"2,415.28",06/08/2018,
Delivery Units,Adults and Communities,Other Agencies - Third Party P,90095880,JEWISH CARE,"2,415.28",06/08/2018,
Delivery Units,Adults and Communities,Other Agencies - Third Party P,90095881,JEWISH CARE,"2,415.28",06/08/2018,
Delivery Units,Adults and Communities,Other Agencies - Third Party P,90095882,JEWISH CARE,"4,830.56",06/08/2018,
Delivery Units,Adults and Communities,Other Agencies - Third Party P,90095883,JEWISH CARE,"-6,469.50",06/08/2018,
Delivery Units,Adults and Communities,Other Agencies - Third Party P,90095884,JEWISH CARE,"1,725.20",06/08/2018,
Delivery Units,Adults and Communities,Other Agencies - Third Party P,90095885,JEWISH CARE,"2,415.28",06/08/2018,
Delivery Units,Adults and Communities,Other Agencies - Third Party P,90095886,JEWISH CARE,"2,415.28",06/08/2018,
Delivery Units,Adults and Communities,Other Agencies - Third Party P,90095887,JEWISH CARE,"2,415.28",06/08/2018,
Delivery Units,Adults and Communities,Other Agencies - Third Party P,90096749,JEWISH CARE,"2,415.28",08/08/2018,
Delivery Units,Adults and Communities,Other Agencies - Third Party P,90096750,JEWISH CARE,"2,415.28",08/08/2018,
Delivery Units,Adults and Communities,Other Agencies - Third Party P,90096752,JEWISH CARE,"2,415.28",08/08/2018,
Delivery Units,Adults and Communities,Other Agencies - Third Party P,90096753,JEWISH CARE,"2,415.28",08/08/2018,
Delivery Units,Adults and Communities,Other Agencies - Third Party P,90096754,JEWISH CARE,"2,415.28",08/08/2018,
Delivery Units,Adults and Communities,Other Agencies - Third Party P,90096755,JEWISH CARE,"2,415.28",08/08/2018,
Delivery Units,Adults and Communities,Other Agencies - Third Party P,90096771,JEWISH CARE,"2,415.28",08/08/2018,
Delivery Units,Adults and Communities,Other Agencies - Third Party P,90096772,JEWISH CARE,"2,218.68",08/08/2018,
Delivery Units,Adults and Communities,Other Agencies - Third Party P,90096773,JEWISH CARE,"2,218.68",08/08/2018,
Delivery Units,Adults and Communities,Other Agencies - Third Party P,90096774,JEWISH CARE,"2,218.68",08/08/2018,
Delivery Units,Adults and Communities,Other Agencies - Third Party P,90096775,JEWISH CARE,"2,415.28",08/08/2018,
Delivery Units,Adults and Communities,Other Agencies - Third Party P,90096776,JEWISH CARE,"2,218.68",08/08/2018,
Delivery Units,Adults and Communities,Other Agencies - Third Party P,90096777,JEWISH CARE,"2,218.68",08/08/2018,
Delivery Units,Adults and Communities,Other Agencies - Third Party P,90096779,JEWISH CARE,"2,218.68",08/08/2018,
Delivery Units,Adults and Communities,Other Agencies - Third Party P,90096780,JEWISH CARE,"2,218.68",08/08/2018,
Delivery Units,Adults and Communities,Other Agencies - Third Party P,90096781,JEWISH CARE,"2,218.68",08/08/2018,
Delivery Units,Adults and Communities,Other Agencies - Third Party P,90096782,JEWISH CARE,"2,218.68",08/08/2018,
Delivery Units,Adults and Communities,Other Agencies - Third Party P,90096783,JEWISH CARE,"2,415.28",08/08/2018,
Delivery Units,Adults and Communities,Other Agencies - Third Party P,90096785,JEWISH CARE,"2,218.68",08/08/2018,
Delivery Units,Adults and Communities,Other Agencies - Third Party P,90096787,JEWISH CARE,"2,218.68",08/08/2018,
Delivery Units,Adults and Communities,Other Agencies - Third Party P,90096788,JEWISH CARE,"2,218.68",08/08/2018,
Delivery Units,Adults and Communities,Other Agencies - Third Party P,90096789,JEWISH CARE,"2,415.28",08/08/2018,
Delivery Units,Adults and Communities,Other Agencies - Third Party P,90096790,JEWISH CARE,"2,415.28",08/08/2018,
Delivery Units,Adults and Communities,Other Agencies - Third Party P,90096791,JEWISH CARE,"2,218.68",08/08/2018,
Delivery Units,Adults and Communities,Other Agencies - Third Party P,90096792,JEWISH CARE,"2,218.68",08/08/2018,
Delivery Units,Adults and Communities,Other Agencies - Third Party P,90096793,JEWISH CARE,"2,415.28",08/08/2018,
Delivery Units,Adults and Communities,Other Agencies - Third Party P,90096794,JEWISH CARE,"2,415.28",08/08/2018,
Delivery Units,Adults and Communities,Other Agencies - Third Party P,90096795,JEWISH CARE,"2,415.28",08/08/2018,
Delivery Units,Adults and Communities,Other Agencies - Third Party P,90096796,JEWISH CARE,"4,733.40",08/08/2018,
Delivery Units,Adults and Communities,Other Agencies - Third Party P,90096797,JEWISH CARE,"2,218.68",08/08/2018,
Delivery Units,Adults and Communities,Other Agencies - Third Party P,90096798,JEWISH CARE,"2,218.68",08/08/2018,
Delivery Units,Adults and Communities,Other Agencies - Third Party P,90096799,JEWISH CARE,"2,218.68",08/08/2018,
Delivery Units,Adults and Communities,Other Agencies - Third Party P,90096800,JEWISH CARE,"2,415.28",08/08/2018,
Delivery Units,Adults and Communities,Other Agencies - Third Party P,90096801,JEWISH CARE,"2,415.28",08/08/2018,
Delivery Units,Adults and Communities,Other Agencies - Third Party P,90096802,JEWISH CARE,"2,415.28",08/08/2018,
Delivery Units,Adults and Communities,Other Agencies - Third Party P,90096803,JEWISH CARE,"2,218.68",08/08/2018,
Delivery Units,Adults and Communities,Other Agencies - Third Party P,90096804,JEWISH CARE,"2,218.68",08/08/2018,
Delivery Units,Adults and Communities,Other Agencies - Third Party P,90096806,JEWISH CARE,"2,415.28",08/08/2018,
Delivery Units,Adults and Communities,Other Agencies - Third Party P,90096808,JEWISH CARE,"2,415.28",08/08/2018,
Delivery Units,Adults and Communities,Other Agencies - Third Party P,90096810,JEWISH CARE,"2,102.00",08/08/2018,
Delivery Units,Adults and Communities,Other Agencies - Third Party P,90096814,JEWISH CARE,"2,415.28",08/08/2018,
Delivery Units,Adults and Communities,Other Agencies - Third Party P,90096817,JEWISH CARE,"3,200.00",08/08/2018,
Delivery Units,Adults and Communities,Other Agencies - Third Party P,90096818,JEWISH CARE,"2,415.28",08/08/2018,
Delivery Units,Adults and Communities,Other Agencies - Third Party P,90096819,JEWISH CARE,"2,218.68",08/08/2018,
Delivery Units,Adults and Communities,Other Agencies - Third Party P,90097126,JEWISH CARE,"2,415.28",08/08/2018,
Delivery Units,Adults and Communities,Other Agencies - Third Party P,90097127,JEWISH CARE,"2,415.28",08/08/2018,
Delivery Units,Adults and Communities,Other Agencies - Third Party P,90097128,JEWISH CARE,"2,415.28",08/08/2018,
Delivery Units,Adults and Communities,Other Agencies - Third Party P,90097129,JEWISH CARE,"2,415.28",08/08/2018,
Delivery Units,Adults and Communities,Other Agencies - Third Party P,90097130,JEWISH CARE,"2,415.28",08/08/2018,
Delivery Units,Adults and Communities,Other Agencies - Third Party P,90097131,JEWISH CARE,"2,415.28",08/08/2018,
Delivery Units,Adults and Communities,Other Agencies - Third Party P,90097132,JEWISH CARE,"2,415.28",08/08/2018,
Delivery Units,Adults and Communities,Other Agencies - Third Party P,90097133,JEWISH CARE,"2,218.68",08/08/2018,
Delivery Units,Adults and Communities,Other Agencies - Third Party P,90097134,JEWISH CARE,"2,415.28",08/08/2018,
Delivery Units,Adults and Communities,Other Agencies - Third Party P,90097135,JEWISH CARE,"2,415.28",08/08/2018,
Delivery Units,Adults and Communities,Other Agencies - Third Party P,90097136,JEWISH CARE,"2,415.28",08/08/2018,
Delivery Units,Adults and Communities,Other Agencies - Third Party P,90097138,JEWISH CARE,"2,415.28",08/08/2018,
Delivery Units,Adults and Communities,Other Agencies - Third Party P,90097139,JEWISH CARE,"2,415.28",08/08/2018,
Delivery Units,Adults and Communities,Other Agencies - Third Party P,90097140,JEWISH CARE,"2,218.68",08/08/2018,
Delivery Units,Adults and Communities,Other Agencies - Third Party P,90097141,JEWISH CARE,"2,415.28",08/08/2018,
Delivery Units,Adults and Communities,Other Agencies - Third Party P,90097142,JEWISH CARE,"2,415.28",08/08/2018,
Delivery Units,Adults and Communities,Other Agencies - Third Party P,90097143,JEWISH CARE,"2,218.68",08/08/2018,
Delivery Units,Adults and Communities,Other Agencies - Third Party P,90097144,JEWISH CARE,"2,415.28",08/08/2018,
Delivery Units,Adults and Communities,Other Agencies - Third Party P,90097146,JEWISH CARE,"2,415.28",08/08/2018,
Delivery Units,Adults and Communities,Other Agencies - Third Party P,90097148,JEWISH CARE,"2,218.68",08/08/2018,
Delivery Units,Adults and Communities,Other Agencies - Third Party P,90097150,JEWISH CARE,"2,415.28",08/08/2018,
Delivery Units,Adults and Communities,Other Agencies - Third Party P,90097151,JEWISH CARE,"2,415.28",08/08/2018,
Delivery Units,Adults and Communities,Other Agencies - Third Party P,90097843,JEWISH CARE,"6,210.72",10/08/2018,
Delivery Units,Adults and Communities,Other Agencies - Third Party P,90097844,JEWISH CARE,603.82,10/08/2018,
Delivery Units,Adults and Communities,Other Agencies - Third Party P,90099064,JEWISH CARE,"28,676.10",15/08/2018,
Delivery Units,Adults and Communities,Other Agencies - Third Party P,90099065,JEWISH CARE,"4,044.00",15/08/2018,
Delivery Units,Adults and Communities,Other Agencies - Third Party P,90099066,JEWISH CARE,"4,044.00",15/08/2018,
Delivery Units,Adults and Communities,Other Agencies - Third Party P,90099067,JEWISH CARE,"4,044.00",15/08/2018,
Delivery Units,Adults and Communities,Other Agencies - Third Party P,90099068,JEWISH CARE,"4,044.00",15/08/2018,
Delivery Units,Adults and Communities,Other Agencies - Third Party P,90100572,JEWISH CARE,"7,504.62",20/08/2018,
Delivery Units,Adults and Communities,Other Agencies - Third Party P,90101658,JEWISH CARE,"2,415.28",29/08/2018,
Delivery Units,Adults and Communities,Other Agencies - Third Party P,90101696,JEWISH CARE,"-3,068.35",29/08/2018,
Delivery Units,Adults and Communities,Other Agencies - Third Party P,90101910,JEWISH CARE,"13,542.82",29/08/2018,
Delivery Units,Adults and Communities,Other Agencies - Third Party P,90101912,JEWISH CARE,"2,568.84",29/08/2018,
Delivery Units,Adults and Communities,Other Agencies - Third Party P,90101914,JEWISH CARE,"2,415.28",29/08/2018,
Delivery Units,Adults and Communities,Other Agencies - Third Party P,90101915,JEWISH CARE,"4,044.00",29/08/2018,
Delivery Units,Adults and Communities,Other Agencies - Third Party P,90101916,JEWISH CARE,"2,415.28",29/08/2018,
Delivery Units,Adults and Communities,Other Agencies - Third Party P,90101917,JEWISH CARE,"4,313.00",29/08/2018,
Delivery Units,Adults and Communities,Other Agencies - Third Party P,90102835,JEWISH CARE,"2,415.28",31/08/2018,
Delivery Units,Adults and Communities,Other Agencies - Third Party P,90097322,CLOVELLY HOUSE RESID. HOME LTD,"2,600.00",09/08/2018,
Delivery Units,Adults and Communities,Other Agencies - Third Party P,90097326,CLOVELLY HOUSE RESID. HOME LTD,"2,600.00",09/08/2018,
Delivery Units,Adults and Communities,Other Agencies - Third Party P,90097327,CLOVELLY HOUSE RESID. HOME LTD,"2,780.00",09/08/2018,
Delivery Units,Adults and Communities,Other Agencies - Third Party P,90097329,CLOVELLY HOUSE RESID. HOME LTD,"2,780.00",09/08/2018,
Delivery Units,Adults and Communities,Other Agencies - Third Party P,90097332,CLOVELLY HOUSE RESID. HOME LTD,"2,304.00",09/08/2018,
Delivery Units,Adults and Communities,Other Agencies - Third Party P,90097333,CLOVELLY HOUSE RESID. HOME LTD,"2,600.00",09/08/2018,
Delivery Units,Adults and Communities,Other Agencies - Third Party P,90097334,CLOVELLY HOUSE RESID. HOME LTD,"2,304.00",09/08/2018,
Delivery Units,Adults and Communities,Other Agencies - Third Party P,90102926,FINBOND LIMITED,"2,435.71",31/08/2018,
Delivery Units,Adults and Communities,Other Agencies - Third Party P,90102928,FINBOND LIMITED,"3,542.86",31/08/2018,
Delivery Units,Adults and Communities,Other Agencies - Third Party P,90097852,QUANTUM CARE LIMITED,"4,207.14",10/08/2018,
Delivery Units,Adults and Communities,Other Agencies - Third Party P,90101889,BUPA NURSING HOMES LTD - ARKLEY,"2,089.68",29/08/2018,
Delivery Units,Adults and Communities,Other Agencies - Third Party P,90098438,SUNRIDGE HOUSING ASSOCIATION LTD,"2,989.58",15/08/2018,
Delivery Units,Adults and Communities,Other Agencies - Third Party P,90097609,NAZARETH HOUSE,"2,144.00",10/08/2018,
Delivery Units,Adults and Communities,Other Agencies - Third Party P,90097610,NAZARETH HOUSE,"2,304.00",10/08/2018,
Delivery Units,Adults and Communities,Other Agencies - Third Party P,90097611,NAZARETH HOUSE,"2,031.76",10/08/2018,
Delivery Units,Adults and Communities,Other Agencies - Third Party P,90097612,NAZARETH HOUSE,"2,031.76",10/08/2018,
Delivery Units,Adults and Communities,Other Agencies - Third Party P,90097613,NAZARETH HOUSE,"2,031.76",10/08/2018,
Delivery Units,Adults and Communities,Other Agencies - Third Party P,90097614,NAZARETH HOUSE,"2,211.80",10/08/2018,
Delivery Units,Adults and Communities,Other Agencies - Third Party P,90097615,NAZARETH HOUSE,"2,031.76",10/08/2018,
Delivery Units,Adults and Communities,Other Agencies - Third Party P,90097616,NAZARETH HOUSE,"2,080.00",10/08/2018,
Delivery Units,Adults and Communities,Other Agencies - Third Party P,90097618,NAZARETH HOUSE,"2,650.40",10/08/2018,
Delivery Units,Adults and Communities,Other Agencies - Third Party P,90097619,NAZARETH HOUSE,"2,211.80",10/08/2018,
Delivery Units,Adults and Communities,Other Agencies - Third Party P,90097620,NAZARETH HOUSE,"2,031.76",10/08/2018,
Delivery Units,Adults and Communities,Other Agencies - Third Party P,90097621,NAZARETH HOUSE,"2,211.80",10/08/2018,
Delivery Units,Adults and Communities,Other Agencies - Third Party P,90097622,NAZARETH HOUSE,"2,031.76",10/08/2018,
Delivery Units,Adults and Communities,Other Agencies - Third Party P,90097623,NAZARETH HOUSE,"2,211.80",10/08/2018,
Delivery Units,Adults and Communities,Other Agencies - Third Party P,90097624,NAZARETH HOUSE,"2,260.00",10/08/2018,
Delivery Units,Adults and Communities,Other Agencies - Third Party P,90097625,NAZARETH HOUSE,"2,031.76",10/08/2018,
Delivery Units,Adults and Communities,Other Agencies - Third Party P,90097626,NAZARETH HOUSE,"2,031.76",10/08/2018,
Delivery Units,Adults and Communities,Other Agencies - Third Party P,90097627,NAZARETH HOUSE,"2,031.76",10/08/2018,
Delivery Units,Adults and Communities,Other Agencies - Third Party P,90097639,NAZARETH HOUSE,48.10,10/08/2018,
Delivery Units,Adults and Communities,Other Agencies - Third Party P,90097640,NAZARETH HOUSE,537.15,10/08/2018,
Delivery Units,Adults and Communities,Other Agencies - Third Party P,90097641,NAZARETH HOUSE,537.15,10/08/2018,
Delivery Units,Adults and Communities,Other Agencies - Third Party P,90097642,NAZARETH HOUSE,537.15,10/08/2018,
Delivery Units,Adults and Communities,Other Agencies - Third Party P,90097643,NAZARETH HOUSE,210.58,10/08/2018,
Delivery Units,Adults and Communities,Other Agencies - Third Party P,90097644,NAZARETH HOUSE,441.25,10/08/2018,
Delivery Units,Adults and Communities,Other Agencies - Third Party P,90097645,NAZARETH HOUSE,537.15,10/08/2018,
Delivery Units,Adults and Communities,Other Agencies - Third Party P,90097646,NAZARETH HOUSE,441.25,10/08/2018,
Delivery Units,Adults and Communities,Other Agencies - Third Party P,90097647,NAZARETH HOUSE,537.15,10/08/2018,
Delivery Units,Adults and Communities,Other Agencies - Third Party P,90097649,NAZARETH HOUSE,306.28,10/08/2018,
Delivery Units,Adults and Communities,Other Agencies - Third Party P,90097650,NAZARETH HOUSE,537.15,10/08/2018,
Delivery Units,Adults and Communities,Other Agencies - Third Party P,90097651,NAZARETH HOUSE,441.25,10/08/2018,
Delivery Units,Adults and Communities,Other Agencies - Third Party P,90097652,NAZARETH HOUSE,537.15,10/08/2018,
Delivery Units,Adults and Communities,Other Agencies - Third Party P,90097653,NAZARETH HOUSE,537.15,10/08/2018,
Delivery Units,Adults and Communities,Other Agencies - Third Party P,90097654,NAZARETH HOUSE,537.15,10/08/2018,
Delivery Units,Adults and Communities,Other Agencies - Third Party P,90097655,NAZARETH HOUSE,344.74,10/08/2018,
Delivery Units,Adults and Communities,Other Agencies - Third Party P,90097656,NAZARETH HOUSE,252.54,10/08/2018,
Delivery Units,Adults and Communities,Other Agencies - Third Party P,90094664,FRIARY LODGE,"3,321.43",01/08/2018,
Delivery Units,Adults and Communities,Other Agencies - Third Party P,90102861,FRIARY LODGE,"3,321.43",31/08/2018,
Delivery Units,Adults and Communities,Other Agencies - Third Party P,90099274,THE WOODSIDE HOME,"2,349.12",23/08/2018,
Delivery Units,Adults and Communities,Other Agencies - Third Party P,90099275,THE WOODSIDE HOME,"2,349.12",23/08/2018,
Delivery Units,Adults and Communities,Other Agencies - Third Party P,90099276,THE WOODSIDE HOME,"2,407.36",23/08/2018,
Delivery Units,Adults and Communities,Other Agencies - Third Party P,90099277,THE WOODSIDE HOME,"2,407.36",23/08/2018,
Delivery Units,Adults and Communities,Other Agencies - Third Party P,90099278,THE WOODSIDE HOME,"2,349.12",23/08/2018,
Delivery Units,Adults and Communities,Other Agencies - Third Party P,90099280,THE WOODSIDE HOME,"2,349.12",23/08/2018,
Delivery Units,Adults and Communities,Other Agencies - Third Party P,90099281,THE WOODSIDE HOME,36.80,23/08/2018,
Delivery Units,Adults and Communities,Other Agencies - Third Party P,90099059,WESTMINSTER HEALTH CARE LTD,"2,655.55",17/08/2018,
Delivery Units,Adults and Communities,Other Agencies - Third Party P,90099061,WESTMINSTER HEALTH CARE LTD,"3,741.92",17/08/2018,
Delivery Units,Adults and Communities,Other Agencies - Third Party P,90098181,METHODIST HOMES FOR THE AGED,"2,001.92",15/08/2018,
Delivery Units,Adults and Communities,Other Agencies - Third Party P,90097361,SYDMAR LODGE,"2,420.30",09/08/2018,
Delivery Units,Adults and Communities,Other Agencies - Third Party P,90097362,SYDMAR LODGE,"2,456.40",09/08/2018,
Delivery Units,Adults and Communities,Other Agencies - Third Party P,90097363,SYDMAR LODGE,"2,456.40",09/08/2018,
Delivery Units,Adults and Communities,Other Agencies - Third Party P,90097364,SYDMAR LODGE,"2,456.40",09/08/2018,
Delivery Units,Adults and Communities,Other Agencies - Third Party P,90097365,SYDMAR LODGE,"2,455.95",09/08/2018,
Delivery Units,Adults and Communities,Other Agencies - Third Party P,90098183,THE LIMES RESIDENTIAL HOME,"1,628.57",15/08/2018,
Delivery Units,Adults and Communities,Other Agencies - Third Party P,90101124,THE LIMES RESIDENTIAL HOME,385.26,23/08/2018,
Delivery Units,Adults and Communities,Other Agencies - Third Party P,90101127,THE LIMES RESIDENTIAL HOME,385.26,23/08/2018,
Delivery Units,Adults and Communities,Other Agencies - Third Party P,90101128,THE LIMES RESIDENTIAL HOME,385.26,23/08/2018,
Delivery Units,Adults and Communities,Other Agencies - Third Party P,90101129,THE LIMES RESIDENTIAL HOME,385.26,23/08/2018,
Delivery Units,Adults and Communities,Other Agencies - Third Party P,90101130,THE LIMES RESIDENTIAL HOME,385.26,23/08/2018,
Delivery Units,Adults and Communities,Other Agencies - Third Party P,90101131,THE LIMES RESIDENTIAL HOME,385.26,23/08/2018,
Delivery Units,Adults and Communities,Other Agencies - Third Party P,90101132,THE LIMES RESIDENTIAL HOME,385.26,23/08/2018,
Delivery Units,Adults and Communities,Other Agencies - Third Party P,90101133,THE LIMES RESIDENTIAL HOME,385.26,23/08/2018,
Delivery Units,Adults and Communities,Other Agencies - Third Party P,90101428,THE LIMES RESIDENTIAL HOME,"2,657.14",23/08/2018,
Delivery Units,Adults and Communities,Other Agencies - Third Party P,90101429,THE LIMES RESIDENTIAL HOME,803.29,23/08/2018,
Delivery Units,Adults and Communities,Other Agencies - Third Party P,90101430,THE LIMES RESIDENTIAL HOME,803.29,23/08/2018,
Delivery Units,Adults and Communities,Other Agencies - Third Party P,90101431,THE LIMES RESIDENTIAL HOME,803.29,23/08/2018,
Delivery Units,Adults and Communities,Other Agencies - Third Party P,90101432,THE LIMES RESIDENTIAL HOME,590.45,23/08/2018,
Delivery Units,Adults and Communities,Other Agencies - Third Party P,90101683,THE LIMES RESIDENTIAL HOME,"2,550.86",24/08/2018,
Delivery Units,Adults and Communities,Other Agencies - Third Party P,90101684,THE LIMES RESIDENTIAL HOME,"2,550.86",24/08/2018,
Delivery Units,Adults and Communities,Other Agencies - Third Party P,90101686,THE LIMES RESIDENTIAL HOME,"2,550.86",24/08/2018,
Delivery Units,Adults and Communities,Other Agencies - Third Party P,90101687,THE LIMES RESIDENTIAL HOME,"2,878.57",24/08/2018,
Delivery Units,Adults and Communities,Other Agencies - Third Party P,90101688,THE LIMES RESIDENTIAL HOME,"2,550.86",24/08/2018,
Delivery Units,Adults and Communities,Other Agencies - Third Party P,90101689,THE LIMES RESIDENTIAL HOME,"2,550.86",24/08/2018,
Delivery Units,Adults and Communities,Other Agencies - Third Party P,90101690,THE LIMES RESIDENTIAL HOME,"2,550.86",24/08/2018,
Delivery Units,Adults and Communities,Other Agencies - Third Party P,90101691,THE LIMES RESIDENTIAL HOME,"2,657.14",24/08/2018,
Delivery Units,Adults and Communities,Other Agencies - Third Party P,90101692,THE LIMES RESIDENTIAL HOME,"2,249.45",24/08/2018,
Delivery Units,Adults and Communities,Other Agencies - Third Party P,90102842,THE LIMES RESIDENTIAL HOME,"2,249.45",31/08/2018,
Delivery Units,Adults and Communities,Other Agencies - Third Party P,90102843,THE LIMES RESIDENTIAL HOME,"2,249.45",31/08/2018,
Delivery Units,Adults and Communities,Other Agencies - Third Party P,90102844,THE LIMES RESIDENTIAL HOME,"2,550.86",31/08/2018,
Delivery Units,Adults and Communities,Other Agencies - Third Party P,90102862,THE LIMES RESIDENTIAL HOME,385.26,31/08/2018,
Delivery Units,Adults and Communities,Other Agencies - Third Party P,90102863,THE LIMES RESIDENTIAL HOME,"2,550.86",31/08/2018,
Delivery Units,Adults and Communities,Other Agencies - Third Party P,90097349,SCIMITAR CARE HOTELS PLC,"3,985.71",31/08/2018,
